Workbook

Sheet Read Me
B1: CFP Quantification Tool - Aluminium
B3: Colour Codes, Notes & FAQ
B6: Tool Sections :
B7: G : General Information Section | C7: = | D7: General information of the certifying Aluminium product(s) that required user input
B8: A : Assessment Section | C8: = | D8: Calculation of the carbon emission for each Aluminium product
B9: P : Performance Section | C9: = | D9: Summary of each of the Aluminium product Carbon emission performance
B11: Colour Code of Cells : | D11: Colour Code of Sheets :
B12: Input cell | D12: Instruction
B13: Calculated value | D13: Calculation Tool
B14: Information ( Title , units, item nos. etc) | D14: Factor for Calculation
B15: Not used | D15: Default Factor References
B16: Click me
A18: Notes to users:
A19: - | B19: Users should refer to the relevant Assessment Guide issued by the Construction Industry Council's (CIC) for the principles, requirements, and guides for the quantification and reporting the carbon footprint of products (CFP) under the CIC Green Product Certification. Any manufacturers applying for the CIC's Green Product Certification should comply with all relevant requirements on CFP quantification stated in the Assessment Guide.
A20: - | B20: The goal of carrying out a CFP quantification is to calculate the potential contribution of a particular product to global warming expressed as CO2e by quantifying all significant GHG emissions and removals over the product’s life cycle.
A21: - | B21: This CFP quantification tool is currently applicable to two product categories according to their individual functions, (i) aluminium extrusion; (ii) aluminium sheet as described in the Assessment Guide. The tool is developed with reference to ISO 14067:2018.
A22: - | B22: According to the principles of the LCA methodology provided in ISO 14040:2006 with Amendment 1:2020 and ISO 14044:2006 with Amendment 2:2020, the quantification and reporting of a CFP should be relevant, complete, consistent, accurate and transparent. The assessment of carbon footprint of Aluminium under the CIC Green Product Certification shall be based on a “cradle-to-gate” approach, covering all GHG emissions and removals arising from raw material acquisition through production, and transportation of the raw materials to the plant, and manufacturing processes. Please note that the GHG emission from transportation of Aluminium to the border of HK (Module A4) is excluded from the system boundary of this assessment. The user input for A4 emission is provided for reporting purpose only and does not affect the benchmarking and rating of the certified product.
A23: - | B23: Users are required to complete the worksheet "CFP Quantification" to access the product's carbon footprint. Guides are provided in the "Instructions" worksheet. Please ensure ALL input cells (i.e. empty light green cells) in the "CFP Quantification" are filled out. User shall fill the worksheet from top to bottom.
A24: - | B24: All the units of "t/reporting period" in this tool refers to "tonne/year", where 1 tonne = 1000 kg.
A25: - | B25: If "Default" factor is selected, Applicants shall review the references of the default values to ensure their applicability prior to use. Applicants are encouraged to prioritize the use of specific life cycle data. In cases where such data is not readily accessible, data from national databases, regional databases, or other recognized sources may be utilized.
A26: Frequently Asked Questions:
A27: - | B27: Question: "Why do many self-calculating cells in my worksheet display a calculation error (for example, "#VALUE" displayed)?
B28: Answer: "#VALUE" appears as long as some necessary input cells have not been completed (i.e., some cells have been left blank).
A29: - | B29: Question: "Why do many self-calculating cells in my worksheet display a "Factor error" ?
B30: Answer: "Factor error" appears as the energy commodity / material was not found in the factor sheets.
B32: © 2025 All rights reserved by CIC
B34: Scheme Owned by Construction Industry Council
B35: 38/F, COS Centre, 56 Tsun Yip Street, Kwun Tong, Kowloon, Hong Kong
B37: Operated by Hong Kong Green Building Council
B38: 1/F, Jockey Club Environmental Building, 77 Tat Chee Avenue, Kowloon Tong, Hong Kong
B39: Phone: +852 3994 8888
B40: Email: cicgpc@hkgbc.org.hk

Sheet Instructions
A1: CFP Quantification - Aluminium
A2: Product category 1: Aluminium extrusion
A3: Product category 2: Aluminium sheet | B3: Date of latest update | I3: 2025-03-24
B4: Reporting period | I4: Please provide corresponding information
B6: G | C6: GENERAL INFORMATION
B8: G1 | C8: G1 General Plant Information | K8: Description
C9: =LEFT($C$8,2)&"." -> G1. | D9: 1 | F9: Plant | K9: Please provide corresponding information
C10: G1. | D10: 2 | F10: Company
C11: G1. | D11: 3 | F11: Country / Region
C12: G1. | D12: 4 | F12: Recycling content | K12: Please provide recycling content of the product(s)
C13: G1. | D13: 5 | F13: Product 1 | G13: Please select product category: 1) Product category 1: Aluminium extrusion 2) Product category 2: Aluminium sheet | K13: Please provide corresponding product information (name, aluminium finishes process, etc.) to be applied under this category. Example: Anodized extruded aluminium profile
C14: G1. | D14: 6 | F14: Product 2
C15: G1. | D15: 7 | F15: Product 3
C16: G1. | D16: 8 | F16: Product 4
C17: G1. | D17: 9 | F17: Product 5
C18: G1. | D18: 10 | F18: Product 6
B19: G2 | C19: G2 System Boundary
C20: =LEFT($C$19,2)&"." -> G2. | D20: 1 | F20: Raw Material extraction and upstream production | I20: [yes, no or n.a.] | K20: "Yes" means that the GHG emissions arising from the process are reported. "No" means that the associated data are not reported. Please provide explanation in a note in the cell for why "No" was selected. "n.a." (not applicable) means that emissions are never generated from this source, or the source does not exist at this plant.
C21: G2. | D21: 2 | F21: Off-site transportation of raw materials to manufacturing plant | I21: [yes, no or n.a.]
C22: G2. | D22: 3 | F22: Product manufacturing - stationary combustion | I22: [yes, no or n.a.]
C23: G2. | D23: 4 | F23: Product manufacturing - mobile combustion | I23: [yes, no or n.a.]
C24: G2. | D24: 5 | F24: Indirect emission from purchased energy | I24: [yes, no or n.a.]
C25: G2. | D25: 6 | F25: Off-site transportation of product to border of HK [for reference only, excluded from assessment boundary] | I25: [yes, no or n.a.]
C26: G2. | D26: 7 | F26: (add other processes as appropriate) | I26: [yes, no or n.a.]
B27: G3 | C27: G3 Semi-fabricated Aluminium Product Production | J27: unit | K27: Total | M27: Product 1 | N27: Product 2 | O27: Product 3 | P27: Product 4 | Q27: Product 5 | R27: Product 6
C28: =LEFT($C$27,2)&"." -> G3. | D28: 1 | F28: Semi-fabricated aluminium product production in weight | J28: [t/reporting period] | K28: =IF(SUM(M28:R28)=0,"",SUM(M28:R28)) ->  | M28: Quantity in weight of each product produced. If there are more than six products within any category, feel free to add additional columns as needed. To add more products, simply copy the entire columns of the last category and insert them between the product columns.
C29: =LEFT($C$27,2)&"." -> G3. | D29: 2 | F29: Proportion | J29: % | K29: =IF(SUM(M29:R29)=0,"",SUM(M29:R29)) ->  | N29: =IF(N28="","",N28/$K$28) -> 
B30: G4 | C30: G4 Purchased Raw Materials Used to Produce Semi-fabricated Aluminium Products (only purchased materials shall be included) | J30: unit | K30: Total | M30: Product 1 | N30: Product 2 | O30: Product 3 | P30: Product 4 | Q30: Product 5 | R30: Product 6
C31: =LEFT($C$30,2)&"." -> G4. | D31: 1 | F31: Bauxite | G31: (alumina refining) | J31: [t/reporting period, dry weight] | K31: =IF(SUM(M31:R31)=0,"",SUM(M31:R31)) ->  | M31: Please input the consumption of bought raw materials for the production of each product. On-site produced materials shall be excluded, to avoid double counting.
C32: G4. | D32: 2 | F32: Caustic soda / Sodium hydroxide | G32: (alumina refining) | J32: [t/reporting period, dry weight] | K32: =IF(SUM(M32:R32)=0,"",SUM(M32:R32)) -> 
C33: G4. | D33: 3 | F33: Calcined lime | G33: (alumina refining) | J33: [t/reporting period, dry weight]
C34: G4. | D34: 4 | F34: Calcined petroleum coke | G34: (anode production) | J34: [t/reporting period, dry weight]
C35: G4. | D35: 5 | F35: Coal tar pitch | G35: (anode production) | J35: [t/reporting period, dry weight]
C36: G4. | D36: 6 | F36: Alumina | G36: (smelting) | J36: [t/reporting period, dry weight]
C37: G4. | D37: 7 | F37: Anode | G37: (smelting) | J37: [t/reporting period, dry weight]
C38: G4. | D38: 8 | F38: Steel (cathode) | G38: (smelting) | J38: [t/reporting period, dry weight]
C39: G4. | D39: 9 | F39: Aluminium fluoride | G39: (smelting) | J39: [t/reporting period, dry weight]
C40: G4. | D40: 10 | F40: Soda ash / Sodium carbonate | G40: (smelting) | J40: [t/reporting period, dry weight]
C41: G4. | D41: 11 | F41: Liquid aluminium | G41: (casting / semi-fabrication) | J41: [t/reporting period, dry weight]
C42: G4. | D42: 12 | F42: Magnesium | G42: (casting / semi-fabrication) | J42: [t/reporting period, dry weight] | K42: =IF(SUM(M42:R42)=0,"",SUM(M42:R42)) -> 
C43: G4. | D43: 13 | F43: Silicone | G43: (casting / semi-fabrication) | J43: [t/reporting period, dry weight]
C44: G4. | D44: 14 | F44: Manganese | G44: (casting / semi-fabrication) | J44: [t/reporting period, dry weight]
C45: G4. | D45: 15 | F45: Copper | G45: (casting / semi-fabrication) | J45: [t/reporting period, dry weight]
C46: G4. | D46: 16 | F46: Aluminium ingot | G46: (casting / semi-fabrication) | J46: [t/reporting period, dry weight]
C47: G4. | D47: 17 | F47: Recycled aluminium | G47: (casting / semi-fabrication) | J47: [t/reporting period, dry weight]
C48: G4. | D48: 18 | F48: Anodising material | G48: (casting / semi-fabrication) | J48: [t/reporting period, dry weight]
C49: G4. | D49: 19 | F49: Coating material | G49: (casting / semi-fabrication) | J49: [t/reporting period, dry weight] | K49: =IF(SUM(M49:R49)=0,"",SUM(M49:R49)) -> 
C50: G4. | D50: 20 | F50: Thermal break - Polyamide | G50: (casting / semi-fabrication) | J50: [t/reporting period, dry weight]
C51: G4. | D51: 21 | F51: Applicant can add raw materials, if applicable. Applicants shall include customized raw materials for calculation purposes in the worksheet titled "Customized Embodied EF" | G51: Others, if applicable | J51: [t/reporting period, dry weight]
C52: G4. | D52: 22 | F52: Energy commodity used in stationary combustion | H52: Energy Commodity usage type : | I52: Proportionally Allocated
C53: G4. | D53: =D52 -> 22 | E53: .1 | F53: Stationary combustion source | H53: Energy commodity : | I53: Please select the appropriate type of energy commodity. Applicants are permitted to include customized energy commodities for calculation purposes in the worksheets titled "Customized Embodied EF," "Customized Fuel EF," and "Customized Fuel LHV." If additional energy commodities need to be included, kindly insert more rows as necessary. | J53: [t/reporting period] | K53: If "Proportionally Allocated" is selected, please enter the total consumption for each of the energy commodity. | L53: =IF(I$52="user input",SUM(M53:R53),"") ->  | M53: =IFERROR(IF($I$45="Proportionally Allocated", $K53*$M37, ""),"") ->  | N53: =IFERROR(IF($I$45="Proportionally Allocated", $K53*$N37, ""),"") ->  | O53: =IFERROR(IF($I$45="Proportionally Allocated", $K53*$O37, ""),"") ->  | P53: =IFERROR(IF($I$45="Proportionally Allocated", $K53*$P37, ""),"") ->  | Q53: =IFERROR(IF($I$45="Proportionally Allocated", $K53*$Q37, ""),"") ->  | R53: =IFERROR(IF($I$45="Proportionally Allocated", $K53*$R37, ""),"") -> 
C54: G4. | D54: =D53 -> 22 | E54: .2 | F54: Stationary combustion source | H54: Energy commodity : | J54: [t/reporting period] | L54: =IF(I$52="user input",SUM(M54:R54),"") ->  | M54: =IFERROR(IF($I$45="Proportionally Allocated", $K54*$M38, ""),"") ->  | N54: =IFERROR(IF($I$45="Proportionally Allocated", $K54*$N38, ""),"") ->  | O54: =IFERROR(IF($I$45="Proportionally Allocated", $K54*$O38, ""),"") ->  | P54: =IFERROR(IF($I$45="Proportionally Allocated", $K54*$P38, ""),"") ->  | Q54: =IFERROR(IF($I$45="Proportionally Allocated", $K54*$Q38, ""),"") ->  | R54: =IFERROR(IF($I$45="Proportionally Allocated", $K54*$R38, ""),"") -> 
C55: G4. | D55: =D54 -> 22 | E55: .3 | F55: Stationary combustion source | H55: Energy commodity : | J55: [t/reporting period] | L55: =IF(I$52="user input",SUM(M55:R55),"") -> 
C56: G4. | D56: =D55 -> 22 | E56: .4 | F56: Stationary combustion source | H56: Energy commodity : | J56: [t/reporting period] | L56: =IF(I$52="user input",SUM(M56:R56),"") -> 
C57: G4. | D57: 23 | F57: On-site transportation | H57: Energy Commodity usage type : | I57: User Input
C58: G4. | D58: =D57 -> 23 | E58: .1 | F58: Mobile combustion source | H58: Energy commodity : | I58: Please select the appropriate type of energy commodity. Applicants are permitted to include customized energy commodities for calculation purposes in the worksheets titled "Customized Embodied EF," "Customized Fuel EF," and "Customized Fuel LHV." If additional energy commodities need to be included, kindly insert more rows as necessary. | J58: [t/reporting period] | M58: If "User Input" is selected, please enter the individual consumption energy commodity for each product.
C59: G4. | D59: =D58 -> 23 | E59: .2 | F59: Mobile combustion source | H59: Energy commodity : | J59: [t/reporting period]
B60: G5 | C60: G5. Power Consumption of Purchased Energy | J60: unit | K60: Total | M60: Product 1 | N60: Product 2 | O60: Product 3 | P60: Product 4 | Q60: Product 5 | R60: Product 6
C61: =LEFT($C$60,2)&"." -> G5. | D61: 1 | F61: Consumption of electricity produced externally | J61: [MWh/reporting period] | K61: Please enter the total consumption of electricity produced externally | M61: =IFERROR(IF($K61="","",$K61*M29),"") -> 
C62: =LEFT($C$60,2)&"." -> G5. | D62: 2 | F62: CO2e per unit of electricity produced externally | J62: [kg CO2e/MWh] | K62: Please enter the specific carbon emission factor for electricity produced externally. Applicants may obtain the carbon emission factor from their power supplier or from relevant national authorities.
B64: A | C64: ASSESSMENT
B65: A1 | C65: PROJECT LIFE CYCLE STAGE : A1 RAW MATERIAL EXTRACTION AND UPSTREAM PRODUCTION
C66: A1.1 CO2e EMISSIONS | J66: unit | K66: Total | M66: Product 1 | N66: Product 2 | O66: Product 3 | P66: Product 4 | Q66: Product 5 | R66: Product 6
C67: A1.1.1 | F67: CO2e from bought raw materials | J67: [t CO2e/reporting period]
F68: Adopting CO2e Factors
D69: =C67 -> A1.1.1 | E69: 1 | F69: Select the type of embodied emissions factor (EF) for calculation: 1) Default 2) Customized If "Customized" is selected, please enter / add customized EF for each of the product under worksheet "Customized Embodied EF". If "Default" is selected, Applicants shall review the references of the default values to ensure their applicability prior to use. Applicants are encouraged to prioritize the use of specific life cycle data. In cases where such data is not readily accessible, data from national databases, regional databases, or other recognized sources may be utilized. | H69: =F31 -> Bauxite | I69: =G31 -> (alumina refining) | J69: [t CO2e/reporting period]
D70: =C67 -> A1.1.1 | E70: 2 | H70: =F32 -> Caustic soda / Sodium hydroxide | I70: (alumina refining) | J70: [t CO2e/reporting period]
D71: =C67 -> A1.1.1 | E71: 3 | H71: Calcined lime | I71: (alumina refining) | J71: [t CO2e/reporting period]
D72: =C67 -> A1.1.1 | E72: 4 | H72: Calcined petroleum coke | I72: (anode production) | J72: [t CO2e/reporting period]
D73: =D72 -> A1.1.1 | E73: 5 | H73: Coal tar pitch | I73: (anode production) | J73: [t CO2e/reporting period]
D74: =D73 -> A1.1.1 | E74: 6 | H74: Alumina | I74: (smelting) | J74: [t CO2e/reporting period]
D75: =D74 -> A1.1.1 | E75: 7 | H75: Anode | I75: (smelting) | J75: [t CO2e/reporting period]
D76: =D75 -> A1.1.1 | E76: 8 | H76: Steel (cathode) | I76: (smelting) | J76: [t CO2e/reporting period]
D77: A1.1.1 | E77: 9 | H77: Aluminium fluoride | I77: (smelting) | J77: [t CO2e/reporting period]
D78: A1.1.1 | E78: 10 | H78: Soda ash / Sodium carbonate | I78: (smelting) | J78: [t CO2e/reporting period]
D79: A1.1.1 | E79: 11 | H79: Liquid aluminium | I79: (casting / semi-fabrication) | J79: [t CO2e/reporting period]
D80: A1.1.1 | E80: 12 | H80: Magnesium | I80: (casting / semi-fabrication) | J80: [t CO2e/reporting period]
D81: A1.1.1 | E81: 13 | H81: Silicone | I81: (casting / semi-fabrication) | J81: [t CO2e/reporting period]
D82: A1.1.1 | E82: 14 | H82: Manganese | I82: (casting / semi-fabrication) | J82: [t CO2e/reporting period]
D83: A1.1.1 | E83: 15 | H83: Copper | I83: (casting / semi-fabrication) | J83: [t CO2e/reporting period]
D84: A1.1.1 | E84: 16 | H84: Aluminium ingot | I84: (casting / semi-fabrication) | J84: [t CO2e/reporting period]
D85: A1.1.1 | E85: 17 | F85: No default embodied carbon emissions factor (EF) is provided. Only customized embodied carbon EF can can be selected. If "Customized" is selected, please enter / add customized EF for each of the product under worksheet "Customized Embodied EF". Applicants are encouraged to prioritize the use of specific life cycle data. In cases where such data is not readily accessible, data from national databases, regional databases, or other recognized sources may be utilized. | H85: Recycled aluminium | I85: (casting / semi-fabrication) | J85: [t CO2e/reporting period]
D86: =D75 -> A1.1.1 | E86: 18 | H86: Anodising material | I86: (casting / semi-fabrication) | J86: [t CO2e/reporting period]
D87: =D86 -> A1.1.1 | E87: 19 | H87: =F49 -> Coating material | I87: (casting / semi-fabrication) | J87: [t CO2e/reporting period]
D88: =D77 -> A1.1.1 | E88: 20 | H88: Thermal break - Polyamide | I88: (casting / semi-fabrication) | J88: [t CO2e/reporting period]
D89: =D88 -> A1.1.1 | E89: 21 | H89: Applicant can add bought raw materials, if applicable | I89: [refer to section G4] | J89: [t CO2e/reporting period]
C90: A1.1.2 | F90: CO2e from bought energy commodity | J90: [t CO2e/reporting period]
F91: Adopting CO2e Factors | H91: [Please insert additional rows if more energy commodities are included]
D92: =C90 -> A1.1.2 | E92: .1 | F92: Select the type of embodied EF for calculation: 1) Default 2) Customized If "Customized" is selected, please enter / add customized EF for each of the product under worksheet "Customized Embodied EF". If "Default" is selected, Applicants shall review the references of the default values to ensure their applicability prior to use. Applicants are encouraged to prioritize the use of specific life cycle data. In cases where such data is not readily accessible, data from national databases, regional databases, or other recognized sources may be utilized. | H92: =H58 -> Energy commodity : | I92: Please copy energy commodity from G4.22 to G4.23. Please insert additional rows if more energy commodities are included | J92: [t CO2e/reporting period]
D93: =D92 -> A1.1.2 | E93: .2 | H93: =H59 -> Energy commodity : | J93: [t CO2e/reporting period]
D94: =D93 -> A1.1.2 | E94: .3 | H94: =H93 -> Energy commodity : | J94: [t CO2e/reporting period]
D95: =D94 -> A1.1.2 | E95: .4 | H95: =H94 -> Energy commodity : | J95: [t CO2e/reporting period]
D96: A1.1.2 | E96: .5 | H96: Energy commodity : | J96: [t CO2e/reporting period]
D97: =D96 -> A1.1.2 | E97: .6 | H97: =H59 -> Energy commodity : | J97: [t CO2e/reporting period]
C98: A1.2.5 | I98: Total CO2e in Stage A1 | J98: [t CO2e/reporting period]
B99: A2 | C99: PROJECT LIFE CYCLE STAGE: A2 OFF-SITE TRANSPORTATION OF RAW MATERIALS TO MANUFACTURING PLANT
C100: A2.1 CO2e EMISSIONS | J100: unit | K100: Total | M100: Product 1 | N100: Product 2 | O100: Product 3 | P100: Product 4 | Q100: Product 5 | R100: Product 6
C101: A2.1.1 | F101: CO2e from off-site transportation of raw material to manufacturing plant
D102: =C101 -> A2.1.1 | E102: .1 | F102: CO2e calculated using either 1) WRI & WBCSD's protocol OR 2) EPD & EMSD's carbon audit tool) | J102: [t CO2e/reporting period] | M102: Please enter the GHG emission from stage A2 (from off-site transportation of raw material to manufacturing plant) for each of the product. GHG emission can be calculated by required information such as mode of transport, travelled distance, fuel used with following tool: 1) WRI & WBCSD's protocol, namely “GHG Emissions from Transport or Mobile Sources” which can be accessible at: https://ghgprotocol.org/calculation-tools-and-guidance, or 2) EPD & EMSD carbon audit tool, which can be accessible at: https://cnsd.gov.hk/en/green-business-and-industry/carbon-audit/ If the travelled distance needs to be entered into a separate tool, please use the actual travelled distance rather than the straight-line distance. Additionally, kindly provide supporting documentation, such as a map indicating the distance, for verification purposes.
C103: A2.1.2 | I103: Total CO2e in Stage A2 | J103: [t CO2e/reporting period] | N103: =IF(AND(N102=""),"",(N102)) ->  | O103: =IF(AND(O102=""),"",(O102)) -> 
B104: A3 | C104: PROJECT LIFE CYCLE STAGE: A3 PRODUCT MANUFACTURING AND FABRICATION (WITHOUT WASTAGE)
C105: A3.1 CO2e EMISSIONS | J105: unit | K105: Total | M105: Product 1 | N105: Product 2 | O105: Product 3 | P105: Product 4 | Q105: Product 5 | R105: Product 6
C106: A3.1.1 | F106: CO2e from industrial processes
D107: =C106 -> A3.1.1 | E107: .1 | F107: CO2e from electrolysis | J107: [t CO2e/reporting period]
D108: =D107&E107 -> A3.1.1.1 | E108: .1 | F108: Type of Process Anode / Paste | H108: Type of Anode Cell Technology | I108: Adopting CO2e Factors
D109: =D108 -> A3.1.1.1 | E109: .2 | F109: Select the type of Process Anode / Paste 1) Prebake process anode 2) Soderberg process paste | H109: If "Prebake process anode" is selected as the process anode, please select the type Anode Cell Technology. 1) Centre Worked Prebake (CWPB) 2) Side Worked Prebake (SWPB) If "Soderberg process paste" is selected as the process anode, please select the type Anode Cell Technology. 1) Vertical Stud Soderberg (VSS) 2) Horizontal Stud Soderberg (HSS) | I109: Select the type of GHG emission factor for calculation: 1) Default 2) Customized If "Customized" is selected, please enter / add customized EF for each of the product under worksheet "Customized Process Factors". If "Default" is selected, Applicants shall review the references of the default values to ensure their applicability prior to use. Applicants are encouraged to prioritize the use of specific life cycle data. In cases where such data is not readily accessible, data from national databases, regional databases, or other recognized sources may be utilized. | J109: [t CO2e/reporting period]
D110: =D107 -> A3.1.1 | E110: .2 | F110: CO2e from soda ash consumption
D111: =D110&E110 -> A3.1.1.2 | E111: .1 | F111: If soda ash is used smelting process (e.g. flue gas scrubbing) | I111: Adopting CO2e Factors
D112: =D111 -> A3.1.1.2 | E112: .2 | F112: Please indicate if Soda ash / Sodium carbonate is used in smelting process (e.g. flue gas scrubbing) 1) "Y" means yes 2) "N" means no | I112: Select the type of GHG emission factor for calculation: 1) Default 2) Customized If "Customized" is selected, please enter / add customized EF for each of the product under worksheet "Customized Process Factors". If "Default" is selected, Applicants shall review the references of the default values to ensure their applicability prior to use. Applicants are encouraged to prioritize the use of specific life cycle data. In cases where such data is not readily accessible, data from national databases, regional databases, or other recognized sources may be utilized. | J112: [t CO2e/reporting period]
D113: =D110 -> A3.1.1 | E113: .3 | F113: CO2e from petroleum coke calcination (auxiliary process)
D114: =D113&E113 -> A3.1.1.3 | E114: .1 | F114: If coke calcining operation is included in manufacturing process | I114: Adopting CO2e Factors
D115: =D114 -> A3.1.1.3 | E115: .2 | F115: Please indicate if the auxiliary process - petroleum coke production is included in manufacturing 1) "Y" means yes 2) "N" means no | I115: Select the type of GHG emission factor for calculation: 1) Default 2) Customized If "Customized" is selected, please enter / add customized EF for each of the product under worksheet "Customized Process Factors". If "Default" is selected, Applicants shall review the references of the default values to ensure their applicability prior to use. Applicants are encouraged to prioritize the use of specific life cycle data. In cases where such data is not readily accessible, data from national databases, regional databases, or other recognized sources may be utilized. | J115: [t CO2e/reporting period]
D116: =C$106 -> A3.1.1 | E116: .4 | F116: CO2e from lime production (auxiliary process) | H116: [please refer to worksheet "3.1.1 Lime Production"] | J116: [t CO2e/reporting period]
C117: A3.1.2 | F117: CO2e from product manufacturing (stationary combustion sources) | J117: [t CO2e/reporting period]
F118: Adopting CO2e Factors | G118: Adopting LHV Factors | H118: [Please insert additional rows if more energy commodities are included]
D119: =C117 -> A3.1.2 | E119: .1 | F119: Select the type of GHG emission factor for calculation: 1) Default 2) Customized If "Customized" is selected, please enter / add customized EF for each of the product under worksheet "Customized Fuel EF". If "Default" is selected, Applicants shall review the references of the default values to ensure their applicability prior to use. Applicants are encouraged to prioritize the use of specific life cycle data. In cases where such data is not readily accessible, data from national databases, regional databases, or other recognized sources may be utilized. | G119: Select the type of LHV factor for calculation: 1) Default 2) Customized If "Customized" is selected, please enter / add customized LHV for each of the product under worksheet "Customized Fuel LHV". If "Default" is selected, Applicants shall review the references of the default values to ensure their applicability prior to use. Applicants are encouraged to prioritize the use of specific life cycle data. In cases where such data is not readily accessible, data from national databases, regional databases, or other recognized sources may be utilized. | H119: Please enter the type of energy commodity utilized from stationary combustion sources for production manufacturing, including but not limited to, alumina refining, electrolysis, ingot casting, scrap remelting & casting, semi-fabrication & finishing (forging, casting, extrusion, rolling, heat treatment, surface treatment, coating, etc), on-site power generation, on-site gas generation, equipment, and room heating / cooling. | J119: [t CO2e/reporting period]
D120: =D119 -> A3.1.2 | E120: .2 | J120: [t CO2e/reporting period]
D121: =D120 -> A3.1.2 | E121: .3 | J121: [t CO2e/reporting period]
D122: =C117 -> A3.1.2 | E122: .4 | J122: [t CO2e/reporting period]
C123: A3.1.3 | F123: CO2e from on-site transportation (mobile combustion sources) | H123: CO2e from on-site power generation | I123: CO2e from on-site power generation | J123: [t CO2e/reporting period]
F124: Adopting CO2e Factors | G124: Adopting LHV Factors | H124: [Please insert additional rows if more energy commodities are included]
D125: =C123 -> A3.1.3 | E125: .1 | F125: Select the type of GHG emission factor for calculation: 1) Default 2) Customized If "Customized" is selected, please enter / add customized EF for each of the product under worksheet "Customized Fuel EF". If "Default" is selected, Applicants shall review the references of the default values to ensure their applicability prior to use. Applicants are encouraged to prioritize the use of specific life cycle data. In cases where such data is not readily accessible, data from national databases, regional databases, or other recognized sources may be utilized. | G125: Select the type of LHV factor for calculation: 1) Default 2) Customized If "Customized" is selected, please enter / add customized LHV for each of the product under worksheet "Customized Fuel LHV". If "Default" is selected, Applicants shall review the references of the default values to ensure their applicability prior to use. Applicants are encouraged to prioritize the use of specific life cycle data. In cases where such data is not readily accessible, data from national databases, regional databases, or other recognized sources may be utilized. | H125: Please enter the type of energy commodity utilized from mobile combustion sources for on-site transportation. | J125: [t CO2e/reporting period]
D126: =C123 -> A3.1.3 | E126: .2 | J126: [t CO2e/reporting period]
C127: A3.1.4 | F127: Total CO2e from fuels combustion | J127: [t CO2e/reporting period]
C128: A3.1.5 | F128: CO2e from external electricity production | J128: [t CO2e/reporting period]
C129: A3.1.6 | I129: Total CO2e in Stage A3 | J129: [t CO2e/reporting period]
B130: A4 | C130: PROJECT LIFE CYCLE STAGE: A4 OFF-SITE TRANSPORTATION OF product to border of HK
C131: A4.1 CO2e EMISSIONS | J131: unit | K131: Total | M131: Product 1 | N131: Product 2 | O131: Product 3 | P131: Product 4 | Q131: Product 5 | R131: Product 6
C132: A4.1.1 | F132: CO2e from off-site transportation of product to border of HK (excluded from assessment boundary)
D133: =C132 -> A4.1.1 | E133: .1 | F133: CO2e calculated using either 1) WRI & WBCSD's protocol OR 2) EPD & EMSD's carbon audit tool) | J133: [t CO2e/reporting period] | M133: Please enter the GHG emission from stage A4 (from off-site transportation of product to border of HK) for each of the product. GHG emission can be calculated by required information such as mode of transport, travelled distance, fuel used with following tool: 1) WRI & WBCSD's protocol, namely “GHG Emissions from Transport or Mobile Sources” which can be accessible at: https://ghgprotocol.org/calculation-tools-and-guidance, or 2) EPD & EMSD carbon audit tool, which can be accessible at: https://cnsd.gov.hk/en/green-business-and-industry/carbon-audit/ If the travelled distance needs to be entered into a separate tool, please use the actual travelled distance rather than the straight-line distance. Additionally, kindly provide supporting documentation, such as a map indicating the distance, for verification purposes.
C134: A4.1.2 | I134: Total CO2e in Stage A4 | J134: [t CO2e/reporting period]
B136: P | C136: PERFORMANCE INDICATORS | J136: unit | K136: Total | M136: Product 1 | N136: Product 2 | O136: Product 3 | P136: Product 4 | Q136: Product 5 | R136: Product 6
B137: P | C137: =LEFT($B$136,2) -> P | D137: 1 | F137: Gross CO2e (A1-A3) | J137: [t CO2e/reporting period]
C138: P | D138: =D137 -> 1 | E138: .1 | F138: A1 Raw material extraction and upstream production | J138: [t CO2e/reporting period]
C139: P | D139: =D138 -> 1 | E139: .2 | F139: A2 Off-site transportation of raw materials to manufacturing plant | J139: [t CO2e/reporting period]
C140: P | D140: =D139 -> 1 | E140: .3 | F140: A3 Product manufacturing and fabrication (without wastage) | J140: [t CO2e/reporting period]
C141: P | D141: =D140 -> 1 | E141: .4 | F141: A4 Off-site transportation of product to border of HK (for reference only, excluded from assessment boundary) | J141: [t CO2e/reporting period]
C142: P | D142: 2 | F142: Specific gross CO2e per t of semi-fabricated aluminium product produced (A1-A3) | J142: [t CO2e/t Al prod] | K142: =IF(K137="","",(K137/$K$28)) ->  | M142: =IF(M$28=0,"n.a.",IF(M137="","",(M137/M$28))) ->  | N142: =IF(N$28=0,"n.a.",IF(N137="","",(N137/N$28))) -> n.a. | O142: n.a. | P142: n.a. | Q142: n.a. | R142: =IF(R$28=0,"n.a.",IF(R137="","",(R137/R$28))) -> n.a.
C143: P | D143: =D142 -> 2 | E143: .1 | F143: A1 Raw material extraction and upstream production | J143: [t CO2e/t Al prod]
C144: P | D144: =D143 -> 2 | E144: .2 | F144: A2 Off-site transportation of raw materials to manufacturing plant | J144: [t CO2e/t Al prod]
C145: P | D145: =D143 -> 2 | E145: .3 | F145: A3 Product manufacturing and fabrication (without wastage) | J145: [t CO2e/t Al prod]
C146: P | D146: =D144 -> 2 | E146: .4 | F146: A4 Off-site transportation of product to border of HK (for reference only, excluded from assessment boundary) | J146: [t CO2e/t Al prod]

Sheet CFP Quantification
A1: CFP Quantification - Aluminium
A2: Product category 1: Aluminium extrusion
A3: Product category 2: Aluminium sheet | B3: Date of latest update | I3: 2025-03-24
B4: Reporting period
B6: G | C6: GENERAL INFORMATION
B8: G1 | C8: G1 General Plant Information | K8: Description
C9: =LEFT($C$8,2)&"." -> G1. | D9: 1 | F9: Plant
C10: G1. | D10: 2 | F10: Company
C11: G1. | D11: 3 | F11: Country / Region
C12: G1. | D12: 4 | F12: Recycling content
C13: G1. | D13: 5 | F13: Product 1
C14: G1. | D14: 6 | F14: Product 2
C15: G1. | D15: 7 | F15: Product 3
C16: G1. | D16: 8 | F16: Product 4
C17: G1. | D17: 9 | F17: Product 5
C18: G1. | D18: 10 | F18: Product 6
B19: G2 | C19: G2 System Boundary
C20: =LEFT($C$19,2)&"." -> G2. | D20: 1 | F20: Raw Material extraction and upstream production | I20: [yes, no or n.a.]
C21: G2. | D21: 2 | F21: Off-site transportation of raw materials to manufacturing plant | I21: [yes, no or n.a.]
C22: G2. | D22: 3 | F22: Product manufacturing - stationary combustion | I22: [yes, no or n.a.]
C23: G2. | D23: 4 | F23: Product manufacturing - mobile combustion | I23: [yes, no or n.a.]
C24: G2. | D24: 5 | F24: Indirect emission from purchased energy | I24: [yes, no or n.a.]
C25: G2. | D25: 6 | F25: Off-site transportation of product to border of HK [for reference only, excluded from assessment boundary] | I25: [yes, no or n.a.]
C26: G2. | D26: 7 | F26: (add other processes as appropriate) | I26: [yes, no or n.a.]
B27: G3 | C27: G3 Semi-fabricated Aluminium Product Production | J27: unit | K27: Total | M27: Product 1 | N27: Product 2 | O27: Product 3 | P27: Product 4 | Q27: Product 5 | R27: Product 6
C28: =LEFT($C$27,2)&"." -> G3. | D28: 1 | F28: Semi-fabricated aluminium product production in weight | J28: [t/reporting period] | K28: =IF(SUM(M28:R28)=0,"",SUM(M28:R28)) -> 
C29: =LEFT($C$27,2)&"." -> G3. | D29: 2 | F29: Proportion | J29: % | K29: =IF(SUM(M29:R29)=0,"",SUM(M29:R29)) ->  | M29: =IF(M28="","",M28/$K$28) -> 
B30: G4 | C30: G4 Purchased Raw Materials Used to Produce Semi-fabricated Aluminium Products (only purchased materials shall be included) | J30: unit | K30: Total | M30: Product 1 | N30: Product 2 | O30: Product 3 | P30: Product 4 | Q30: Product 5 | R30: Product 6
C31: =LEFT($C$30,2)&"." -> G4. | D31: 1 | F31: Bauxite | G31: (alumina refining) | J31: [t/reporting period, dry weight] | K31: =IF(SUM(M31:R31)=0,"",SUM(M31:R31)) -> 
C32: G4. | D32: 2 | F32: Caustic soda / Sodium hydroxide | G32: (alumina refining) | J32: [t/reporting period, dry weight] | K32: =IF(SUM(M32:R32)=0,"",SUM(M32:R32)) -> 
C33: G4. | D33: 3 | F33: Calcined lime | G33: (alumina refining) | J33: [t/reporting period, dry weight]
C34: G4. | D34: 4 | F34: Calcined petroleum coke | G34: (anode production) | J34: [t/reporting period, dry weight]
C35: G4. | D35: 5 | F35: Coal tar pitch | G35: (anode production) | J35: [t/reporting period, dry weight]
C36: G4. | D36: 6 | F36: Alumina | G36: (smelting) | J36: [t/reporting period, dry weight]
C37: G4. | D37: 7 | F37: Anode | G37: (smelting) | J37: [t/reporting period, dry weight]
C38: G4. | D38: 8 | F38: Steel (cathode) | G38: (smelting) | J38: [t/reporting period, dry weight]
C39: =LEFT($C$30,2)&"." -> G4. | D39: 9 | F39: Aluminium fluoride | G39: (smelting) | J39: [t/reporting period, dry weight]
C40: G4. | D40: 10 | F40: Soda ash / Sodium carbonate | G40: (smelting) | J40: [t/reporting period, dry weight]
C41: G4. | D41: 11 | F41: Liquid aluminium | G41: (casting / semi-fabrication) | J41: [t/reporting period, dry weight]
C42: G4. | D42: 12 | F42: Magnesium | G42: (casting / semi-fabrication) | J42: [t/reporting period, dry weight] | K42: =IF(SUM(M42:R42)=0,"",SUM(M42:R42)) -> 
C43: G4. | D43: 13 | F43: Silicone | G43: (casting / semi-fabrication) | J43: [t/reporting period, dry weight]
C44: G4. | D44: 14 | F44: Manganese | G44: (casting / semi-fabrication) | J44: [t/reporting period, dry weight]
C45: G4. | D45: 15 | F45: Copper | G45: (casting / semi-fabrication) | J45: [t/reporting period, dry weight]
C46: G4. | D46: 16 | F46: Aluminium ingot | G46: (casting / semi-fabrication) | J46: [t/reporting period, dry weight]
C47: G4. | D47: 17 | F47: Recycled aluminium | G47: (casting / semi-fabrication) | J47: [t/reporting period, dry weight]
C48: G4. | D48: 18 | F48: Anodising material | G48: (casting / semi-fabrication) | J48: [t/reporting period, dry weight]
C49: G4. | D49: 19 | F49: Coating material | G49: (casting / semi-fabrication) | J49: [t/reporting period, dry weight] | K49: =IF(SUM(M49:R49)=0,"",SUM(M49:R49)) -> 
C50: G4. | D50: 20 | F50: Thermal break - Polyamide | G50: (casting / semi-fabrication) | J50: [t/reporting period, dry weight]
C51: G4. | D51: 21 | G51: Others, if applicable | H51: [refer to "Customized Embodied EF"] | J51: [t/reporting period, dry weight]
C52: =LEFT($C$30,2)&"." -> G4. | D52: 22 | F52: Energy commodity used in stationary combustion | H52: Energy Commodity usage type :
C53: G4. | D53: =D52 -> 22 | E53: .1 | F53: Stationary combustion source | H53: Energy commodity : | J53: [t/reporting period] | L53: =IF(I$52="user input",SUM(M53:R53),"") -> 
C54: G4. | D54: =D53 -> 22 | E54: .2 | F54: Stationary combustion source | H54: Energy commodity : | J54: [t/reporting period] | L54: =IF(I$52="user input",SUM(M54:R54),"") -> 
C55: G4. | D55: =D54 -> 22 | E55: .3 | F55: Stationary combustion source | H55: Energy commodity : | J55: [t/reporting period] | L55: =IF(I$52="user input",SUM(M55:R55),"") -> 
C56: G4. | D56: =D55 -> 22 | E56: .4 | F56: Stationary combustion source | H56: Energy commodity : | J56: [t/reporting period] | L56: =IF(I$52="user input",SUM(M56:R56),"") -> 
C57: G4. | D57: 23 | F57: On-site transportation | H57: Energy Commodity usage type :
C58: G4. | D58: =D57 -> 23 | E58: .1 | F58: Mobile combustion source | H58: Energy commodity : | J58: [t/reporting period] | L58: =IF(I$57="user input",SUM(M58:R58),"") -> 
C59: G4. | D59: =D58 -> 23 | E59: .2 | F59: Mobile combustion source | H59: Energy commodity : | J59: [t/reporting period] | L59: =IF(I$57="user input",SUM(M59:R59),"") -> 
B60: G5 | C60: G5. Power Consumption of Purchased Energy | J60: unit | K60: Total | M60: Product 1 | N60: Product 2 | O60: Product 3 | P60: Product 4 | Q60: Product 5 | R60: Product 6
C61: =LEFT($C$60,2)&"." -> G5. | D61: 1 | F61: Consumption of electricity produced externally | J61: [MWh/reporting period] | M61: =IFERROR(IF($K61="","",$K61*M29),"") -> 
C62: =LEFT($C$60,2)&"." -> G5. | D62: 2 | F62: CO2e per unit of electricity produced externally | J62: [kg CO2e/MWh]
B64: A | C64: ASSESSMENT
B65: A1 | C65: PROJECT LIFE CYCLE STAGE : A1 RAW MATERIAL EXTRACTION AND UPSTREAM PRODUCTION
C66: A1.1 CO2e EMISSIONS | J66: unit | K66: Total | M66: Product 1 | N66: Product 2 | O66: Product 3 | P66: Product 4 | Q66: Product 5 | R66: Product 6
C67: A1.1.1 | F67: CO2e from bought raw materials | J67: [t CO2e/reporting period] | K67: =SUM(M67:R67) -> 0 | M67: =SUMIF($D:$D,$C67,M:M) -> 0 | N67: 0 | O67: 0 | P67: 0 | Q67: 0 | R67: 0
F68: Adopting CO2e Factors
D69: =C67 -> A1.1.1 | E69: 1 | H69: =F31 -> Bauxite | I69: =G31 -> (alumina refining) | J69: [t CO2e/reporting period] | K69: =IF(SUM(M69:R69)=0,"",SUM(M69:R69)) ->  | M69: =IFERROR(SUMIFS(M:M,$F:$F,$H69,$C:$C,"G4.")*IF($F69="Customized", IF(_xlfn.XLOOKUP($H69,'Customized Embodied EF'!$B:$B,'Customized Embodied EF'!E:E,"error",0)="","Factor error",_xlfn.XLOOKUP($H69,'Customized Embodied EF'!$B:$B,'Customized Embodied EF'!E:E,"error",0)),_xlfn.XLOOKUP($H69,'Customized Embodied EF'!$B:$B,'Customized Embodied EF'!$D:$D,"error",0)),"Factor error") -> 0 | N69: =IFERROR(SUMIFS(N:N,$F:$F,$H69,$C:$C,"G4.")*IF($F69="Customized", IF(_xlfn.XLOOKUP($H69,'Customized Embodied EF'!$B:$B,'Customized Embodied EF'!F:F,"error",0)="","Factor error",_xlfn.XLOOKUP($H69,'Customized Embodied EF'!$B:$B,'Customized Embodied EF'!F:F,"error",0)),_xlfn.XLOOKUP($H69,'Customized Embodied EF'!$B:$B,'Customized Embodied EF'!$D:$D,"error",0)),"Factor error") -> 0 | O69: =IFERROR(SUMIFS(O:O,$F:$F,$H69,$C:$C,"G4.")*IF($F69="Customized", IF(_xlfn.XLOOKUP($H69,'Customized Embodied EF'!$B:$B,'Customized Embodied EF'!G:G,"error",0)="","Factor error",_xlfn.XLOOKUP($H69,'Customized Embodied EF'!$B:$B,'Customized Embodied EF'!G:G,"error",0)),_xlfn.XLOOKUP($H69,'Customized Embodied EF'!$B:$B,'Customized Embodied EF'!$D:$D,"error",0)),"Factor error") -> 0 | P69: =IFERROR(SUMIFS(P:P,$F:$F,$H69,$C:$C,"G4.")*IF($F69="Customized", IF(_xlfn.XLOOKUP($H69,'Customized Embodied EF'!$B:$B,'Customized Embodied EF'!H:H,"error",0)="","Factor error",_xlfn.XLOOKUP($H69,'Customized Embodied EF'!$B:$B,'Customized Embodied EF'!H:H,"error",0)),_xlfn.XLOOKUP($H69,'Customized Embodied EF'!$B:$B,'Customized Embodied EF'!$D:$D,"error",0)),"Factor error") -> 0 | Q69: =IFERROR(SUMIFS(Q:Q,$F:$F,$H69,$C:$C,"G4.")*IF($F69="Customized", IF(_xlfn.XLOOKUP($H69,'Customized Embodied EF'!$B:$B,'Customized Embodied EF'!I:I,"error",0)="","Factor error",_xlfn.XLOOKUP($H69,'Customized Embodied EF'!$B:$B,'Customized Embodied EF'!I:I,"error",0)),_xlfn.XLOOKUP($H69,'Customized Embodied EF'!$B:$B,'Customized Embodied EF'!$D:$D,"error",0)),"Factor error") -> 0 | R69: =IFERROR(SUMIFS(R:R,$F:$F,$H69,$C:$C,"G4.")*IF($F69="Customized", IF(_xlfn.XLOOKUP($H69,'Customized Embodied EF'!$B:$B,'Customized Embodied EF'!J:J,"error",0)="","Factor error",_xlfn.XLOOKUP($H69,'Customized Embodied EF'!$B:$B,'Customized Embodied EF'!J:J,"error",0)),_xlfn.XLOOKUP($H69,'Customized Embodied EF'!$B:$B,'Customized Embodied EF'!$D:$D,"error",0)),"Factor error") -> 0
D70: =C67 -> A1.1.1 | E70: 2 | H70: Caustic soda / Sodium hydroxide | I70: (alumina refining) | J70: [t CO2e/reporting period] | M70: =IFERROR(SUMIFS(M:M,$F:$F,$H70,$C:$C,"G4.")*IF($F70="Customized", IF(_xlfn.XLOOKUP($H70,'Customized Embodied EF'!$B:$B,'Customized Embodied EF'!E:E,"error",0)="","Factor error",_xlfn.XLOOKUP($H70,'Customized Embodied EF'!$B:$B,'Customized Embodied EF'!E:E,"error",0)),_xlfn.XLOOKUP($H70,'Customized Embodied EF'!$B:$B,'Customized Embodied EF'!$D:$D,"error",0)),"Factor error") -> 0 | N70: =IFERROR(SUMIFS(N:N,$F:$F,$H70,$C:$C,"G4.")*IF($F70="Customized", IF(_xlfn.XLOOKUP($H70,'Customized Embodied EF'!$B:$B,'Customized Embodied EF'!F:F,"error",0)="","Factor error",_xlfn.XLOOKUP($H70,'Customized Embodied EF'!$B:$B,'Customized Embodied EF'!F:F,"error",0)),_xlfn.XLOOKUP($H70,'Customized Embodied EF'!$B:$B,'Customized Embodied EF'!$D:$D,"error",0)),"Factor error") -> 0 | O70: =IFERROR(SUMIFS(O:O,$F:$F,$H70,$C:$C,"G4.")*IF($F70="Customized", IF(_xlfn.XLOOKUP($H70,'Customized Embodied EF'!$B:$B,'Customized Embodied EF'!G:G,"error",0)="","Factor error",_xlfn.XLOOKUP($H70,'Customized Embodied EF'!$B:$B,'Customized Embodied EF'!G:G,"error",0)),_xlfn.XLOOKUP($H70,'Customized Embodied EF'!$B:$B,'Customized Embodied EF'!$D:$D,"error",0)),"Factor error") -> 0 | P70: =IFERROR(SUMIFS(P:P,$F:$F,$H70,$C:$C,"G4.")*IF($F70="Customized", IF(_xlfn.XLOOKUP($H70,'Customized Embodied EF'!$B:$B,'Customized Embodied EF'!H:H,"error",0)="","Factor error",_xlfn.XLOOKUP($H70,'Customized Embodied EF'!$B:$B,'Customized Embodied EF'!H:H,"error",0)),_xlfn.XLOOKUP($H70,'Customized Embodied EF'!$B:$B,'Customized Embodied EF'!$D:$D,"error",0)),"Factor error") -> 0 | Q70: =IFERROR(SUMIFS(Q:Q,$F:$F,$H70,$C:$C,"G4.")*IF($F70="Customized", IF(_xlfn.XLOOKUP($H70,'Customized Embodied EF'!$B:$B,'Customized Embodied EF'!I:I,"error",0)="","Factor error",_xlfn.XLOOKUP($H70,'Customized Embodied EF'!$B:$B,'Customized Embodied EF'!I:I,"error",0)),_xlfn.XLOOKUP($H70,'Customized Embodied EF'!$B:$B,'Customized Embodied EF'!$D:$D,"error",0)),"Factor error") -> 0 | R70: =IFERROR(SUMIFS(R:R,$F:$F,$H70,$C:$C,"G4.")*IF($F70="Customized", IF(_xlfn.XLOOKUP($H70,'Customized Embodied EF'!$B:$B,'Customized Embodied EF'!J:J,"error",0)="","Factor error",_xlfn.XLOOKUP($H70,'Customized Embodied EF'!$B:$B,'Customized Embodied EF'!J:J,"error",0)),_xlfn.XLOOKUP($H70,'Customized Embodied EF'!$B:$B,'Customized Embodied EF'!$D:$D,"error",0)),"Factor error") -> 0
D71: =C67 -> A1.1.1 | E71: 3 | H71: Calcined lime | I71: (alumina refining) | J71: [t CO2e/reporting period] | M71: =IFERROR(SUMIFS(M:M,$F:$F,$H71,$C:$C,"G4.")*IF($F71="Customized", IF(_xlfn.XLOOKUP($H71,'Customized Embodied EF'!$B:$B,'Customized Embodied EF'!E:E,"error",0)="","Factor error",_xlfn.XLOOKUP($H71,'Customized Embodied EF'!$B:$B,'Customized Embodied EF'!E:E,"error",0)),_xlfn.XLOOKUP($H71,'Customized Embodied EF'!$B:$B,'Customized Embodied EF'!$D:$D,"error",0)),"Factor error") -> 0 | N71: =IFERROR(SUMIFS(N:N,$F:$F,$H71,$C:$C,"G4.")*IF($F71="Customized", IF(_xlfn.XLOOKUP($H71,'Customized Embodied EF'!$B:$B,'Customized Embodied EF'!F:F,"error",0)="","Factor error",_xlfn.XLOOKUP($H71,'Customized Embodied EF'!$B:$B,'Customized Embodied EF'!F:F,"error",0)),_xlfn.XLOOKUP($H71,'Customized Embodied EF'!$B:$B,'Customized Embodied EF'!$D:$D,"error",0)),"Factor error") -> 0 | O71: =IFERROR(SUMIFS(O:O,$F:$F,$H71,$C:$C,"G4.")*IF($F71="Customized", IF(_xlfn.XLOOKUP($H71,'Customized Embodied EF'!$B:$B,'Customized Embodied EF'!G:G,"error",0)="","Factor error",_xlfn.XLOOKUP($H71,'Customized Embodied EF'!$B:$B,'Customized Embodied EF'!G:G,"error",0)),_xlfn.XLOOKUP($H71,'Customized Embodied EF'!$B:$B,'Customized Embodied EF'!$D:$D,"error",0)),"Factor error") -> 0 | P71: =IFERROR(SUMIFS(P:P,$F:$F,$H71,$C:$C,"G4.")*IF($F71="Customized", IF(_xlfn.XLOOKUP($H71,'Customized Embodied EF'!$B:$B,'Customized Embodied EF'!H:H,"error",0)="","Factor error",_xlfn.XLOOKUP($H71,'Customized Embodied EF'!$B:$B,'Customized Embodied EF'!H:H,"error",0)),_xlfn.XLOOKUP($H71,'Customized Embodied EF'!$B:$B,'Customized Embodied EF'!$D:$D,"error",0)),"Factor error") -> 0 | Q71: =IFERROR(SUMIFS(Q:Q,$F:$F,$H71,$C:$C,"G4.")*IF($F71="Customized", IF(_xlfn.XLOOKUP($H71,'Customized Embodied EF'!$B:$B,'Customized Embodied EF'!I:I,"error",0)="","Factor error",_xlfn.XLOOKUP($H71,'Customized Embodied EF'!$B:$B,'Customized Embodied EF'!I:I,"error",0)),_xlfn.XLOOKUP($H71,'Customized Embodied EF'!$B:$B,'Customized Embodied EF'!$D:$D,"error",0)),"Factor error") -> 0 | R71: =IFERROR(SUMIFS(R:R,$F:$F,$H71,$C:$C,"G4.")*IF($F71="Customized", IF(_xlfn.XLOOKUP($H71,'Customized Embodied EF'!$B:$B,'Customized Embodied EF'!J:J,"error",0)="","Factor error",_xlfn.XLOOKUP($H71,'Customized Embodied EF'!$B:$B,'Customized Embodied EF'!J:J,"error",0)),_xlfn.XLOOKUP($H71,'Customized Embodied EF'!$B:$B,'Customized Embodied EF'!$D:$D,"error",0)),"Factor error") -> 0
D72: =C67 -> A1.1.1 | E72: 4 | H72: Calcined petroleum coke | I72: (anode production) | J72: [t CO2e/reporting period] | K72: =IF(SUM(M72:R72)=0,"",SUM(M72:R72)) ->  | M72: =IFERROR(SUMIFS(M:M,$F:$F,$H72,$C:$C,"G4.")*IF($F72="Customized", IF(_xlfn.XLOOKUP($H72,'Customized Embodied EF'!$B:$B,'Customized Embodied EF'!E:E,"error",0)="","Factor error",_xlfn.XLOOKUP($H72,'Customized Embodied EF'!$B:$B,'Customized Embodied EF'!E:E,"error",0)),_xlfn.XLOOKUP($H72,'Customized Embodied EF'!$B:$B,'Customized Embodied EF'!$D:$D,"error",0)),"Factor error") -> 0 | N72: =IFERROR(SUMIFS(N:N,$F:$F,$H72,$C:$C,"G4.")*IF($F72="Customized", IF(_xlfn.XLOOKUP($H72,'Customized Embodied EF'!$B:$B,'Customized Embodied EF'!F:F,"error",0)="","Factor error",_xlfn.XLOOKUP($H72,'Customized Embodied EF'!$B:$B,'Customized Embodied EF'!F:F,"error",0)),_xlfn.XLOOKUP($H72,'Customized Embodied EF'!$B:$B,'Customized Embodied EF'!$D:$D,"error",0)),"Factor error") -> 0 | O72: =IFERROR(SUMIFS(O:O,$F:$F,$H72,$C:$C,"G4.")*IF($F72="Customized", IF(_xlfn.XLOOKUP($H72,'Customized Embodied EF'!$B:$B,'Customized Embodied EF'!G:G,"error",0)="","Factor error",_xlfn.XLOOKUP($H72,'Customized Embodied EF'!$B:$B,'Customized Embodied EF'!G:G,"error",0)),_xlfn.XLOOKUP($H72,'Customized Embodied EF'!$B:$B,'Customized Embodied EF'!$D:$D,"error",0)),"Factor error") -> 0 | P72: =IFERROR(SUMIFS(P:P,$F:$F,$H72,$C:$C,"G4.")*IF($F72="Customized", IF(_xlfn.XLOOKUP($H72,'Customized Embodied EF'!$B:$B,'Customized Embodied EF'!H:H,"error",0)="","Factor error",_xlfn.XLOOKUP($H72,'Customized Embodied EF'!$B:$B,'Customized Embodied EF'!H:H,"error",0)),_xlfn.XLOOKUP($H72,'Customized Embodied EF'!$B:$B,'Customized Embodied EF'!$D:$D,"error",0)),"Factor error") -> 0 | Q72: =IFERROR(SUMIFS(Q:Q,$F:$F,$H72,$C:$C,"G4.")*IF($F72="Customized", IF(_xlfn.XLOOKUP($H72,'Customized Embodied EF'!$B:$B,'Customized Embodied EF'!I:I,"error",0)="","Factor error",_xlfn.XLOOKUP($H72,'Customized Embodied EF'!$B:$B,'Customized Embodied EF'!I:I,"error",0)),_xlfn.XLOOKUP($H72,'Customized Embodied EF'!$B:$B,'Customized Embodied EF'!$D:$D,"error",0)),"Factor error") -> 0 | R72: =IFERROR(SUMIFS(R:R,$F:$F,$H72,$C:$C,"G4.")*IF($F72="Customized", IF(_xlfn.XLOOKUP($H72,'Customized Embodied EF'!$B:$B,'Customized Embodied EF'!J:J,"error",0)="","Factor error",_xlfn.XLOOKUP($H72,'Customized Embodied EF'!$B:$B,'Customized Embodied EF'!J:J,"error",0)),_xlfn.XLOOKUP($H72,'Customized Embodied EF'!$B:$B,'Customized Embodied EF'!$D:$D,"error",0)),"Factor error") -> 0
D73: =D72 -> A1.1.1 | E73: 5 | H73: Coal tar pitch | I73: (anode production) | J73: [t CO2e/reporting period] | M73: =IFERROR(SUMIFS(M:M,$F:$F,$H73,$C:$C,"G4.")*IF($F73="Customized", IF(_xlfn.XLOOKUP($H73,'Customized Embodied EF'!$B:$B,'Customized Embodied EF'!E:E,"error",0)="","Factor error",_xlfn.XLOOKUP($H73,'Customized Embodied EF'!$B:$B,'Customized Embodied EF'!E:E,"error",0)),_xlfn.XLOOKUP($H73,'Customized Embodied EF'!$B:$B,'Customized Embodied EF'!$D:$D,"error",0)),"Factor error") -> 0 | N73: =IFERROR(SUMIFS(N:N,$F:$F,$H73,$C:$C,"G4.")*IF($F73="Customized", IF(_xlfn.XLOOKUP($H73,'Customized Embodied EF'!$B:$B,'Customized Embodied EF'!F:F,"error",0)="","Factor error",_xlfn.XLOOKUP($H73,'Customized Embodied EF'!$B:$B,'Customized Embodied EF'!F:F,"error",0)),_xlfn.XLOOKUP($H73,'Customized Embodied EF'!$B:$B,'Customized Embodied EF'!$D:$D,"error",0)),"Factor error") -> 0 | O73: =IFERROR(SUMIFS(O:O,$F:$F,$H73,$C:$C,"G4.")*IF($F73="Customized", IF(_xlfn.XLOOKUP($H73,'Customized Embodied EF'!$B:$B,'Customized Embodied EF'!G:G,"error",0)="","Factor error",_xlfn.XLOOKUP($H73,'Customized Embodied EF'!$B:$B,'Customized Embodied EF'!G:G,"error",0)),_xlfn.XLOOKUP($H73,'Customized Embodied EF'!$B:$B,'Customized Embodied EF'!$D:$D,"error",0)),"Factor error") -> 0 | P73: =IFERROR(SUMIFS(P:P,$F:$F,$H73,$C:$C,"G4.")*IF($F73="Customized", IF(_xlfn.XLOOKUP($H73,'Customized Embodied EF'!$B:$B,'Customized Embodied EF'!H:H,"error",0)="","Factor error",_xlfn.XLOOKUP($H73,'Customized Embodied EF'!$B:$B,'Customized Embodied EF'!H:H,"error",0)),_xlfn.XLOOKUP($H73,'Customized Embodied EF'!$B:$B,'Customized Embodied EF'!$D:$D,"error",0)),"Factor error") -> 0 | Q73: =IFERROR(SUMIFS(Q:Q,$F:$F,$H73,$C:$C,"G4.")*IF($F73="Customized", IF(_xlfn.XLOOKUP($H73,'Customized Embodied EF'!$B:$B,'Customized Embodied EF'!I:I,"error",0)="","Factor error",_xlfn.XLOOKUP($H73,'Customized Embodied EF'!$B:$B,'Customized Embodied EF'!I:I,"error",0)),_xlfn.XLOOKUP($H73,'Customized Embodied EF'!$B:$B,'Customized Embodied EF'!$D:$D,"error",0)),"Factor error") -> 0 | R73: =IFERROR(SUMIFS(R:R,$F:$F,$H73,$C:$C,"G4.")*IF($F73="Customized", IF(_xlfn.XLOOKUP($H73,'Customized Embodied EF'!$B:$B,'Customized Embodied EF'!J:J,"error",0)="","Factor error",_xlfn.XLOOKUP($H73,'Customized Embodied EF'!$B:$B,'Customized Embodied EF'!J:J,"error",0)),_xlfn.XLOOKUP($H73,'Customized Embodied EF'!$B:$B,'Customized Embodied EF'!$D:$D,"error",0)),"Factor error") -> 0
D74: =D73 -> A1.1.1 | E74: 6 | H74: Alumina | I74: (smelting) | J74: [t CO2e/reporting period] | M74: =IFERROR(SUMIFS(M:M,$F:$F,$H74,$C:$C,"G4.")*IF($F74="Customized", IF(_xlfn.XLOOKUP($H74,'Customized Embodied EF'!$B:$B,'Customized Embodied EF'!E:E,"error",0)="","Factor error",_xlfn.XLOOKUP($H74,'Customized Embodied EF'!$B:$B,'Customized Embodied EF'!E:E,"error",0)),_xlfn.XLOOKUP($H74,'Customized Embodied EF'!$B:$B,'Customized Embodied EF'!$D:$D,"error",0)),"Factor error") -> 0 | N74: =IFERROR(SUMIFS(N:N,$F:$F,$H74,$C:$C,"G4.")*IF($F74="Customized", IF(_xlfn.XLOOKUP($H74,'Customized Embodied EF'!$B:$B,'Customized Embodied EF'!F:F,"error",0)="","Factor error",_xlfn.XLOOKUP($H74,'Customized Embodied EF'!$B:$B,'Customized Embodied EF'!F:F,"error",0)),_xlfn.XLOOKUP($H74,'Customized Embodied EF'!$B:$B,'Customized Embodied EF'!$D:$D,"error",0)),"Factor error") -> 0 | O74: =IFERROR(SUMIFS(O:O,$F:$F,$H74,$C:$C,"G4.")*IF($F74="Customized", IF(_xlfn.XLOOKUP($H74,'Customized Embodied EF'!$B:$B,'Customized Embodied EF'!G:G,"error",0)="","Factor error",_xlfn.XLOOKUP($H74,'Customized Embodied EF'!$B:$B,'Customized Embodied EF'!G:G,"error",0)),_xlfn.XLOOKUP($H74,'Customized Embodied EF'!$B:$B,'Customized Embodied EF'!$D:$D,"error",0)),"Factor error") -> 0 | P74: =IFERROR(SUMIFS(P:P,$F:$F,$H74,$C:$C,"G4.")*IF($F74="Customized", IF(_xlfn.XLOOKUP($H74,'Customized Embodied EF'!$B:$B,'Customized Embodied EF'!H:H,"error",0)="","Factor error",_xlfn.XLOOKUP($H74,'Customized Embodied EF'!$B:$B,'Customized Embodied EF'!H:H,"error",0)),_xlfn.XLOOKUP($H74,'Customized Embodied EF'!$B:$B,'Customized Embodied EF'!$D:$D,"error",0)),"Factor error") -> 0 | Q74: =IFERROR(SUMIFS(Q:Q,$F:$F,$H74,$C:$C,"G4.")*IF($F74="Customized", IF(_xlfn.XLOOKUP($H74,'Customized Embodied EF'!$B:$B,'Customized Embodied EF'!I:I,"error",0)="","Factor error",_xlfn.XLOOKUP($H74,'Customized Embodied EF'!$B:$B,'Customized Embodied EF'!I:I,"error",0)),_xlfn.XLOOKUP($H74,'Customized Embodied EF'!$B:$B,'Customized Embodied EF'!$D:$D,"error",0)),"Factor error") -> 0 | R74: =IFERROR(SUMIFS(R:R,$F:$F,$H74,$C:$C,"G4.")*IF($F74="Customized", IF(_xlfn.XLOOKUP($H74,'Customized Embodied EF'!$B:$B,'Customized Embodied EF'!J:J,"error",0)="","Factor error",_xlfn.XLOOKUP($H74,'Customized Embodied EF'!$B:$B,'Customized Embodied EF'!J:J,"error",0)),_xlfn.XLOOKUP($H74,'Customized Embodied EF'!$B:$B,'Customized Embodied EF'!$D:$D,"error",0)),"Factor error") -> 0
D75: =D74 -> A1.1.1 | E75: 7 | H75: Anode | I75: (smelting) | J75: [t CO2e/reporting period] | M75: =IFERROR(SUMIFS(M:M,$F:$F,$H75,$C:$C,"G4.")*IF($F75="Customized", IF(_xlfn.XLOOKUP($H75,'Customized Embodied EF'!$B:$B,'Customized Embodied EF'!E:E,"error",0)="","Factor error",_xlfn.XLOOKUP($H75,'Customized Embodied EF'!$B:$B,'Customized Embodied EF'!E:E,"error",0)),_xlfn.XLOOKUP($H75,'Customized Embodied EF'!$B:$B,'Customized Embodied EF'!$D:$D,"error",0)),"Factor error") -> 0 | N75: =IFERROR(SUMIFS(N:N,$F:$F,$H75,$C:$C,"G4.")*IF($F75="Customized", IF(_xlfn.XLOOKUP($H75,'Customized Embodied EF'!$B:$B,'Customized Embodied EF'!F:F,"error",0)="","Factor error",_xlfn.XLOOKUP($H75,'Customized Embodied EF'!$B:$B,'Customized Embodied EF'!F:F,"error",0)),_xlfn.XLOOKUP($H75,'Customized Embodied EF'!$B:$B,'Customized Embodied EF'!$D:$D,"error",0)),"Factor error") -> 0 | O75: =IFERROR(SUMIFS(O:O,$F:$F,$H75,$C:$C,"G4.")*IF($F75="Customized", IF(_xlfn.XLOOKUP($H75,'Customized Embodied EF'!$B:$B,'Customized Embodied EF'!G:G,"error",0)="","Factor error",_xlfn.XLOOKUP($H75,'Customized Embodied EF'!$B:$B,'Customized Embodied EF'!G:G,"error",0)),_xlfn.XLOOKUP($H75,'Customized Embodied EF'!$B:$B,'Customized Embodied EF'!$D:$D,"error",0)),"Factor error") -> 0 | P75: =IFERROR(SUMIFS(P:P,$F:$F,$H75,$C:$C,"G4.")*IF($F75="Customized", IF(_xlfn.XLOOKUP($H75,'Customized Embodied EF'!$B:$B,'Customized Embodied EF'!H:H,"error",0)="","Factor error",_xlfn.XLOOKUP($H75,'Customized Embodied EF'!$B:$B,'Customized Embodied EF'!H:H,"error",0)),_xlfn.XLOOKUP($H75,'Customized Embodied EF'!$B:$B,'Customized Embodied EF'!$D:$D,"error",0)),"Factor error") -> 0 | Q75: =IFERROR(SUMIFS(Q:Q,$F:$F,$H75,$C:$C,"G4.")*IF($F75="Customized", IF(_xlfn.XLOOKUP($H75,'Customized Embodied EF'!$B:$B,'Customized Embodied EF'!I:I,"error",0)="","Factor error",_xlfn.XLOOKUP($H75,'Customized Embodied EF'!$B:$B,'Customized Embodied EF'!I:I,"error",0)),_xlfn.XLOOKUP($H75,'Customized Embodied EF'!$B:$B,'Customized Embodied EF'!$D:$D,"error",0)),"Factor error") -> 0 | R75: =IFERROR(SUMIFS(R:R,$F:$F,$H75,$C:$C,"G4.")*IF($F75="Customized", IF(_xlfn.XLOOKUP($H75,'Customized Embodied EF'!$B:$B,'Customized Embodied EF'!J:J,"error",0)="","Factor error",_xlfn.XLOOKUP($H75,'Customized Embodied EF'!$B:$B,'Customized Embodied EF'!J:J,"error",0)),_xlfn.XLOOKUP($H75,'Customized Embodied EF'!$B:$B,'Customized Embodied EF'!$D:$D,"error",0)),"Factor error") -> 0
D76: =D75 -> A1.1.1 | E76: 8 | H76: Steel (cathode) | I76: (smelting) | J76: [t CO2e/reporting period] | M76: =IFERROR(SUMIFS(M:M,$F:$F,$H76,$C:$C,"G4.")*IF($F76="Customized", IF(_xlfn.XLOOKUP($H76,'Customized Embodied EF'!$B:$B,'Customized Embodied EF'!E:E,"error",0)="","Factor error",_xlfn.XLOOKUP($H76,'Customized Embodied EF'!$B:$B,'Customized Embodied EF'!E:E,"error",0)),_xlfn.XLOOKUP($H76,'Customized Embodied EF'!$B:$B,'Customized Embodied EF'!$D:$D,"error",0)),"Factor error") -> 0 | N76: =IFERROR(SUMIFS(N:N,$F:$F,$H76,$C:$C,"G4.")*IF($F76="Customized", IF(_xlfn.XLOOKUP($H76,'Customized Embodied EF'!$B:$B,'Customized Embodied EF'!F:F,"error",0)="","Factor error",_xlfn.XLOOKUP($H76,'Customized Embodied EF'!$B:$B,'Customized Embodied EF'!F:F,"error",0)),_xlfn.XLOOKUP($H76,'Customized Embodied EF'!$B:$B,'Customized Embodied EF'!$D:$D,"error",0)),"Factor error") -> 0 | O76: =IFERROR(SUMIFS(O:O,$F:$F,$H76,$C:$C,"G4.")*IF($F76="Customized", IF(_xlfn.XLOOKUP($H76,'Customized Embodied EF'!$B:$B,'Customized Embodied EF'!G:G,"error",0)="","Factor error",_xlfn.XLOOKUP($H76,'Customized Embodied EF'!$B:$B,'Customized Embodied EF'!G:G,"error",0)),_xlfn.XLOOKUP($H76,'Customized Embodied EF'!$B:$B,'Customized Embodied EF'!$D:$D,"error",0)),"Factor error") -> 0 | P76: =IFERROR(SUMIFS(P:P,$F:$F,$H76,$C:$C,"G4.")*IF($F76="Customized", IF(_xlfn.XLOOKUP($H76,'Customized Embodied EF'!$B:$B,'Customized Embodied EF'!H:H,"error",0)="","Factor error",_xlfn.XLOOKUP($H76,'Customized Embodied EF'!$B:$B,'Customized Embodied EF'!H:H,"error",0)),_xlfn.XLOOKUP($H76,'Customized Embodied EF'!$B:$B,'Customized Embodied EF'!$D:$D,"error",0)),"Factor error") -> 0 | Q76: =IFERROR(SUMIFS(Q:Q,$F:$F,$H76,$C:$C,"G4.")*IF($F76="Customized", IF(_xlfn.XLOOKUP($H76,'Customized Embodied EF'!$B:$B,'Customized Embodied EF'!I:I,"error",0)="","Factor error",_xlfn.XLOOKUP($H76,'Customized Embodied EF'!$B:$B,'Customized Embodied EF'!I:I,"error",0)),_xlfn.XLOOKUP($H76,'Customized Embodied EF'!$B:$B,'Customized Embodied EF'!$D:$D,"error",0)),"Factor error") -> 0 | R76: =IFERROR(SUMIFS(R:R,$F:$F,$H76,$C:$C,"G4.")*IF($F76="Customized", IF(_xlfn.XLOOKUP($H76,'Customized Embodied EF'!$B:$B,'Customized Embodied EF'!J:J,"error",0)="","Factor error",_xlfn.XLOOKUP($H76,'Customized Embodied EF'!$B:$B,'Customized Embodied EF'!J:J,"error",0)),_xlfn.XLOOKUP($H76,'Customized Embodied EF'!$B:$B,'Customized Embodied EF'!$D:$D,"error",0)),"Factor error") -> 0
D77: A1.1.1 | E77: 9 | H77: Aluminium fluoride | I77: (smelting) | J77: [t CO2e/reporting period] | M77: =IFERROR(SUMIFS(M:M,$F:$F,$H77,$C:$C,"G4.")*IF($F77="Customized", IF(_xlfn.XLOOKUP($H77,'Customized Embodied EF'!$B:$B,'Customized Embodied EF'!E:E,"error",0)="","Factor error",_xlfn.XLOOKUP($H77,'Customized Embodied EF'!$B:$B,'Customized Embodied EF'!E:E,"error",0)),_xlfn.XLOOKUP($H77,'Customized Embodied EF'!$B:$B,'Customized Embodied EF'!$D:$D,"error",0)),"Factor error") -> 0 | N77: =IFERROR(SUMIFS(N:N,$F:$F,$H77,$C:$C,"G4.")*IF($F77="Customized", IF(_xlfn.XLOOKUP($H77,'Customized Embodied EF'!$B:$B,'Customized Embodied EF'!F:F,"error",0)="","Factor error",_xlfn.XLOOKUP($H77,'Customized Embodied EF'!$B:$B,'Customized Embodied EF'!F:F,"error",0)),_xlfn.XLOOKUP($H77,'Customized Embodied EF'!$B:$B,'Customized Embodied EF'!$D:$D,"error",0)),"Factor error") -> 0 | O77: =IFERROR(SUMIFS(O:O,$F:$F,$H77,$C:$C,"G4.")*IF($F77="Customized", IF(_xlfn.XLOOKUP($H77,'Customized Embodied EF'!$B:$B,'Customized Embodied EF'!G:G,"error",0)="","Factor error",_xlfn.XLOOKUP($H77,'Customized Embodied EF'!$B:$B,'Customized Embodied EF'!G:G,"error",0)),_xlfn.XLOOKUP($H77,'Customized Embodied EF'!$B:$B,'Customized Embodied EF'!$D:$D,"error",0)),"Factor error") -> 0 | P77: =IFERROR(SUMIFS(P:P,$F:$F,$H77,$C:$C,"G4.")*IF($F77="Customized", IF(_xlfn.XLOOKUP($H77,'Customized Embodied EF'!$B:$B,'Customized Embodied EF'!H:H,"error",0)="","Factor error",_xlfn.XLOOKUP($H77,'Customized Embodied EF'!$B:$B,'Customized Embodied EF'!H:H,"error",0)),_xlfn.XLOOKUP($H77,'Customized Embodied EF'!$B:$B,'Customized Embodied EF'!$D:$D,"error",0)),"Factor error") -> 0 | Q77: =IFERROR(SUMIFS(Q:Q,$F:$F,$H77,$C:$C,"G4.")*IF($F77="Customized", IF(_xlfn.XLOOKUP($H77,'Customized Embodied EF'!$B:$B,'Customized Embodied EF'!I:I,"error",0)="","Factor error",_xlfn.XLOOKUP($H77,'Customized Embodied EF'!$B:$B,'Customized Embodied EF'!I:I,"error",0)),_xlfn.XLOOKUP($H77,'Customized Embodied EF'!$B:$B,'Customized Embodied EF'!$D:$D,"error",0)),"Factor error") -> 0 | R77: =IFERROR(SUMIFS(R:R,$F:$F,$H77,$C:$C,"G4.")*IF($F77="Customized", IF(_xlfn.XLOOKUP($H77,'Customized Embodied EF'!$B:$B,'Customized Embodied EF'!J:J,"error",0)="","Factor error",_xlfn.XLOOKUP($H77,'Customized Embodied EF'!$B:$B,'Customized Embodied EF'!J:J,"error",0)),_xlfn.XLOOKUP($H77,'Customized Embodied EF'!$B:$B,'Customized Embodied EF'!$D:$D,"error",0)),"Factor error") -> 0
D78: A1.1.1 | E78: 10 | H78: Soda ash / Sodium carbonate | I78: (smelting) | J78: [t CO2e/reporting period] | M78: =IFERROR(SUMIFS(M:M,$F:$F,$H78,$C:$C,"G4.")*IF($F78="Customized", IF(_xlfn.XLOOKUP($H78,'Customized Embodied EF'!$B:$B,'Customized Embodied EF'!E:E,"error",0)="","Factor error",_xlfn.XLOOKUP($H78,'Customized Embodied EF'!$B:$B,'Customized Embodied EF'!E:E,"error",0)),_xlfn.XLOOKUP($H78,'Customized Embodied EF'!$B:$B,'Customized Embodied EF'!$D:$D,"error",0)),"Factor error") -> 0 | N78: =IFERROR(SUMIFS(N:N,$F:$F,$H78,$C:$C,"G4.")*IF($F78="Customized", IF(_xlfn.XLOOKUP($H78,'Customized Embodied EF'!$B:$B,'Customized Embodied EF'!F:F,"error",0)="","Factor error",_xlfn.XLOOKUP($H78,'Customized Embodied EF'!$B:$B,'Customized Embodied EF'!F:F,"error",0)),_xlfn.XLOOKUP($H78,'Customized Embodied EF'!$B:$B,'Customized Embodied EF'!$D:$D,"error",0)),"Factor error") -> 0 | O78: =IFERROR(SUMIFS(O:O,$F:$F,$H78,$C:$C,"G4.")*IF($F78="Customized", IF(_xlfn.XLOOKUP($H78,'Customized Embodied EF'!$B:$B,'Customized Embodied EF'!G:G,"error",0)="","Factor error",_xlfn.XLOOKUP($H78,'Customized Embodied EF'!$B:$B,'Customized Embodied EF'!G:G,"error",0)),_xlfn.XLOOKUP($H78,'Customized Embodied EF'!$B:$B,'Customized Embodied EF'!$D:$D,"error",0)),"Factor error") -> 0 | P78: =IFERROR(SUMIFS(P:P,$F:$F,$H78,$C:$C,"G4.")*IF($F78="Customized", IF(_xlfn.XLOOKUP($H78,'Customized Embodied EF'!$B:$B,'Customized Embodied EF'!H:H,"error",0)="","Factor error",_xlfn.XLOOKUP($H78,'Customized Embodied EF'!$B:$B,'Customized Embodied EF'!H:H,"error",0)),_xlfn.XLOOKUP($H78,'Customized Embodied EF'!$B:$B,'Customized Embodied EF'!$D:$D,"error",0)),"Factor error") -> 0 | Q78: =IFERROR(SUMIFS(Q:Q,$F:$F,$H78,$C:$C,"G4.")*IF($F78="Customized", IF(_xlfn.XLOOKUP($H78,'Customized Embodied EF'!$B:$B,'Customized Embodied EF'!I:I,"error",0)="","Factor error",_xlfn.XLOOKUP($H78,'Customized Embodied EF'!$B:$B,'Customized Embodied EF'!I:I,"error",0)),_xlfn.XLOOKUP($H78,'Customized Embodied EF'!$B:$B,'Customized Embodied EF'!$D:$D,"error",0)),"Factor error") -> 0 | R78: =IFERROR(SUMIFS(R:R,$F:$F,$H78,$C:$C,"G4.")*IF($F78="Customized", IF(_xlfn.XLOOKUP($H78,'Customized Embodied EF'!$B:$B,'Customized Embodied EF'!J:J,"error",0)="","Factor error",_xlfn.XLOOKUP($H78,'Customized Embodied EF'!$B:$B,'Customized Embodied EF'!J:J,"error",0)),_xlfn.XLOOKUP($H78,'Customized Embodied EF'!$B:$B,'Customized Embodied EF'!$D:$D,"error",0)),"Factor error") -> 0
D79: A1.1.1 | E79: 11 | H79: Liquid aluminium | I79: (casting / semi-fabrication) | J79: [t CO2e/reporting period] | M79: =IFERROR(SUMIFS(M:M,$F:$F,$H79,$C:$C,"G4.")*IF($F79="Customized", IF(_xlfn.XLOOKUP($H79,'Customized Embodied EF'!$B:$B,'Customized Embodied EF'!E:E,"error",0)="","Factor error",_xlfn.XLOOKUP($H79,'Customized Embodied EF'!$B:$B,'Customized Embodied EF'!E:E,"error",0)),_xlfn.XLOOKUP($H79,'Customized Embodied EF'!$B:$B,'Customized Embodied EF'!$D:$D,"error",0)),"Factor error") -> 0 | N79: =IFERROR(SUMIFS(N:N,$F:$F,$H79,$C:$C,"G4.")*IF($F79="Customized", IF(_xlfn.XLOOKUP($H79,'Customized Embodied EF'!$B:$B,'Customized Embodied EF'!F:F,"error",0)="","Factor error",_xlfn.XLOOKUP($H79,'Customized Embodied EF'!$B:$B,'Customized Embodied EF'!F:F,"error",0)),_xlfn.XLOOKUP($H79,'Customized Embodied EF'!$B:$B,'Customized Embodied EF'!$D:$D,"error",0)),"Factor error") -> 0 | O79: =IFERROR(SUMIFS(O:O,$F:$F,$H79,$C:$C,"G4.")*IF($F79="Customized", IF(_xlfn.XLOOKUP($H79,'Customized Embodied EF'!$B:$B,'Customized Embodied EF'!G:G,"error",0)="","Factor error",_xlfn.XLOOKUP($H79,'Customized Embodied EF'!$B:$B,'Customized Embodied EF'!G:G,"error",0)),_xlfn.XLOOKUP($H79,'Customized Embodied EF'!$B:$B,'Customized Embodied EF'!$D:$D,"error",0)),"Factor error") -> 0 | P79: =IFERROR(SUMIFS(P:P,$F:$F,$H79,$C:$C,"G4.")*IF($F79="Customized", IF(_xlfn.XLOOKUP($H79,'Customized Embodied EF'!$B:$B,'Customized Embodied EF'!H:H,"error",0)="","Factor error",_xlfn.XLOOKUP($H79,'Customized Embodied EF'!$B:$B,'Customized Embodied EF'!H:H,"error",0)),_xlfn.XLOOKUP($H79,'Customized Embodied EF'!$B:$B,'Customized Embodied EF'!$D:$D,"error",0)),"Factor error") -> 0 | Q79: =IFERROR(SUMIFS(Q:Q,$F:$F,$H79,$C:$C,"G4.")*IF($F79="Customized", IF(_xlfn.XLOOKUP($H79,'Customized Embodied EF'!$B:$B,'Customized Embodied EF'!I:I,"error",0)="","Factor error",_xlfn.XLOOKUP($H79,'Customized Embodied EF'!$B:$B,'Customized Embodied EF'!I:I,"error",0)),_xlfn.XLOOKUP($H79,'Customized Embodied EF'!$B:$B,'Customized Embodied EF'!$D:$D,"error",0)),"Factor error") -> 0 | R79: =IFERROR(SUMIFS(R:R,$F:$F,$H79,$C:$C,"G4.")*IF($F79="Customized", IF(_xlfn.XLOOKUP($H79,'Customized Embodied EF'!$B:$B,'Customized Embodied EF'!J:J,"error",0)="","Factor error",_xlfn.XLOOKUP($H79,'Customized Embodied EF'!$B:$B,'Customized Embodied EF'!J:J,"error",0)),_xlfn.XLOOKUP($H79,'Customized Embodied EF'!$B:$B,'Customized Embodied EF'!$D:$D,"error",0)),"Factor error") -> 0
D80: A1.1.1 | E80: 12 | H80: Magnesium | I80: (casting / semi-fabrication) | J80: [t CO2e/reporting period] | M80: =IFERROR(SUMIFS(M:M,$F:$F,$H80,$C:$C,"G4.")*IF($F80="Customized", IF(_xlfn.XLOOKUP($H80,'Customized Embodied EF'!$B:$B,'Customized Embodied EF'!E:E,"error",0)="","Factor error",_xlfn.XLOOKUP($H80,'Customized Embodied EF'!$B:$B,'Customized Embodied EF'!E:E,"error",0)),_xlfn.XLOOKUP($H80,'Customized Embodied EF'!$B:$B,'Customized Embodied EF'!$D:$D,"error",0)),"Factor error") -> 0 | N80: =IFERROR(SUMIFS(N:N,$F:$F,$H80,$C:$C,"G4.")*IF($F80="Customized", IF(_xlfn.XLOOKUP($H80,'Customized Embodied EF'!$B:$B,'Customized Embodied EF'!F:F,"error",0)="","Factor error",_xlfn.XLOOKUP($H80,'Customized Embodied EF'!$B:$B,'Customized Embodied EF'!F:F,"error",0)),_xlfn.XLOOKUP($H80,'Customized Embodied EF'!$B:$B,'Customized Embodied EF'!$D:$D,"error",0)),"Factor error") -> 0 | O80: =IFERROR(SUMIFS(O:O,$F:$F,$H80,$C:$C,"G4.")*IF($F80="Customized", IF(_xlfn.XLOOKUP($H80,'Customized Embodied EF'!$B:$B,'Customized Embodied EF'!G:G,"error",0)="","Factor error",_xlfn.XLOOKUP($H80,'Customized Embodied EF'!$B:$B,'Customized Embodied EF'!G:G,"error",0)),_xlfn.XLOOKUP($H80,'Customized Embodied EF'!$B:$B,'Customized Embodied EF'!$D:$D,"error",0)),"Factor error") -> 0 | P80: =IFERROR(SUMIFS(P:P,$F:$F,$H80,$C:$C,"G4.")*IF($F80="Customized", IF(_xlfn.XLOOKUP($H80,'Customized Embodied EF'!$B:$B,'Customized Embodied EF'!H:H,"error",0)="","Factor error",_xlfn.XLOOKUP($H80,'Customized Embodied EF'!$B:$B,'Customized Embodied EF'!H:H,"error",0)),_xlfn.XLOOKUP($H80,'Customized Embodied EF'!$B:$B,'Customized Embodied EF'!$D:$D,"error",0)),"Factor error") -> 0 | Q80: =IFERROR(SUMIFS(Q:Q,$F:$F,$H80,$C:$C,"G4.")*IF($F80="Customized", IF(_xlfn.XLOOKUP($H80,'Customized Embodied EF'!$B:$B,'Customized Embodied EF'!I:I,"error",0)="","Factor error",_xlfn.XLOOKUP($H80,'Customized Embodied EF'!$B:$B,'Customized Embodied EF'!I:I,"error",0)),_xlfn.XLOOKUP($H80,'Customized Embodied EF'!$B:$B,'Customized Embodied EF'!$D:$D,"error",0)),"Factor error") -> 0 | R80: =IFERROR(SUMIFS(R:R,$F:$F,$H80,$C:$C,"G4.")*IF($F80="Customized", IF(_xlfn.XLOOKUP($H80,'Customized Embodied EF'!$B:$B,'Customized Embodied EF'!J:J,"error",0)="","Factor error",_xlfn.XLOOKUP($H80,'Customized Embodied EF'!$B:$B,'Customized Embodied EF'!J:J,"error",0)),_xlfn.XLOOKUP($H80,'Customized Embodied EF'!$B:$B,'Customized Embodied EF'!$D:$D,"error",0)),"Factor error") -> 0
D81: A1.1.1 | E81: 13 | H81: Silicone | I81: (casting / semi-fabrication) | J81: [t CO2e/reporting period] | M81: =IFERROR(SUMIFS(M:M,$F:$F,$H81,$C:$C,"G4.")*IF($F81="Customized", IF(_xlfn.XLOOKUP($H81,'Customized Embodied EF'!$B:$B,'Customized Embodied EF'!E:E,"error",0)="","Factor error",_xlfn.XLOOKUP($H81,'Customized Embodied EF'!$B:$B,'Customized Embodied EF'!E:E,"error",0)),_xlfn.XLOOKUP($H81,'Customized Embodied EF'!$B:$B,'Customized Embodied EF'!$D:$D,"error",0)),"Factor error") -> 0 | N81: =IFERROR(SUMIFS(N:N,$F:$F,$H81,$C:$C,"G4.")*IF($F81="Customized", IF(_xlfn.XLOOKUP($H81,'Customized Embodied EF'!$B:$B,'Customized Embodied EF'!F:F,"error",0)="","Factor error",_xlfn.XLOOKUP($H81,'Customized Embodied EF'!$B:$B,'Customized Embodied EF'!F:F,"error",0)),_xlfn.XLOOKUP($H81,'Customized Embodied EF'!$B:$B,'Customized Embodied EF'!$D:$D,"error",0)),"Factor error") -> 0 | O81: =IFERROR(SUMIFS(O:O,$F:$F,$H81,$C:$C,"G4.")*IF($F81="Customized", IF(_xlfn.XLOOKUP($H81,'Customized Embodied EF'!$B:$B,'Customized Embodied EF'!G:G,"error",0)="","Factor error",_xlfn.XLOOKUP($H81,'Customized Embodied EF'!$B:$B,'Customized Embodied EF'!G:G,"error",0)),_xlfn.XLOOKUP($H81,'Customized Embodied EF'!$B:$B,'Customized Embodied EF'!$D:$D,"error",0)),"Factor error") -> 0 | P81: =IFERROR(SUMIFS(P:P,$F:$F,$H81,$C:$C,"G4.")*IF($F81="Customized", IF(_xlfn.XLOOKUP($H81,'Customized Embodied EF'!$B:$B,'Customized Embodied EF'!H:H,"error",0)="","Factor error",_xlfn.XLOOKUP($H81,'Customized Embodied EF'!$B:$B,'Customized Embodied EF'!H:H,"error",0)),_xlfn.XLOOKUP($H81,'Customized Embodied EF'!$B:$B,'Customized Embodied EF'!$D:$D,"error",0)),"Factor error") -> 0 | Q81: =IFERROR(SUMIFS(Q:Q,$F:$F,$H81,$C:$C,"G4.")*IF($F81="Customized", IF(_xlfn.XLOOKUP($H81,'Customized Embodied EF'!$B:$B,'Customized Embodied EF'!I:I,"error",0)="","Factor error",_xlfn.XLOOKUP($H81,'Customized Embodied EF'!$B:$B,'Customized Embodied EF'!I:I,"error",0)),_xlfn.XLOOKUP($H81,'Customized Embodied EF'!$B:$B,'Customized Embodied EF'!$D:$D,"error",0)),"Factor error") -> 0 | R81: =IFERROR(SUMIFS(R:R,$F:$F,$H81,$C:$C,"G4.")*IF($F81="Customized", IF(_xlfn.XLOOKUP($H81,'Customized Embodied EF'!$B:$B,'Customized Embodied EF'!J:J,"error",0)="","Factor error",_xlfn.XLOOKUP($H81,'Customized Embodied EF'!$B:$B,'Customized Embodied EF'!J:J,"error",0)),_xlfn.XLOOKUP($H81,'Customized Embodied EF'!$B:$B,'Customized Embodied EF'!$D:$D,"error",0)),"Factor error") -> 0
D82: A1.1.1 | E82: 14 | H82: Manganese | I82: (casting / semi-fabrication) | J82: [t CO2e/reporting period] | M82: =IFERROR(SUMIFS(M:M,$F:$F,$H82,$C:$C,"G4.")*IF($F82="Customized", IF(_xlfn.XLOOKUP($H82,'Customized Embodied EF'!$B:$B,'Customized Embodied EF'!E:E,"error",0)="","Factor error",_xlfn.XLOOKUP($H82,'Customized Embodied EF'!$B:$B,'Customized Embodied EF'!E:E,"error",0)),_xlfn.XLOOKUP($H82,'Customized Embodied EF'!$B:$B,'Customized Embodied EF'!$D:$D,"error",0)),"Factor error") -> 0 | N82: =IFERROR(SUMIFS(N:N,$F:$F,$H82,$C:$C,"G4.")*IF($F82="Customized", IF(_xlfn.XLOOKUP($H82,'Customized Embodied EF'!$B:$B,'Customized Embodied EF'!F:F,"error",0)="","Factor error",_xlfn.XLOOKUP($H82,'Customized Embodied EF'!$B:$B,'Customized Embodied EF'!F:F,"error",0)),_xlfn.XLOOKUP($H82,'Customized Embodied EF'!$B:$B,'Customized Embodied EF'!$D:$D,"error",0)),"Factor error") -> 0 | O82: =IFERROR(SUMIFS(O:O,$F:$F,$H82,$C:$C,"G4.")*IF($F82="Customized", IF(_xlfn.XLOOKUP($H82,'Customized Embodied EF'!$B:$B,'Customized Embodied EF'!G:G,"error",0)="","Factor error",_xlfn.XLOOKUP($H82,'Customized Embodied EF'!$B:$B,'Customized Embodied EF'!G:G,"error",0)),_xlfn.XLOOKUP($H82,'Customized Embodied EF'!$B:$B,'Customized Embodied EF'!$D:$D,"error",0)),"Factor error") -> 0 | P82: =IFERROR(SUMIFS(P:P,$F:$F,$H82,$C:$C,"G4.")*IF($F82="Customized", IF(_xlfn.XLOOKUP($H82,'Customized Embodied EF'!$B:$B,'Customized Embodied EF'!H:H,"error",0)="","Factor error",_xlfn.XLOOKUP($H82,'Customized Embodied EF'!$B:$B,'Customized Embodied EF'!H:H,"error",0)),_xlfn.XLOOKUP($H82,'Customized Embodied EF'!$B:$B,'Customized Embodied EF'!$D:$D,"error",0)),"Factor error") -> 0 | Q82: =IFERROR(SUMIFS(Q:Q,$F:$F,$H82,$C:$C,"G4.")*IF($F82="Customized", IF(_xlfn.XLOOKUP($H82,'Customized Embodied EF'!$B:$B,'Customized Embodied EF'!I:I,"error",0)="","Factor error",_xlfn.XLOOKUP($H82,'Customized Embodied EF'!$B:$B,'Customized Embodied EF'!I:I,"error",0)),_xlfn.XLOOKUP($H82,'Customized Embodied EF'!$B:$B,'Customized Embodied EF'!$D:$D,"error",0)),"Factor error") -> 0 | R82: =IFERROR(SUMIFS(R:R,$F:$F,$H82,$C:$C,"G4.")*IF($F82="Customized", IF(_xlfn.XLOOKUP($H82,'Customized Embodied EF'!$B:$B,'Customized Embodied EF'!J:J,"error",0)="","Factor error",_xlfn.XLOOKUP($H82,'Customized Embodied EF'!$B:$B,'Customized Embodied EF'!J:J,"error",0)),_xlfn.XLOOKUP($H82,'Customized Embodied EF'!$B:$B,'Customized Embodied EF'!$D:$D,"error",0)),"Factor error") -> 0
D83: A1.1.1 | E83: 15 | H83: Copper | I83: (casting / semi-fabrication) | J83: [t CO2e/reporting period] | K83: =IF(SUM(M83:R83)=0,"",SUM(M83:R83)) ->  | M83: =IFERROR(SUMIFS(M:M,$F:$F,$H83,$C:$C,"G4.")*IF($F83="Customized", IF(_xlfn.XLOOKUP($H83,'Customized Embodied EF'!$B:$B,'Customized Embodied EF'!E:E,"error",0)="","Factor error",_xlfn.XLOOKUP($H83,'Customized Embodied EF'!$B:$B,'Customized Embodied EF'!E:E,"error",0)),_xlfn.XLOOKUP($H83,'Customized Embodied EF'!$B:$B,'Customized Embodied EF'!$D:$D,"error",0)),"Factor error") -> 0 | N83: =IFERROR(SUMIFS(N:N,$F:$F,$H83,$C:$C,"G4.")*IF($F83="Customized", IF(_xlfn.XLOOKUP($H83,'Customized Embodied EF'!$B:$B,'Customized Embodied EF'!F:F,"error",0)="","Factor error",_xlfn.XLOOKUP($H83,'Customized Embodied EF'!$B:$B,'Customized Embodied EF'!F:F,"error",0)),_xlfn.XLOOKUP($H83,'Customized Embodied EF'!$B:$B,'Customized Embodied EF'!$D:$D,"error",0)),"Factor error") -> 0 | O83: =IFERROR(SUMIFS(O:O,$F:$F,$H83,$C:$C,"G4.")*IF($F83="Customized", IF(_xlfn.XLOOKUP($H83,'Customized Embodied EF'!$B:$B,'Customized Embodied EF'!G:G,"error",0)="","Factor error",_xlfn.XLOOKUP($H83,'Customized Embodied EF'!$B:$B,'Customized Embodied EF'!G:G,"error",0)),_xlfn.XLOOKUP($H83,'Customized Embodied EF'!$B:$B,'Customized Embodied EF'!$D:$D,"error",0)),"Factor error") -> 0 | P83: =IFERROR(SUMIFS(P:P,$F:$F,$H83,$C:$C,"G4.")*IF($F83="Customized", IF(_xlfn.XLOOKUP($H83,'Customized Embodied EF'!$B:$B,'Customized Embodied EF'!H:H,"error",0)="","Factor error",_xlfn.XLOOKUP($H83,'Customized Embodied EF'!$B:$B,'Customized Embodied EF'!H:H,"error",0)),_xlfn.XLOOKUP($H83,'Customized Embodied EF'!$B:$B,'Customized Embodied EF'!$D:$D,"error",0)),"Factor error") -> 0 | Q83: =IFERROR(SUMIFS(Q:Q,$F:$F,$H83,$C:$C,"G4.")*IF($F83="Customized", IF(_xlfn.XLOOKUP($H83,'Customized Embodied EF'!$B:$B,'Customized Embodied EF'!I:I,"error",0)="","Factor error",_xlfn.XLOOKUP($H83,'Customized Embodied EF'!$B:$B,'Customized Embodied EF'!I:I,"error",0)),_xlfn.XLOOKUP($H83,'Customized Embodied EF'!$B:$B,'Customized Embodied EF'!$D:$D,"error",0)),"Factor error") -> 0 | R83: =IFERROR(SUMIFS(R:R,$F:$F,$H83,$C:$C,"G4.")*IF($F83="Customized", IF(_xlfn.XLOOKUP($H83,'Customized Embodied EF'!$B:$B,'Customized Embodied EF'!J:J,"error",0)="","Factor error",_xlfn.XLOOKUP($H83,'Customized Embodied EF'!$B:$B,'Customized Embodied EF'!J:J,"error",0)),_xlfn.XLOOKUP($H83,'Customized Embodied EF'!$B:$B,'Customized Embodied EF'!$D:$D,"error",0)),"Factor error") -> 0
D84: A1.1.1 | E84: 16 | H84: Aluminium ingot | I84: (casting / semi-fabrication) | J84: [t CO2e/reporting period] | M84: =IFERROR(SUMIFS(M:M,$F:$F,$H84,$C:$C,"G4.")*IF($F84="Customized", IF(_xlfn.XLOOKUP($H84,'Customized Embodied EF'!$B:$B,'Customized Embodied EF'!E:E,"error",0)="","Factor error",_xlfn.XLOOKUP($H84,'Customized Embodied EF'!$B:$B,'Customized Embodied EF'!E:E,"error",0)),_xlfn.XLOOKUP($H84,'Customized Embodied EF'!$B:$B,'Customized Embodied EF'!$D:$D,"error",0)),"Factor error") -> 0 | N84: =IFERROR(SUMIFS(N:N,$F:$F,$H84,$C:$C,"G4.")*IF($F84="Customized", IF(_xlfn.XLOOKUP($H84,'Customized Embodied EF'!$B:$B,'Customized Embodied EF'!F:F,"error",0)="","Factor error",_xlfn.XLOOKUP($H84,'Customized Embodied EF'!$B:$B,'Customized Embodied EF'!F:F,"error",0)),_xlfn.XLOOKUP($H84,'Customized Embodied EF'!$B:$B,'Customized Embodied EF'!$D:$D,"error",0)),"Factor error") -> 0 | O84: =IFERROR(SUMIFS(O:O,$F:$F,$H84,$C:$C,"G4.")*IF($F84="Customized", IF(_xlfn.XLOOKUP($H84,'Customized Embodied EF'!$B:$B,'Customized Embodied EF'!G:G,"error",0)="","Factor error",_xlfn.XLOOKUP($H84,'Customized Embodied EF'!$B:$B,'Customized Embodied EF'!G:G,"error",0)),_xlfn.XLOOKUP($H84,'Customized Embodied EF'!$B:$B,'Customized Embodied EF'!$D:$D,"error",0)),"Factor error") -> 0 | P84: =IFERROR(SUMIFS(P:P,$F:$F,$H84,$C:$C,"G4.")*IF($F84="Customized", IF(_xlfn.XLOOKUP($H84,'Customized Embodied EF'!$B:$B,'Customized Embodied EF'!H:H,"error",0)="","Factor error",_xlfn.XLOOKUP($H84,'Customized Embodied EF'!$B:$B,'Customized Embodied EF'!H:H,"error",0)),_xlfn.XLOOKUP($H84,'Customized Embodied EF'!$B:$B,'Customized Embodied EF'!$D:$D,"error",0)),"Factor error") -> 0 | Q84: =IFERROR(SUMIFS(Q:Q,$F:$F,$H84,$C:$C,"G4.")*IF($F84="Customized", IF(_xlfn.XLOOKUP($H84,'Customized Embodied EF'!$B:$B,'Customized Embodied EF'!I:I,"error",0)="","Factor error",_xlfn.XLOOKUP($H84,'Customized Embodied EF'!$B:$B,'Customized Embodied EF'!I:I,"error",0)),_xlfn.XLOOKUP($H84,'Customized Embodied EF'!$B:$B,'Customized Embodied EF'!$D:$D,"error",0)),"Factor error") -> 0 | R84: =IFERROR(SUMIFS(R:R,$F:$F,$H84,$C:$C,"G4.")*IF($F84="Customized", IF(_xlfn.XLOOKUP($H84,'Customized Embodied EF'!$B:$B,'Customized Embodied EF'!J:J,"error",0)="","Factor error",_xlfn.XLOOKUP($H84,'Customized Embodied EF'!$B:$B,'Customized Embodied EF'!J:J,"error",0)),_xlfn.XLOOKUP($H84,'Customized Embodied EF'!$B:$B,'Customized Embodied EF'!$D:$D,"error",0)),"Factor error") -> 0
D85: A1.1.1 | E85: 17 | H85: Recycled aluminium | I85: (casting / semi-fabrication) | J85: [t CO2e/reporting period] | K85: =IF(SUM(M85:R85)=0,"",SUM(M85:R85)) ->  | M85: =IF(SUMIFS(M:M,$F:$F,$H85,$C:$C,"G4.")=0,0, IFERROR(SUMIFS(M:M,$F:$F,$H85,$C:$C,"G4.")*IF($F85="Customized", IF(_xlfn.XLOOKUP($H85,'Customized Embodied EF'!$B:$B,'Customized Embodied EF'!E:E,"error",0)="","Factor error",_xlfn.XLOOKUP($H85,'Customized Embodied EF'!$B:$B,'Customized Embodied EF'!E:E,"error",0)),_xlfn.XLOOKUP($H85,'Customized Embodied EF'!$B:$B,'Customized Embodied EF'!$D:$D,"error",0)),"Factor error")) -> 0 | N85: =IF(SUMIFS(N:N,$F:$F,$H85,$C:$C,"G4.")=0,0, IFERROR(SUMIFS(N:N,$F:$F,$H85,$C:$C,"G4.")*IF($F85="Customized", IF(_xlfn.XLOOKUP($H85,'Customized Embodied EF'!$B:$B,'Customized Embodied EF'!F:F,"error",0)="","Factor error",_xlfn.XLOOKUP($H85,'Customized Embodied EF'!$B:$B,'Customized Embodied EF'!F:F,"error",0)),_xlfn.XLOOKUP($H85,'Customized Embodied EF'!$B:$B,'Customized Embodied EF'!$D:$D,"error",0)),"Factor error")) -> 0 | O85: =IF(SUMIFS(O:O,$F:$F,$H85,$C:$C,"G4.")=0,0, IFERROR(SUMIFS(O:O,$F:$F,$H85,$C:$C,"G4.")*IF($F85="Customized", IF(_xlfn.XLOOKUP($H85,'Customized Embodied EF'!$B:$B,'Customized Embodied EF'!G:G,"error",0)="","Factor error",_xlfn.XLOOKUP($H85,'Customized Embodied EF'!$B:$B,'Customized Embodied EF'!G:G,"error",0)),_xlfn.XLOOKUP($H85,'Customized Embodied EF'!$B:$B,'Customized Embodied EF'!$D:$D,"error",0)),"Factor error")) -> 0 | P85: =IF(SUMIFS(P:P,$F:$F,$H85,$C:$C,"G4.")=0,0, IFERROR(SUMIFS(P:P,$F:$F,$H85,$C:$C,"G4.")*IF($F85="Customized", IF(_xlfn.XLOOKUP($H85,'Customized Embodied EF'!$B:$B,'Customized Embodied EF'!H:H,"error",0)="","Factor error",_xlfn.XLOOKUP($H85,'Customized Embodied EF'!$B:$B,'Customized Embodied EF'!H:H,"error",0)),_xlfn.XLOOKUP($H85,'Customized Embodied EF'!$B:$B,'Customized Embodied EF'!$D:$D,"error",0)),"Factor error")) -> 0 | Q85: =IF(SUMIFS(Q:Q,$F:$F,$H85,$C:$C,"G4.")=0,0, IFERROR(SUMIFS(Q:Q,$F:$F,$H85,$C:$C,"G4.")*IF($F85="Customized", IF(_xlfn.XLOOKUP($H85,'Customized Embodied EF'!$B:$B,'Customized Embodied EF'!I:I,"error",0)="","Factor error",_xlfn.XLOOKUP($H85,'Customized Embodied EF'!$B:$B,'Customized Embodied EF'!I:I,"error",0)),_xlfn.XLOOKUP($H85,'Customized Embodied EF'!$B:$B,'Customized Embodied EF'!$D:$D,"error",0)),"Factor error")) -> 0 | R85: =IF(SUMIFS(R:R,$F:$F,$H85,$C:$C,"G4.")=0,0, IFERROR(SUMIFS(R:R,$F:$F,$H85,$C:$C,"G4.")*IF($F85="Customized", IF(_xlfn.XLOOKUP($H85,'Customized Embodied EF'!$B:$B,'Customized Embodied EF'!J:J,"error",0)="","Factor error",_xlfn.XLOOKUP($H85,'Customized Embodied EF'!$B:$B,'Customized Embodied EF'!J:J,"error",0)),_xlfn.XLOOKUP($H85,'Customized Embodied EF'!$B:$B,'Customized Embodied EF'!$D:$D,"error",0)),"Factor error")) -> 0
D86: =D75 -> A1.1.1 | E86: 18 | H86: =F48 -> Anodising material | I86: =G48 -> (casting / semi-fabrication) | J86: [t CO2e/reporting period] | M86: =IF(SUMIFS(M:M,$F:$F,$H86,$C:$C,"G4.")=0,0, IFERROR(SUMIFS(M:M,$F:$F,$H86,$C:$C,"G4.")*IF($F86="Customized", IF(_xlfn.XLOOKUP($H86,'Customized Embodied EF'!$B:$B,'Customized Embodied EF'!E:E,"error",0)="","Factor error",_xlfn.XLOOKUP($H86,'Customized Embodied EF'!$B:$B,'Customized Embodied EF'!E:E,"error",0)),_xlfn.XLOOKUP($H86,'Customized Embodied EF'!$B:$B,'Customized Embodied EF'!$D:$D,"error",0)),"Factor error")) -> 0 | N86: =IF(SUMIFS(N:N,$F:$F,$H86,$C:$C,"G4.")=0,0, IFERROR(SUMIFS(N:N,$F:$F,$H86,$C:$C,"G4.")*IF($F86="Customized", IF(_xlfn.XLOOKUP($H86,'Customized Embodied EF'!$B:$B,'Customized Embodied EF'!F:F,"error",0)="","Factor error",_xlfn.XLOOKUP($H86,'Customized Embodied EF'!$B:$B,'Customized Embodied EF'!F:F,"error",0)),_xlfn.XLOOKUP($H86,'Customized Embodied EF'!$B:$B,'Customized Embodied EF'!$D:$D,"error",0)),"Factor error")) -> 0 | O86: =IF(SUMIFS(O:O,$F:$F,$H86,$C:$C,"G4.")=0,0, IFERROR(SUMIFS(O:O,$F:$F,$H86,$C:$C,"G4.")*IF($F86="Customized", IF(_xlfn.XLOOKUP($H86,'Customized Embodied EF'!$B:$B,'Customized Embodied EF'!G:G,"error",0)="","Factor error",_xlfn.XLOOKUP($H86,'Customized Embodied EF'!$B:$B,'Customized Embodied EF'!G:G,"error",0)),_xlfn.XLOOKUP($H86,'Customized Embodied EF'!$B:$B,'Customized Embodied EF'!$D:$D,"error",0)),"Factor error")) -> 0 | P86: =IF(SUMIFS(P:P,$F:$F,$H86,$C:$C,"G4.")=0,0, IFERROR(SUMIFS(P:P,$F:$F,$H86,$C:$C,"G4.")*IF($F86="Customized", IF(_xlfn.XLOOKUP($H86,'Customized Embodied EF'!$B:$B,'Customized Embodied EF'!H:H,"error",0)="","Factor error",_xlfn.XLOOKUP($H86,'Customized Embodied EF'!$B:$B,'Customized Embodied EF'!H:H,"error",0)),_xlfn.XLOOKUP($H86,'Customized Embodied EF'!$B:$B,'Customized Embodied EF'!$D:$D,"error",0)),"Factor error")) -> 0 | Q86: =IF(SUMIFS(Q:Q,$F:$F,$H86,$C:$C,"G4.")=0,0, IFERROR(SUMIFS(Q:Q,$F:$F,$H86,$C:$C,"G4.")*IF($F86="Customized", IF(_xlfn.XLOOKUP($H86,'Customized Embodied EF'!$B:$B,'Customized Embodied EF'!I:I,"error",0)="","Factor error",_xlfn.XLOOKUP($H86,'Customized Embodied EF'!$B:$B,'Customized Embodied EF'!I:I,"error",0)),_xlfn.XLOOKUP($H86,'Customized Embodied EF'!$B:$B,'Customized Embodied EF'!$D:$D,"error",0)),"Factor error")) -> 0 | R86: =IF(SUMIFS(R:R,$F:$F,$H86,$C:$C,"G4.")=0,0, IFERROR(SUMIFS(R:R,$F:$F,$H86,$C:$C,"G4.")*IF($F86="Customized", IF(_xlfn.XLOOKUP($H86,'Customized Embodied EF'!$B:$B,'Customized Embodied EF'!J:J,"error",0)="","Factor error",_xlfn.XLOOKUP($H86,'Customized Embodied EF'!$B:$B,'Customized Embodied EF'!J:J,"error",0)),_xlfn.XLOOKUP($H86,'Customized Embodied EF'!$B:$B,'Customized Embodied EF'!$D:$D,"error",0)),"Factor error")) -> 0
D87: =D86 -> A1.1.1 | E87: 19 | H87: Coating material | I87: (casting / semi-fabrication) | J87: [t CO2e/reporting period] | M87: =IF(SUMIFS(M:M,$F:$F,$H87,$C:$C,"G4.")=0,0, IFERROR(SUMIFS(M:M,$F:$F,$H87,$C:$C,"G4.")*IF($F87="Customized", IF(_xlfn.XLOOKUP($H87,'Customized Embodied EF'!$B:$B,'Customized Embodied EF'!E:E,"error",0)="","Factor error",_xlfn.XLOOKUP($H87,'Customized Embodied EF'!$B:$B,'Customized Embodied EF'!E:E,"error",0)),_xlfn.XLOOKUP($H87,'Customized Embodied EF'!$B:$B,'Customized Embodied EF'!$D:$D,"error",0)),"Factor error")) -> 0 | N87: =IF(SUMIFS(N:N,$F:$F,$H87,$C:$C,"G4.")=0,0, IFERROR(SUMIFS(N:N,$F:$F,$H87,$C:$C,"G4.")*IF($F87="Customized", IF(_xlfn.XLOOKUP($H87,'Customized Embodied EF'!$B:$B,'Customized Embodied EF'!F:F,"error",0)="","Factor error",_xlfn.XLOOKUP($H87,'Customized Embodied EF'!$B:$B,'Customized Embodied EF'!F:F,"error",0)),_xlfn.XLOOKUP($H87,'Customized Embodied EF'!$B:$B,'Customized Embodied EF'!$D:$D,"error",0)),"Factor error")) -> 0 | O87: =IF(SUMIFS(O:O,$F:$F,$H87,$C:$C,"G4.")=0,0, IFERROR(SUMIFS(O:O,$F:$F,$H87,$C:$C,"G4.")*IF($F87="Customized", IF(_xlfn.XLOOKUP($H87,'Customized Embodied EF'!$B:$B,'Customized Embodied EF'!G:G,"error",0)="","Factor error",_xlfn.XLOOKUP($H87,'Customized Embodied EF'!$B:$B,'Customized Embodied EF'!G:G,"error",0)),_xlfn.XLOOKUP($H87,'Customized Embodied EF'!$B:$B,'Customized Embodied EF'!$D:$D,"error",0)),"Factor error")) -> 0 | P87: =IF(SUMIFS(P:P,$F:$F,$H87,$C:$C,"G4.")=0,0, IFERROR(SUMIFS(P:P,$F:$F,$H87,$C:$C,"G4.")*IF($F87="Customized", IF(_xlfn.XLOOKUP($H87,'Customized Embodied EF'!$B:$B,'Customized Embodied EF'!H:H,"error",0)="","Factor error",_xlfn.XLOOKUP($H87,'Customized Embodied EF'!$B:$B,'Customized Embodied EF'!H:H,"error",0)),_xlfn.XLOOKUP($H87,'Customized Embodied EF'!$B:$B,'Customized Embodied EF'!$D:$D,"error",0)),"Factor error")) -> 0 | Q87: =IF(SUMIFS(Q:Q,$F:$F,$H87,$C:$C,"G4.")=0,0, IFERROR(SUMIFS(Q:Q,$F:$F,$H87,$C:$C,"G4.")*IF($F87="Customized", IF(_xlfn.XLOOKUP($H87,'Customized Embodied EF'!$B:$B,'Customized Embodied EF'!I:I,"error",0)="","Factor error",_xlfn.XLOOKUP($H87,'Customized Embodied EF'!$B:$B,'Customized Embodied EF'!I:I,"error",0)),_xlfn.XLOOKUP($H87,'Customized Embodied EF'!$B:$B,'Customized Embodied EF'!$D:$D,"error",0)),"Factor error")) -> 0 | R87: =IF(SUMIFS(R:R,$F:$F,$H87,$C:$C,"G4.")=0,0, IFERROR(SUMIFS(R:R,$F:$F,$H87,$C:$C,"G4.")*IF($F87="Customized", IF(_xlfn.XLOOKUP($H87,'Customized Embodied EF'!$B:$B,'Customized Embodied EF'!J:J,"error",0)="","Factor error",_xlfn.XLOOKUP($H87,'Customized Embodied EF'!$B:$B,'Customized Embodied EF'!J:J,"error",0)),_xlfn.XLOOKUP($H87,'Customized Embodied EF'!$B:$B,'Customized Embodied EF'!$D:$D,"error",0)),"Factor error")) -> 0
D88: =D77 -> A1.1.1 | E88: 20 | H88: Thermal break - Polyamide | I88: (casting / semi-fabrication) | J88: [t CO2e/reporting period] | M88: =IF(SUMIFS(M:M,$F:$F,$H88,$C:$C,"G4.")=0,0, IFERROR(SUMIFS(M:M,$F:$F,$H88,$C:$C,"G4.")*IF($F88="Customized", IF(_xlfn.XLOOKUP($H88,'Customized Embodied EF'!$B:$B,'Customized Embodied EF'!E:E,"error",0)="","Factor error",_xlfn.XLOOKUP($H88,'Customized Embodied EF'!$B:$B,'Customized Embodied EF'!E:E,"error",0)),_xlfn.XLOOKUP($H88,'Customized Embodied EF'!$B:$B,'Customized Embodied EF'!$D:$D,"error",0)),"Factor error")) -> 0 | N88: =IF(SUMIFS(N:N,$F:$F,$H88,$C:$C,"G4.")=0,0, IFERROR(SUMIFS(N:N,$F:$F,$H88,$C:$C,"G4.")*IF($F88="Customized", IF(_xlfn.XLOOKUP($H88,'Customized Embodied EF'!$B:$B,'Customized Embodied EF'!F:F,"error",0)="","Factor error",_xlfn.XLOOKUP($H88,'Customized Embodied EF'!$B:$B,'Customized Embodied EF'!F:F,"error",0)),_xlfn.XLOOKUP($H88,'Customized Embodied EF'!$B:$B,'Customized Embodied EF'!$D:$D,"error",0)),"Factor error")) -> 0 | O88: =IF(SUMIFS(O:O,$F:$F,$H88,$C:$C,"G4.")=0,0, IFERROR(SUMIFS(O:O,$F:$F,$H88,$C:$C,"G4.")*IF($F88="Customized", IF(_xlfn.XLOOKUP($H88,'Customized Embodied EF'!$B:$B,'Customized Embodied EF'!G:G,"error",0)="","Factor error",_xlfn.XLOOKUP($H88,'Customized Embodied EF'!$B:$B,'Customized Embodied EF'!G:G,"error",0)),_xlfn.XLOOKUP($H88,'Customized Embodied EF'!$B:$B,'Customized Embodied EF'!$D:$D,"error",0)),"Factor error")) -> 0 | P88: =IF(SUMIFS(P:P,$F:$F,$H88,$C:$C,"G4.")=0,0, IFERROR(SUMIFS(P:P,$F:$F,$H88,$C:$C,"G4.")*IF($F88="Customized", IF(_xlfn.XLOOKUP($H88,'Customized Embodied EF'!$B:$B,'Customized Embodied EF'!H:H,"error",0)="","Factor error",_xlfn.XLOOKUP($H88,'Customized Embodied EF'!$B:$B,'Customized Embodied EF'!H:H,"error",0)),_xlfn.XLOOKUP($H88,'Customized Embodied EF'!$B:$B,'Customized Embodied EF'!$D:$D,"error",0)),"Factor error")) -> 0 | Q88: =IF(SUMIFS(Q:Q,$F:$F,$H88,$C:$C,"G4.")=0,0, IFERROR(SUMIFS(Q:Q,$F:$F,$H88,$C:$C,"G4.")*IF($F88="Customized", IF(_xlfn.XLOOKUP($H88,'Customized Embodied EF'!$B:$B,'Customized Embodied EF'!I:I,"error",0)="","Factor error",_xlfn.XLOOKUP($H88,'Customized Embodied EF'!$B:$B,'Customized Embodied EF'!I:I,"error",0)),_xlfn.XLOOKUP($H88,'Customized Embodied EF'!$B:$B,'Customized Embodied EF'!$D:$D,"error",0)),"Factor error")) -> 0 | R88: =IF(SUMIFS(R:R,$F:$F,$H88,$C:$C,"G4.")=0,0, IFERROR(SUMIFS(R:R,$F:$F,$H88,$C:$C,"G4.")*IF($F88="Customized", IF(_xlfn.XLOOKUP($H88,'Customized Embodied EF'!$B:$B,'Customized Embodied EF'!J:J,"error",0)="","Factor error",_xlfn.XLOOKUP($H88,'Customized Embodied EF'!$B:$B,'Customized Embodied EF'!J:J,"error",0)),_xlfn.XLOOKUP($H88,'Customized Embodied EF'!$B:$B,'Customized Embodied EF'!$D:$D,"error",0)),"Factor error")) -> 0
D89: =D88 -> A1.1.1 | E89: 21 | H89: =IF(F51="","",F51) ->  | I89: [refer to section G4.21] | J89: [t CO2e/reporting period] | M89: =IF(SUMIFS(M:M,$F:$F,$H89,$C:$C,"G4.")=0,0, IFERROR(SUMIFS(M:M,$F:$F,$H89,$C:$C,"G4.")*IF($F89="Customized", IF(_xlfn.XLOOKUP($H89,'Customized Embodied EF'!$B:$B,'Customized Embodied EF'!E:E,"error",0)="","Factor error",_xlfn.XLOOKUP($H89,'Customized Embodied EF'!$B:$B,'Customized Embodied EF'!E:E,"error",0)),_xlfn.XLOOKUP($H89,'Customized Embodied EF'!$B:$B,'Customized Embodied EF'!$D:$D,"error",0)),"Factor error")) -> 0 | N89: =IF(SUMIFS(N:N,$F:$F,$H89,$C:$C,"G4.")=0,0, IFERROR(SUMIFS(N:N,$F:$F,$H89,$C:$C,"G4.")*IF($F89="Customized", IF(_xlfn.XLOOKUP($H89,'Customized Embodied EF'!$B:$B,'Customized Embodied EF'!F:F,"error",0)="","Factor error",_xlfn.XLOOKUP($H89,'Customized Embodied EF'!$B:$B,'Customized Embodied EF'!F:F,"error",0)),_xlfn.XLOOKUP($H89,'Customized Embodied EF'!$B:$B,'Customized Embodied EF'!$D:$D,"error",0)),"Factor error")) -> 0 | O89: =IF(SUMIFS(O:O,$F:$F,$H89,$C:$C,"G4.")=0,0, IFERROR(SUMIFS(O:O,$F:$F,$H89,$C:$C,"G4.")*IF($F89="Customized", IF(_xlfn.XLOOKUP($H89,'Customized Embodied EF'!$B:$B,'Customized Embodied EF'!G:G,"error",0)="","Factor error",_xlfn.XLOOKUP($H89,'Customized Embodied EF'!$B:$B,'Customized Embodied EF'!G:G,"error",0)),_xlfn.XLOOKUP($H89,'Customized Embodied EF'!$B:$B,'Customized Embodied EF'!$D:$D,"error",0)),"Factor error")) -> 0 | P89: =IF(SUMIFS(P:P,$F:$F,$H89,$C:$C,"G4.")=0,0, IFERROR(SUMIFS(P:P,$F:$F,$H89,$C:$C,"G4.")*IF($F89="Customized", IF(_xlfn.XLOOKUP($H89,'Customized Embodied EF'!$B:$B,'Customized Embodied EF'!H:H,"error",0)="","Factor error",_xlfn.XLOOKUP($H89,'Customized Embodied EF'!$B:$B,'Customized Embodied EF'!H:H,"error",0)),_xlfn.XLOOKUP($H89,'Customized Embodied EF'!$B:$B,'Customized Embodied EF'!$D:$D,"error",0)),"Factor error")) -> 0 | Q89: =IF(SUMIFS(Q:Q,$F:$F,$H89,$C:$C,"G4.")=0,0, IFERROR(SUMIFS(Q:Q,$F:$F,$H89,$C:$C,"G4.")*IF($F89="Customized", IF(_xlfn.XLOOKUP($H89,'Customized Embodied EF'!$B:$B,'Customized Embodied EF'!I:I,"error",0)="","Factor error",_xlfn.XLOOKUP($H89,'Customized Embodied EF'!$B:$B,'Customized Embodied EF'!I:I,"error",0)),_xlfn.XLOOKUP($H89,'Customized Embodied EF'!$B:$B,'Customized Embodied EF'!$D:$D,"error",0)),"Factor error")) -> 0 | R89: =IF(SUMIFS(R:R,$F:$F,$H89,$C:$C,"G4.")=0,0, IFERROR(SUMIFS(R:R,$F:$F,$H89,$C:$C,"G4.")*IF($F89="Customized", IF(_xlfn.XLOOKUP($H89,'Customized Embodied EF'!$B:$B,'Customized Embodied EF'!J:J,"error",0)="","Factor error",_xlfn.XLOOKUP($H89,'Customized Embodied EF'!$B:$B,'Customized Embodied EF'!J:J,"error",0)),_xlfn.XLOOKUP($H89,'Customized Embodied EF'!$B:$B,'Customized Embodied EF'!$D:$D,"error",0)),"Factor error")) -> 0
C90: A1.1.2 | F90: CO2e from bought energy commodity | J90: [t CO2e/reporting period] | M90: =SUMIF($D:$D,$C90,M:M) -> 0 | N90: 0 | O90: 0 | P90: 0 | Q90: 0 | R90: 0
F91: Adopting CO2e Factors | H91: [Please insert additional rows if more energy commodities are included]
D92: =C90 -> A1.1.2 | E92: .1 | H92: =H58 -> Energy commodity : | J92: [t CO2e/reporting period] | K92: =SUM(M92:R92) -> 0 | M92: =IFERROR(SUMIFS(M:M,$I:$I,$I92,$C:$C,"G4.")*IF($F92="Customized", IF(_xlfn.XLOOKUP($I92,'Customized Embodied EF'!$B:$B,'Customized Embodied EF'!E:E,"error",0)="","Factor error",_xlfn.XLOOKUP($I92,'Customized Embodied EF'!$B:$B,'Customized Embodied EF'!E:E,"error",0)),_xlfn.XLOOKUP($I92,'Customized Embodied EF'!$B:$B,'Customized Embodied EF'!$D:$D,"error",0)),"Factor error") -> 0 | N92: =IFERROR(SUMIFS(N:N,$I:$I,$I92,$C:$C,"G4.")*IF($F92="Customized", IF(_xlfn.XLOOKUP($I92,'Customized Embodied EF'!$B:$B,'Customized Embodied EF'!F:F,"error",0)="","Factor error",_xlfn.XLOOKUP($I92,'Customized Embodied EF'!$B:$B,'Customized Embodied EF'!F:F,"error",0)),_xlfn.XLOOKUP($I92,'Customized Embodied EF'!$B:$B,'Customized Embodied EF'!$D:$D,"error",0)),"Factor error") -> 0 | O92: =IFERROR(SUMIFS(O:O,$I:$I,$I92,$C:$C,"G4.")*IF($F92="Customized", IF(_xlfn.XLOOKUP($I92,'Customized Embodied EF'!$B:$B,'Customized Embodied EF'!G:G,"error",0)="","Factor error",_xlfn.XLOOKUP($I92,'Customized Embodied EF'!$B:$B,'Customized Embodied EF'!G:G,"error",0)),_xlfn.XLOOKUP($I92,'Customized Embodied EF'!$B:$B,'Customized Embodied EF'!$D:$D,"error",0)),"Factor error") -> 0 | P92: =IFERROR(SUMIFS(P:P,$I:$I,$I92,$C:$C,"G4.")*IF($F92="Customized", IF(_xlfn.XLOOKUP($I92,'Customized Embodied EF'!$B:$B,'Customized Embodied EF'!H:H,"error",0)="","Factor error",_xlfn.XLOOKUP($I92,'Customized Embodied EF'!$B:$B,'Customized Embodied EF'!H:H,"error",0)),_xlfn.XLOOKUP($I92,'Customized Embodied EF'!$B:$B,'Customized Embodied EF'!$D:$D,"error",0)),"Factor error") -> 0 | Q92: =IFERROR(SUMIFS(Q:Q,$I:$I,$I92,$C:$C,"G4.")*IF($F92="Customized", IF(_xlfn.XLOOKUP($I92,'Customized Embodied EF'!$B:$B,'Customized Embodied EF'!I:I,"error",0)="","Factor error",_xlfn.XLOOKUP($I92,'Customized Embodied EF'!$B:$B,'Customized Embodied EF'!I:I,"error",0)),_xlfn.XLOOKUP($I92,'Customized Embodied EF'!$B:$B,'Customized Embodied EF'!$D:$D,"error",0)),"Factor error") -> 0 | R92: =IFERROR(SUMIFS(R:R,$I:$I,$I92,$C:$C,"G4.")*IF($F92="Customized", IF(_xlfn.XLOOKUP($I92,'Customized Embodied EF'!$B:$B,'Customized Embodied EF'!J:J,"error",0)="","Factor error",_xlfn.XLOOKUP($I92,'Customized Embodied EF'!$B:$B,'Customized Embodied EF'!J:J,"error",0)),_xlfn.XLOOKUP($I92,'Customized Embodied EF'!$B:$B,'Customized Embodied EF'!$D:$D,"error",0)),"Factor error") -> 0
D93: =D92 -> A1.1.2 | E93: .2 | H93: =H59 -> Energy commodity : | J93: [t CO2e/reporting period] | K93: =SUM(M93:R93) -> 0 | M93: =IFERROR(SUMIFS(M:M,$I:$I,$I93,$C:$C,"G4.")*IF($F93="Customized", IF(_xlfn.XLOOKUP($I93,'Customized Embodied EF'!$B:$B,'Customized Embodied EF'!E:E,"error",0)="","Factor error",_xlfn.XLOOKUP($I93,'Customized Embodied EF'!$B:$B,'Customized Embodied EF'!E:E,"error",0)),_xlfn.XLOOKUP($I93,'Customized Embodied EF'!$B:$B,'Customized Embodied EF'!$D:$D,"error",0)),"Factor error") -> 0 | N93: =IFERROR(SUMIFS(N:N,$I:$I,$I93,$C:$C,"G4.")*IF($F93="Customized", IF(_xlfn.XLOOKUP($I93,'Customized Embodied EF'!$B:$B,'Customized Embodied EF'!F:F,"error",0)="","Factor error",_xlfn.XLOOKUP($I93,'Customized Embodied EF'!$B:$B,'Customized Embodied EF'!F:F,"error",0)),_xlfn.XLOOKUP($I93,'Customized Embodied EF'!$B:$B,'Customized Embodied EF'!$D:$D,"error",0)),"Factor error") -> 0 | O93: =IFERROR(SUMIFS(O:O,$I:$I,$I93,$C:$C,"G4.")*IF($F93="Customized", IF(_xlfn.XLOOKUP($I93,'Customized Embodied EF'!$B:$B,'Customized Embodied EF'!G:G,"error",0)="","Factor error",_xlfn.XLOOKUP($I93,'Customized Embodied EF'!$B:$B,'Customized Embodied EF'!G:G,"error",0)),_xlfn.XLOOKUP($I93,'Customized Embodied EF'!$B:$B,'Customized Embodied EF'!$D:$D,"error",0)),"Factor error") -> 0 | P93: =IFERROR(SUMIFS(P:P,$I:$I,$I93,$C:$C,"G4.")*IF($F93="Customized", IF(_xlfn.XLOOKUP($I93,'Customized Embodied EF'!$B:$B,'Customized Embodied EF'!H:H,"error",0)="","Factor error",_xlfn.XLOOKUP($I93,'Customized Embodied EF'!$B:$B,'Customized Embodied EF'!H:H,"error",0)),_xlfn.XLOOKUP($I93,'Customized Embodied EF'!$B:$B,'Customized Embodied EF'!$D:$D,"error",0)),"Factor error") -> 0 | Q93: =IFERROR(SUMIFS(Q:Q,$I:$I,$I93,$C:$C,"G4.")*IF($F93="Customized", IF(_xlfn.XLOOKUP($I93,'Customized Embodied EF'!$B:$B,'Customized Embodied EF'!I:I,"error",0)="","Factor error",_xlfn.XLOOKUP($I93,'Customized Embodied EF'!$B:$B,'Customized Embodied EF'!I:I,"error",0)),_xlfn.XLOOKUP($I93,'Customized Embodied EF'!$B:$B,'Customized Embodied EF'!$D:$D,"error",0)),"Factor error") -> 0 | R93: =IFERROR(SUMIFS(R:R,$I:$I,$I93,$C:$C,"G4.")*IF($F93="Customized", IF(_xlfn.XLOOKUP($I93,'Customized Embodied EF'!$B:$B,'Customized Embodied EF'!J:J,"error",0)="","Factor error",_xlfn.XLOOKUP($I93,'Customized Embodied EF'!$B:$B,'Customized Embodied EF'!J:J,"error",0)),_xlfn.XLOOKUP($I93,'Customized Embodied EF'!$B:$B,'Customized Embodied EF'!$D:$D,"error",0)),"Factor error") -> 0
D94: =D93 -> A1.1.2 | E94: .3 | H94: =H93 -> Energy commodity : | J94: [t CO2e/reporting period] | K94: 0 | M94: =IFERROR(SUMIFS(M:M,$I:$I,$I94,$C:$C,"G4.")*IF($F94="Customized", IF(_xlfn.XLOOKUP($I94,'Customized Embodied EF'!$B:$B,'Customized Embodied EF'!E:E,"error",0)="","Factor error",_xlfn.XLOOKUP($I94,'Customized Embodied EF'!$B:$B,'Customized Embodied EF'!E:E,"error",0)),_xlfn.XLOOKUP($I94,'Customized Embodied EF'!$B:$B,'Customized Embodied EF'!$D:$D,"error",0)),"Factor error") -> 0 | N94: =IFERROR(SUMIFS(N:N,$I:$I,$I94,$C:$C,"G4.")*IF($F94="Customized", IF(_xlfn.XLOOKUP($I94,'Customized Embodied EF'!$B:$B,'Customized Embodied EF'!F:F,"error",0)="","Factor error",_xlfn.XLOOKUP($I94,'Customized Embodied EF'!$B:$B,'Customized Embodied EF'!F:F,"error",0)),_xlfn.XLOOKUP($I94,'Customized Embodied EF'!$B:$B,'Customized Embodied EF'!$D:$D,"error",0)),"Factor error") -> 0 | O94: =IFERROR(SUMIFS(O:O,$I:$I,$I94,$C:$C,"G4.")*IF($F94="Customized", IF(_xlfn.XLOOKUP($I94,'Customized Embodied EF'!$B:$B,'Customized Embodied EF'!G:G,"error",0)="","Factor error",_xlfn.XLOOKUP($I94,'Customized Embodied EF'!$B:$B,'Customized Embodied EF'!G:G,"error",0)),_xlfn.XLOOKUP($I94,'Customized Embodied EF'!$B:$B,'Customized Embodied EF'!$D:$D,"error",0)),"Factor error") -> 0 | P94: =IFERROR(SUMIFS(P:P,$I:$I,$I94,$C:$C,"G4.")*IF($F94="Customized", IF(_xlfn.XLOOKUP($I94,'Customized Embodied EF'!$B:$B,'Customized Embodied EF'!H:H,"error",0)="","Factor error",_xlfn.XLOOKUP($I94,'Customized Embodied EF'!$B:$B,'Customized Embodied EF'!H:H,"error",0)),_xlfn.XLOOKUP($I94,'Customized Embodied EF'!$B:$B,'Customized Embodied EF'!$D:$D,"error",0)),"Factor error") -> 0 | Q94: =IFERROR(SUMIFS(Q:Q,$I:$I,$I94,$C:$C,"G4.")*IF($F94="Customized", IF(_xlfn.XLOOKUP($I94,'Customized Embodied EF'!$B:$B,'Customized Embodied EF'!I:I,"error",0)="","Factor error",_xlfn.XLOOKUP($I94,'Customized Embodied EF'!$B:$B,'Customized Embodied EF'!I:I,"error",0)),_xlfn.XLOOKUP($I94,'Customized Embodied EF'!$B:$B,'Customized Embodied EF'!$D:$D,"error",0)),"Factor error") -> 0 | R94: =IFERROR(SUMIFS(R:R,$I:$I,$I94,$C:$C,"G4.")*IF($F94="Customized", IF(_xlfn.XLOOKUP($I94,'Customized Embodied EF'!$B:$B,'Customized Embodied EF'!J:J,"error",0)="","Factor error",_xlfn.XLOOKUP($I94,'Customized Embodied EF'!$B:$B,'Customized Embodied EF'!J:J,"error",0)),_xlfn.XLOOKUP($I94,'Customized Embodied EF'!$B:$B,'Customized Embodied EF'!$D:$D,"error",0)),"Factor error") -> 0
D95: =D94 -> A1.1.2 | E95: .4 | H95: =H94 -> Energy commodity : | J95: [t CO2e/reporting period] | K95: 0 | M95: =IFERROR(SUMIFS(M:M,$I:$I,$I95,$C:$C,"G4.")*IF($F95="Customized", IF(_xlfn.XLOOKUP($I95,'Customized Embodied EF'!$B:$B,'Customized Embodied EF'!E:E,"error",0)="","Factor error",_xlfn.XLOOKUP($I95,'Customized Embodied EF'!$B:$B,'Customized Embodied EF'!E:E,"error",0)),_xlfn.XLOOKUP($I95,'Customized Embodied EF'!$B:$B,'Customized Embodied EF'!$D:$D,"error",0)),"Factor error") -> 0 | N95: =IFERROR(SUMIFS(N:N,$I:$I,$I95,$C:$C,"G4.")*IF($F95="Customized", IF(_xlfn.XLOOKUP($I95,'Customized Embodied EF'!$B:$B,'Customized Embodied EF'!F:F,"error",0)="","Factor error",_xlfn.XLOOKUP($I95,'Customized Embodied EF'!$B:$B,'Customized Embodied EF'!F:F,"error",0)),_xlfn.XLOOKUP($I95,'Customized Embodied EF'!$B:$B,'Customized Embodied EF'!$D:$D,"error",0)),"Factor error") -> 0 | O95: =IFERROR(SUMIFS(O:O,$I:$I,$I95,$C:$C,"G4.")*IF($F95="Customized", IF(_xlfn.XLOOKUP($I95,'Customized Embodied EF'!$B:$B,'Customized Embodied EF'!G:G,"error",0)="","Factor error",_xlfn.XLOOKUP($I95,'Customized Embodied EF'!$B:$B,'Customized Embodied EF'!G:G,"error",0)),_xlfn.XLOOKUP($I95,'Customized Embodied EF'!$B:$B,'Customized Embodied EF'!$D:$D,"error",0)),"Factor error") -> 0 | P95: =IFERROR(SUMIFS(P:P,$I:$I,$I95,$C:$C,"G4.")*IF($F95="Customized", IF(_xlfn.XLOOKUP($I95,'Customized Embodied EF'!$B:$B,'Customized Embodied EF'!H:H,"error",0)="","Factor error",_xlfn.XLOOKUP($I95,'Customized Embodied EF'!$B:$B,'Customized Embodied EF'!H:H,"error",0)),_xlfn.XLOOKUP($I95,'Customized Embodied EF'!$B:$B,'Customized Embodied EF'!$D:$D,"error",0)),"Factor error") -> 0 | Q95: =IFERROR(SUMIFS(Q:Q,$I:$I,$I95,$C:$C,"G4.")*IF($F95="Customized", IF(_xlfn.XLOOKUP($I95,'Customized Embodied EF'!$B:$B,'Customized Embodied EF'!I:I,"error",0)="","Factor error",_xlfn.XLOOKUP($I95,'Customized Embodied EF'!$B:$B,'Customized Embodied EF'!I:I,"error",0)),_xlfn.XLOOKUP($I95,'Customized Embodied EF'!$B:$B,'Customized Embodied EF'!$D:$D,"error",0)),"Factor error") -> 0 | R95: =IFERROR(SUMIFS(R:R,$I:$I,$I95,$C:$C,"G4.")*IF($F95="Customized", IF(_xlfn.XLOOKUP($I95,'Customized Embodied EF'!$B:$B,'Customized Embodied EF'!J:J,"error",0)="","Factor error",_xlfn.XLOOKUP($I95,'Customized Embodied EF'!$B:$B,'Customized Embodied EF'!J:J,"error",0)),_xlfn.XLOOKUP($I95,'Customized Embodied EF'!$B:$B,'Customized Embodied EF'!$D:$D,"error",0)),"Factor error") -> 0
D96: A1.1.2 | E96: .5 | H96: Energy commodity : | J96: [t CO2e/reporting period] | K96: =SUM(M96:R96) -> 0 | M96: =IFERROR(SUMIFS(M:M,$I:$I,$I96,$C:$C,"G4.")*IF($F96="Customized", IF(_xlfn.XLOOKUP($I96,'Customized Embodied EF'!$B:$B,'Customized Embodied EF'!E:E,"error",0)="","Factor error",_xlfn.XLOOKUP($I96,'Customized Embodied EF'!$B:$B,'Customized Embodied EF'!E:E,"error",0)),_xlfn.XLOOKUP($I96,'Customized Embodied EF'!$B:$B,'Customized Embodied EF'!$D:$D,"error",0)),"Factor error") -> 0 | N96: =IFERROR(SUMIFS(N:N,$I:$I,$I96,$C:$C,"G4.")*IF($F96="Customized", IF(_xlfn.XLOOKUP($I96,'Customized Embodied EF'!$B:$B,'Customized Embodied EF'!F:F,"error",0)="","Factor error",_xlfn.XLOOKUP($I96,'Customized Embodied EF'!$B:$B,'Customized Embodied EF'!F:F,"error",0)),_xlfn.XLOOKUP($I96,'Customized Embodied EF'!$B:$B,'Customized Embodied EF'!$D:$D,"error",0)),"Factor error") -> 0 | O96: =IFERROR(SUMIFS(O:O,$I:$I,$I96,$C:$C,"G4.")*IF($F96="Customized", IF(_xlfn.XLOOKUP($I96,'Customized Embodied EF'!$B:$B,'Customized Embodied EF'!G:G,"error",0)="","Factor error",_xlfn.XLOOKUP($I96,'Customized Embodied EF'!$B:$B,'Customized Embodied EF'!G:G,"error",0)),_xlfn.XLOOKUP($I96,'Customized Embodied EF'!$B:$B,'Customized Embodied EF'!$D:$D,"error",0)),"Factor error") -> 0 | P96: =IFERROR(SUMIFS(P:P,$I:$I,$I96,$C:$C,"G4.")*IF($F96="Customized", IF(_xlfn.XLOOKUP($I96,'Customized Embodied EF'!$B:$B,'Customized Embodied EF'!H:H,"error",0)="","Factor error",_xlfn.XLOOKUP($I96,'Customized Embodied EF'!$B:$B,'Customized Embodied EF'!H:H,"error",0)),_xlfn.XLOOKUP($I96,'Customized Embodied EF'!$B:$B,'Customized Embodied EF'!$D:$D,"error",0)),"Factor error") -> 0 | Q96: =IFERROR(SUMIFS(Q:Q,$I:$I,$I96,$C:$C,"G4.")*IF($F96="Customized", IF(_xlfn.XLOOKUP($I96,'Customized Embodied EF'!$B:$B,'Customized Embodied EF'!I:I,"error",0)="","Factor error",_xlfn.XLOOKUP($I96,'Customized Embodied EF'!$B:$B,'Customized Embodied EF'!I:I,"error",0)),_xlfn.XLOOKUP($I96,'Customized Embodied EF'!$B:$B,'Customized Embodied EF'!$D:$D,"error",0)),"Factor error") -> 0 | R96: =IFERROR(SUMIFS(R:R,$I:$I,$I96,$C:$C,"G4.")*IF($F96="Customized", IF(_xlfn.XLOOKUP($I96,'Customized Embodied EF'!$B:$B,'Customized Embodied EF'!J:J,"error",0)="","Factor error",_xlfn.XLOOKUP($I96,'Customized Embodied EF'!$B:$B,'Customized Embodied EF'!J:J,"error",0)),_xlfn.XLOOKUP($I96,'Customized Embodied EF'!$B:$B,'Customized Embodied EF'!$D:$D,"error",0)),"Factor error") -> 0
D97: =D96 -> A1.1.2 | E97: .6 | H97: =H59 -> Energy commodity : | J97: [t CO2e/reporting period] | K97: =SUM(M97:R97) -> 0 | M97: =IFERROR(SUMIFS(M:M,$I:$I,$I97,$C:$C,"G4.")*IF($F97="Customized", IF(_xlfn.XLOOKUP($I97,'Customized Embodied EF'!$B:$B,'Customized Embodied EF'!E:E,"error",0)="","Factor error",_xlfn.XLOOKUP($I97,'Customized Embodied EF'!$B:$B,'Customized Embodied EF'!E:E,"error",0)),_xlfn.XLOOKUP($I97,'Customized Embodied EF'!$B:$B,'Customized Embodied EF'!$D:$D,"error",0)),"Factor error") -> 0 | N97: =IFERROR(SUMIFS(N:N,$I:$I,$I97,$C:$C,"G4.")*IF($F97="Customized", IF(_xlfn.XLOOKUP($I97,'Customized Embodied EF'!$B:$B,'Customized Embodied EF'!F:F,"error",0)="","Factor error",_xlfn.XLOOKUP($I97,'Customized Embodied EF'!$B:$B,'Customized Embodied EF'!F:F,"error",0)),_xlfn.XLOOKUP($I97,'Customized Embodied EF'!$B:$B,'Customized Embodied EF'!$D:$D,"error",0)),"Factor error") -> 0 | O97: =IFERROR(SUMIFS(O:O,$I:$I,$I97,$C:$C,"G4.")*IF($F97="Customized", IF(_xlfn.XLOOKUP($I97,'Customized Embodied EF'!$B:$B,'Customized Embodied EF'!G:G,"error",0)="","Factor error",_xlfn.XLOOKUP($I97,'Customized Embodied EF'!$B:$B,'Customized Embodied EF'!G:G,"error",0)),_xlfn.XLOOKUP($I97,'Customized Embodied EF'!$B:$B,'Customized Embodied EF'!$D:$D,"error",0)),"Factor error") -> 0 | P97: =IFERROR(SUMIFS(P:P,$I:$I,$I97,$C:$C,"G4.")*IF($F97="Customized", IF(_xlfn.XLOOKUP($I97,'Customized Embodied EF'!$B:$B,'Customized Embodied EF'!H:H,"error",0)="","Factor error",_xlfn.XLOOKUP($I97,'Customized Embodied EF'!$B:$B,'Customized Embodied EF'!H:H,"error",0)),_xlfn.XLOOKUP($I97,'Customized Embodied EF'!$B:$B,'Customized Embodied EF'!$D:$D,"error",0)),"Factor error") -> 0 | Q97: =IFERROR(SUMIFS(Q:Q,$I:$I,$I97,$C:$C,"G4.")*IF($F97="Customized", IF(_xlfn.XLOOKUP($I97,'Customized Embodied EF'!$B:$B,'Customized Embodied EF'!I:I,"error",0)="","Factor error",_xlfn.XLOOKUP($I97,'Customized Embodied EF'!$B:$B,'Customized Embodied EF'!I:I,"error",0)),_xlfn.XLOOKUP($I97,'Customized Embodied EF'!$B:$B,'Customized Embodied EF'!$D:$D,"error",0)),"Factor error") -> 0 | R97: =IFERROR(SUMIFS(R:R,$I:$I,$I97,$C:$C,"G4.")*IF($F97="Customized", IF(_xlfn.XLOOKUP($I97,'Customized Embodied EF'!$B:$B,'Customized Embodied EF'!J:J,"error",0)="","Factor error",_xlfn.XLOOKUP($I97,'Customized Embodied EF'!$B:$B,'Customized Embodied EF'!J:J,"error",0)),_xlfn.XLOOKUP($I97,'Customized Embodied EF'!$B:$B,'Customized Embodied EF'!$D:$D,"error",0)),"Factor error") -> 0
C98: A1.2.5 | I98: Total CO2e in Stage A1 | J98: [t CO2e/reporting period] | K98: =SUM(M98:R98) -> 0 | M98: =IF(AND(M67="",M90=""),"",(M67+M90)) -> 0 | N98: 0 | O98: 0 | P98: 0 | Q98: 0 | R98: 0
B99: A2 | C99: PROJECT LIFE CYCLE STAGE: A2 OFF-SITE TRANSPORTATION OF RAW MATERIALS TO MANUFACTURING PLANT
C100: A2.1 CO2e EMISSIONS | J100: unit | K100: Total | M100: Product 1 | N100: Product 2 | O100: Product 3 | P100: Product 4 | Q100: Product 5 | R100: Product 6
C101: A2.1.1 | F101: CO2e from off-site transportation of raw material to manufacturing plant
D102: =C101 -> A2.1.1 | E102: .1 | F102: CO2e calculated using either 1) WRI & WBCSD's protocol OR 2) EPD & EMSD's carbon audit tool) | J102: [t CO2e/reporting period] | K102: =SUM(M102:R102) -> 0
C103: A2.1.2 | I103: Total CO2e in Stage A2 | J103: [t CO2e/reporting period] | K103: =IF(AND(K102=""),"",(K102)) -> 0 | M103: =IF(AND(M102=""),"",(M102)) ->  | N103: =IF(AND(N102=""),"",(N102)) ->  | O103: =IF(AND(O102=""),"",(O102)) -> 
B104: A3 | C104: PROJECT LIFE CYCLE STAGE: A3 PRODUCT MANUFACTURING AND FABRICATION (WITHOUT WASTAGE)
C105: A3.1 CO2e EMISSIONS | J105: unit | K105: Total | M105: Product 1 | N105: Product 2 | O105: Product 3 | P105: Product 4 | Q105: Product 5 | R105: Product 6
C106: A3.1.1 | F106: CO2e from industrial processes | K106: =SUM(M106:R106) -> 0 | M106: =SUMIF($D:$D,$C106,M:M) -> 0 | N106: 0 | O106: =SUMIF($D:$D,$C106,O:O) -> 0 | P106: 0 | Q106: 0 | R106: 0
D107: =C106 -> A3.1.1 | E107: .1 | F107: CO2e from electrolysis | J107: [t CO2e/reporting period] | K107: =SUM(M107:R107) -> 0 | M107: =SUMIF($D:$D,$D108,M:M) -> 0 | N107: =SUMIF($D:$D,$D108,N:N) -> 0 | O107: =SUMIF($D:$D,$D108,O:O) -> 0 | P107: =SUMIF($D:$D,$D108,P:P) -> 0 | Q107: 0 | R107: 0
D108: =D107&E107 -> A3.1.1.1 | E108: .1 | F108: Type of Process Anode / Paste | H108: Type of Anode Cell Technology | I108: Adopting CO2e Factors
D109: =D108 -> A3.1.1.1 | E109: .2 | J109: [t CO2e/reporting period] | K109: =SUM(M109:R109) -> 0 | M109: =IF(OR($I109="",$F109="",$H109=""),0,IF(SUMIFS(M:M,$C:$C,"G3.",$D:$D,"1")=0,0,IFERROR(SUMIFS(M:M,$C:$C,"G3.",$D:$D,"1")*IF($I109="Customized", IF(_xlfn.XLOOKUP(1,('Customized Process Factors'!$B:$B=$F109)*('Customized Process Factors'!$C:$C=$H109),'Customized Process Factors'!I:I,"No CO2e EF",0)="","Factor error",_xlfn.XLOOKUP(1,('Customized Process Factors'!$B:$B=$F109)*('Customized Process Factors'!$C:$C=$H109),'Customized Process Factors'!I:I,"No CO2e EF",0)), _xlfn.XLOOKUP(1,('Customized Process Factors'!$B:$B=$F109)*('Customized Process Factors'!$C:$C=$H109),'Customized Process Factors'!$E:$E,"No CO2e EF",0)),"Factor error"))) -> 0 | N109: =IF(OR($I109="",$F109="",$H109=""),0,IF(SUMIFS(N:N,$C:$C,"G3.",$D:$D,"1")=0,0,IFERROR(SUMIFS(N:N,$C:$C,"G3.",$D:$D,"1")*IF($I109="Customized", IF(_xlfn.XLOOKUP(1,('Customized Process Factors'!$B:$B=$F109)*('Customized Process Factors'!$C:$C=$H109),'Customized Process Factors'!J:J,"No CO2e EF",0)="","Factor error",_xlfn.XLOOKUP(1,('Customized Process Factors'!$B:$B=$F109)*('Customized Process Factors'!$C:$C=$H109),'Customized Process Factors'!J:J,"No CO2e EF",0)), _xlfn.XLOOKUP(1,('Customized Process Factors'!$B:$B=$F109)*('Customized Process Factors'!$C:$C=$H109),'Customized Process Factors'!$E:$E,"No CO2e EF",0)),"Factor error"))) -> 0 | O109: =IF(OR($I109="",$F109="",$H109=""),0,IF(SUMIFS(O:O,$C:$C,"G3.",$D:$D,"1")=0,0,IFERROR(SUMIFS(O:O,$C:$C,"G3.",$D:$D,"1")*IF($I109="Customized", IF(_xlfn.XLOOKUP(1,('Customized Process Factors'!$B:$B=$F109)*('Customized Process Factors'!$C:$C=$H109),'Customized Process Factors'!K:K,"No CO2e EF",0)="","Factor error",_xlfn.XLOOKUP(1,('Customized Process Factors'!$B:$B=$F109)*('Customized Process Factors'!$C:$C=$H109),'Customized Process Factors'!K:K,"No CO2e EF",0)), _xlfn.XLOOKUP(1,('Customized Process Factors'!$B:$B=$F109)*('Customized Process Factors'!$C:$C=$H109),'Customized Process Factors'!$E:$E,"No CO2e EF",0)),"Factor error"))) -> 0 | P109: =IF(OR($I109="",$F109="",$H109=""),0,IF(SUMIFS(P:P,$C:$C,"G3.",$D:$D,"1")=0,0,IFERROR(SUMIFS(P:P,$C:$C,"G3.",$D:$D,"1")*IF($I109="Customized", IF(_xlfn.XLOOKUP(1,('Customized Process Factors'!$B:$B=$F109)*('Customized Process Factors'!$C:$C=$H109),'Customized Process Factors'!L:L,"No CO2e EF",0)="","Factor error",_xlfn.XLOOKUP(1,('Customized Process Factors'!$B:$B=$F109)*('Customized Process Factors'!$C:$C=$H109),'Customized Process Factors'!L:L,"No CO2e EF",0)), _xlfn.XLOOKUP(1,('Customized Process Factors'!$B:$B=$F109)*('Customized Process Factors'!$C:$C=$H109),'Customized Process Factors'!$E:$E,"No CO2e EF",0)),"Factor error"))) -> 0 | Q109: =IF(OR($I109="",$F109="",$H109=""),0,IF(SUMIFS(Q:Q,$C:$C,"G3.",$D:$D,"1")=0,0,IFERROR(SUMIFS(Q:Q,$C:$C,"G3.",$D:$D,"1")*IF($I109="Customized", IF(_xlfn.XLOOKUP(1,('Customized Process Factors'!$B:$B=$F109)*('Customized Process Factors'!$C:$C=$H109),'Customized Process Factors'!M:M,"No CO2e EF",0)="","Factor error",_xlfn.XLOOKUP(1,('Customized Process Factors'!$B:$B=$F109)*('Customized Process Factors'!$C:$C=$H109),'Customized Process Factors'!M:M,"No CO2e EF",0)), _xlfn.XLOOKUP(1,('Customized Process Factors'!$B:$B=$F109)*('Customized Process Factors'!$C:$C=$H109),'Customized Process Factors'!$E:$E,"No CO2e EF",0)),"Factor error"))) -> 0 | R109: =IF(OR($I109="",$F109="",$H109=""),0,IF(SUMIFS(R:R,$C:$C,"G3.",$D:$D,"1")=0,0,IFERROR(SUMIFS(R:R,$C:$C,"G3.",$D:$D,"1")*IF($I109="Customized", IF(_xlfn.XLOOKUP(1,('Customized Process Factors'!$B:$B=$F109)*('Customized Process Factors'!$C:$C=$H109),'Customized Process Factors'!N:N,"No CO2e EF",0)="","Factor error",_xlfn.XLOOKUP(1,('Customized Process Factors'!$B:$B=$F109)*('Customized Process Factors'!$C:$C=$H109),'Customized Process Factors'!N:N,"No CO2e EF",0)), _xlfn.XLOOKUP(1,('Customized Process Factors'!$B:$B=$F109)*('Customized Process Factors'!$C:$C=$H109),'Customized Process Factors'!$E:$E,"No CO2e EF",0)),"Factor error"))) -> 0
D110: =D107 -> A3.1.1 | E110: .2 | F110: CO2e from soda ash consumption | K110: =SUM(M110:R110) -> 0 | M110: =SUMIF($D:$D,$D111,M:M) -> 0 | N110: 0 | O110: 0 | P110: 0 | Q110: 0 | R110: 0
D111: =D110&E110 -> A3.1.1.2 | E111: .1 | F111: If soda ash is used smelting process (e.g. flue gas scrubbing) | I111: Adopting CO2e Factors
D112: =D111 -> A3.1.1.2 | E112: .2 | J112: [t CO2e/reporting period] | K112: =SUM(M112:R112) -> 0 | M112: =IF(OR($F112="N",SUMIFS(M:M,$C:$C,"G4.",$F:$F,"Soda ash / Sodium carbonate")=0),"N/A",IF(OR($F112="",$I112=""),0, IFERROR((SUMIFS(M:M,$C:$C,"G4.",$F:$F,"Soda ash / Sodium carbonate"))*IF($I112="Customized", IF(_xlfn.XLOOKUP("Soda ash / Sodium carbonate",'Customized Process Factors'!$B:$B,'Customized Process Factors'!I:I,"No CO2e EF",0)="","Factor error",_xlfn.XLOOKUP("Soda ash / Sodium carbonate",'Customized Process Factors'!$B:$B,'Customized Process Factors'!I:I,"No CO2e EF",0)), _xlfn.XLOOKUP("Soda ash / Sodium carbonate",'Customized Process Factors'!$B:$B,'Customized Process Factors'!$E:$E,"No CO2e EF",0)),"Factor error"))) -> N/A | N112: =IF(OR($F112="N",SUMIFS(N:N,$C:$C,"G4.",$F:$F,"Soda ash / Sodium carbonate")=0),"N/A",IF(OR($F112="",$I112=""),0, IFERROR((SUMIFS(N:N,$C:$C,"G4.",$F:$F,"Soda ash / Sodium carbonate"))*IF($I112="Customized", IF(_xlfn.XLOOKUP("Soda ash / Sodium carbonate",'Customized Process Factors'!$B:$B,'Customized Process Factors'!J:J,"No CO2e EF",0)="","Factor error",_xlfn.XLOOKUP("Soda ash / Sodium carbonate",'Customized Process Factors'!$B:$B,'Customized Process Factors'!J:J,"No CO2e EF",0)), _xlfn.XLOOKUP("Soda ash / Sodium carbonate",'Customized Process Factors'!$B:$B,'Customized Process Factors'!$E:$E,"No CO2e EF",0)),"Factor error"))) -> N/A | O112: =IF(OR($F112="N",SUMIFS(O:O,$C:$C,"G4.",$F:$F,"Soda ash / Sodium carbonate")=0),"N/A",IF(OR($F112="",$I112=""),0, IFERROR((SUMIFS(O:O,$C:$C,"G4.",$F:$F,"Soda ash / Sodium carbonate"))*IF($I112="Customized", IF(_xlfn.XLOOKUP("Soda ash / Sodium carbonate",'Customized Process Factors'!$B:$B,'Customized Process Factors'!K:K,"No CO2e EF",0)="","Factor error",_xlfn.XLOOKUP("Soda ash / Sodium carbonate",'Customized Process Factors'!$B:$B,'Customized Process Factors'!K:K,"No CO2e EF",0)), _xlfn.XLOOKUP("Soda ash / Sodium carbonate",'Customized Process Factors'!$B:$B,'Customized Process Factors'!$E:$E,"No CO2e EF",0)),"Factor error"))) -> N/A | P112: =IF(OR($F112="N",SUMIFS(P:P,$C:$C,"G4.",$F:$F,"Soda ash / Sodium carbonate")=0),"N/A",IF(OR($F112="",$I112=""),0, IFERROR((SUMIFS(P:P,$C:$C,"G4.",$F:$F,"Soda ash / Sodium carbonate"))*IF($I112="Customized", IF(_xlfn.XLOOKUP("Soda ash / Sodium carbonate",'Customized Process Factors'!$B:$B,'Customized Process Factors'!L:L,"No CO2e EF",0)="","Factor error",_xlfn.XLOOKUP("Soda ash / Sodium carbonate",'Customized Process Factors'!$B:$B,'Customized Process Factors'!L:L,"No CO2e EF",0)), _xlfn.XLOOKUP("Soda ash / Sodium carbonate",'Customized Process Factors'!$B:$B,'Customized Process Factors'!$E:$E,"No CO2e EF",0)),"Factor error"))) -> N/A | Q112: =IF(OR($F112="N",SUMIFS(Q:Q,$C:$C,"G4.",$F:$F,"Soda ash / Sodium carbonate")=0),"N/A",IF(OR($F112="",$I112=""),0, IFERROR((SUMIFS(Q:Q,$C:$C,"G4.",$F:$F,"Soda ash / Sodium carbonate"))*IF($I112="Customized", IF(_xlfn.XLOOKUP("Soda ash / Sodium carbonate",'Customized Process Factors'!$B:$B,'Customized Process Factors'!M:M,"No CO2e EF",0)="","Factor error",_xlfn.XLOOKUP("Soda ash / Sodium carbonate",'Customized Process Factors'!$B:$B,'Customized Process Factors'!M:M,"No CO2e EF",0)), _xlfn.XLOOKUP("Soda ash / Sodium carbonate",'Customized Process Factors'!$B:$B,'Customized Process Factors'!$E:$E,"No CO2e EF",0)),"Factor error"))) -> N/A | R112: =IF(OR($F112="N",SUMIFS(R:R,$C:$C,"G4.",$F:$F,"Soda ash / Sodium carbonate")=0),"N/A",IF(OR($F112="",$I112=""),0, IFERROR((SUMIFS(R:R,$C:$C,"G4.",$F:$F,"Soda ash / Sodium carbonate"))*IF($I112="Customized", IF(_xlfn.XLOOKUP("Soda ash / Sodium carbonate",'Customized Process Factors'!$B:$B,'Customized Process Factors'!N:N,"No CO2e EF",0)="","Factor error",_xlfn.XLOOKUP("Soda ash / Sodium carbonate",'Customized Process Factors'!$B:$B,'Customized Process Factors'!N:N,"No CO2e EF",0)), _xlfn.XLOOKUP("Soda ash / Sodium carbonate",'Customized Process Factors'!$B:$B,'Customized Process Factors'!$E:$E,"No CO2e EF",0)),"Factor error"))) -> N/A
D113: =D110 -> A3.1.1 | E113: .3 | F113: CO2e from petroleum coke calcination (auxiliary process) | K113: =SUM(M113:R113) -> 0 | M113: =SUMIF($D:$D,$D114,M:M) -> 0 | N113: 0 | O113: 0 | P113: 0 | Q113: 0 | R113: 0
D114: =D113&E113 -> A3.1.1.3 | E114: .1 | F114: If coke calcining operation is included in manufacturing process | I114: Adopting CO2e Factors
D115: =D114 -> A3.1.1.3 | E115: .2 | J115: [t CO2e/reporting period] | K115: 0 | M115: =IF(OR($F115="N",SUMIFS(M:M,$C:$C,"G4.",$F:$F,"Calcined petroleum coke")=0),"N/A",IF(OR($F115="",$I115=""),0,IFERROR(SUMIFS(M:M,$C:$C,"G4.",$F:$F,"Calcined petroleum coke")*IF($I115="Customized", IF(_xlfn.XLOOKUP("Calcined petroleum coke",'Customized Process Factors'!$B:$B,'Customized Process Factors'!I:I,"No CO2e EF",0)=0,"Factor error",_xlfn.XLOOKUP("Calcined petroleum coke",'Customized Process Factors'!$B:$B,'Customized Process Factors'!I:I,"No CO2e EF",0)), _xlfn.XLOOKUP("Calcined petroleum coke",'Customized Process Factors'!$B:$B,'Customized Process Factors'!$E:$E,"No CO2e EF",0)),"Factor error"))) -> N/A | N115: =IF(OR($F115="N",SUMIFS(N:N,$C:$C,"G4.",$F:$F,"Calcined petroleum coke")=0),"N/A",IF(OR($F115="",$I115=""),0,IFERROR(SUMIFS(N:N,$C:$C,"G4.",$F:$F,"Calcined petroleum coke")*IF($I115="Customized", IF(_xlfn.XLOOKUP("Calcined petroleum coke",'Customized Process Factors'!$B:$B,'Customized Process Factors'!J:J,"No CO2e EF",0)=0,"Factor error",_xlfn.XLOOKUP("Calcined petroleum coke",'Customized Process Factors'!$B:$B,'Customized Process Factors'!J:J,"No CO2e EF",0)), _xlfn.XLOOKUP("Calcined petroleum coke",'Customized Process Factors'!$B:$B,'Customized Process Factors'!$E:$E,"No CO2e EF",0)),"Factor error"))) -> N/A | O115: =IF(OR($F115="N",SUMIFS(O:O,$C:$C,"G4.",$F:$F,"Calcined petroleum coke")=0),"N/A",IF(OR($F115="",$I115=""),0,IFERROR(SUMIFS(O:O,$C:$C,"G4.",$F:$F,"Calcined petroleum coke")*IF($I115="Customized", IF(_xlfn.XLOOKUP("Calcined petroleum coke",'Customized Process Factors'!$B:$B,'Customized Process Factors'!K:K,"No CO2e EF",0)=0,"Factor error",_xlfn.XLOOKUP("Calcined petroleum coke",'Customized Process Factors'!$B:$B,'Customized Process Factors'!K:K,"No CO2e EF",0)), _xlfn.XLOOKUP("Calcined petroleum coke",'Customized Process Factors'!$B:$B,'Customized Process Factors'!$E:$E,"No CO2e EF",0)),"Factor error"))) -> N/A | P115: =IF(OR($F115="N",SUMIFS(P:P,$C:$C,"G4.",$F:$F,"Calcined petroleum coke")=0),"N/A",IF(OR($F115="",$I115=""),0,IFERROR(SUMIFS(P:P,$C:$C,"G4.",$F:$F,"Calcined petroleum coke")*IF($I115="Customized", IF(_xlfn.XLOOKUP("Calcined petroleum coke",'Customized Process Factors'!$B:$B,'Customized Process Factors'!L:L,"No CO2e EF",0)=0,"Factor error",_xlfn.XLOOKUP("Calcined petroleum coke",'Customized Process Factors'!$B:$B,'Customized Process Factors'!L:L,"No CO2e EF",0)), _xlfn.XLOOKUP("Calcined petroleum coke",'Customized Process Factors'!$B:$B,'Customized Process Factors'!$E:$E,"No CO2e EF",0)),"Factor error"))) -> N/A | Q115: =IF(OR($F115="N",SUMIFS(Q:Q,$C:$C,"G4.",$F:$F,"Calcined petroleum coke")=0),"N/A",IF(OR($F115="",$I115=""),0,IFERROR(SUMIFS(Q:Q,$C:$C,"G4.",$F:$F,"Calcined petroleum coke")*IF($I115="Customized", IF(_xlfn.XLOOKUP("Calcined petroleum coke",'Customized Process Factors'!$B:$B,'Customized Process Factors'!M:M,"No CO2e EF",0)=0,"Factor error",_xlfn.XLOOKUP("Calcined petroleum coke",'Customized Process Factors'!$B:$B,'Customized Process Factors'!M:M,"No CO2e EF",0)), _xlfn.XLOOKUP("Calcined petroleum coke",'Customized Process Factors'!$B:$B,'Customized Process Factors'!$E:$E,"No CO2e EF",0)),"Factor error"))) -> N/A | R115: =IF(OR($F115="N",SUMIFS(R:R,$C:$C,"G4.",$F:$F,"Calcined petroleum coke")=0),"N/A",IF(OR($F115="",$I115=""),0,IFERROR(SUMIFS(R:R,$C:$C,"G4.",$F:$F,"Calcined petroleum coke")*IF($I115="Customized", IF(_xlfn.XLOOKUP("Calcined petroleum coke",'Customized Process Factors'!$B:$B,'Customized Process Factors'!N:N,"No CO2e EF",0)=0,"Factor error",_xlfn.XLOOKUP("Calcined petroleum coke",'Customized Process Factors'!$B:$B,'Customized Process Factors'!N:N,"No CO2e EF",0)), _xlfn.XLOOKUP("Calcined petroleum coke",'Customized Process Factors'!$B:$B,'Customized Process Factors'!$E:$E,"No CO2e EF",0)),"Factor error"))) -> N/A
D116: =C$106 -> A3.1.1 | E116: .4 | F116: CO2e from lime production (auxiliary process) | H116: [please refer to worksheet "3.1.1 Lime Production"] | J116: [t CO2e/reporting period] | K116: =(SUMIFS('3.1.1 Lime Production'!$O:$O,'3.1.1 Lime Production'!$B:$B,'3.1.1 Lime Production'!B6,'3.1.1 Lime Production'!$D:$D,"Total")) -> 0 | M116: =IFERROR(IF($K116="","",$K116*(M$33/$K$33))," ") ->  | N116: =IFERROR(IF($K116="","",$K116*(N$33/$K$33))," ") ->  | P116: =IFERROR(IF($K116="","",$K116*(P$33/$K$33))," ") -> 
C117: A3.1.2 | F117: CO2e from product manufacturing (stationary combustion sources) | J117: [t CO2e/reporting period] | K117: 0 | M117: =SUMIF($D:$D,$C117,M:M) -> 0 | N117: 0 | O117: 0 | P117: 0 | Q117: 0 | R117: 0
F118: Adopting CO2e Factors | G118: Adopting LHV Factors | H118: [Please insert additional rows if more energy commodities are included]
D119: =C117 -> A3.1.2 | E119: .1 | J119: [t CO2e/reporting period] | K119: =SUM(M119:R119) -> 0 | M119: =IFERROR(SUMIFS(M:M,$D:$D,$D53,$I:$I,$H119)*IF($G119="Customized", IF(_xlfn.XLOOKUP($H119,'Customized Fuel LHV'!$B:$B,'Customized Fuel LHV'!E:E,"No LHV",0)="","Factor error",_xlfn.XLOOKUP($H119,'Customized Fuel LHV'!$B:$B,'Customized Fuel LHV'!E:E,"No LHV",0)),_xlfn.XLOOKUP($H119,'Customized Fuel LHV'!$B:$B,'Customized Fuel LHV'!$D:$D,"No LHV",0))*IF($F119="Customized", IF(_xlfn.XLOOKUP($H119,'Customized Fuel EF'!$B:$B,'Customized Fuel EF'!E:E,"No EF",0)="","Factor error",_xlfn.XLOOKUP($H119,'Customized Fuel EF'!$B:$B,'Customized Fuel EF'!E:E,"No EF",0)),_xlfn.XLOOKUP($H119,'Customized Fuel EF'!$B:$B,'Customized Fuel EF'!$D:$D,"No EF",0))/1000,"Factor error") -> 0 | N119: =IFERROR(SUMIFS(N:N,$D:$D,$D53,$I:$I,$H119)*IF($G119="Customized", IF(_xlfn.XLOOKUP($H119,'Customized Fuel LHV'!$B:$B,'Customized Fuel LHV'!F:F,"No LHV",0)="","Factor error",_xlfn.XLOOKUP($H119,'Customized Fuel LHV'!$B:$B,'Customized Fuel LHV'!F:F,"No LHV",0)),_xlfn.XLOOKUP($H119,'Customized Fuel LHV'!$B:$B,'Customized Fuel LHV'!$D:$D,"No LHV",0))*IF($F119="Customized", IF(_xlfn.XLOOKUP($H119,'Customized Fuel EF'!$B:$B,'Customized Fuel EF'!F:F,"No EF",0)="","Factor error",_xlfn.XLOOKUP($H119,'Customized Fuel EF'!$B:$B,'Customized Fuel EF'!F:F,"No EF",0)),_xlfn.XLOOKUP($H119,'Customized Fuel EF'!$B:$B,'Customized Fuel EF'!$D:$D,"No EF",0))/1000,"Factor error") -> 0 | O119: =IFERROR(SUMIFS(O:O,$D:$D,$D53,$I:$I,$H119)*IF($G119="Customized", IF(_xlfn.XLOOKUP($H119,'Customized Fuel LHV'!$B:$B,'Customized Fuel LHV'!G:G,"No LHV",0)="","Factor error",_xlfn.XLOOKUP($H119,'Customized Fuel LHV'!$B:$B,'Customized Fuel LHV'!G:G,"No LHV",0)),_xlfn.XLOOKUP($H119,'Customized Fuel LHV'!$B:$B,'Customized Fuel LHV'!$D:$D,"No LHV",0))*IF($F119="Customized", IF(_xlfn.XLOOKUP($H119,'Customized Fuel EF'!$B:$B,'Customized Fuel EF'!G:G,"No EF",0)="","Factor error",_xlfn.XLOOKUP($H119,'Customized Fuel EF'!$B:$B,'Customized Fuel EF'!G:G,"No EF",0)),_xlfn.XLOOKUP($H119,'Customized Fuel EF'!$B:$B,'Customized Fuel EF'!$D:$D,"No EF",0))/1000,"Factor error") -> 0 | P119: =IFERROR(SUMIFS(P:P,$D:$D,$D53,$I:$I,$H119)*IF($G119="Customized", IF(_xlfn.XLOOKUP($H119,'Customized Fuel LHV'!$B:$B,'Customized Fuel LHV'!H:H,"No LHV",0)="","Factor error",_xlfn.XLOOKUP($H119,'Customized Fuel LHV'!$B:$B,'Customized Fuel LHV'!H:H,"No LHV",0)),_xlfn.XLOOKUP($H119,'Customized Fuel LHV'!$B:$B,'Customized Fuel LHV'!$D:$D,"No LHV",0))*IF($F119="Customized", IF(_xlfn.XLOOKUP($H119,'Customized Fuel EF'!$B:$B,'Customized Fuel EF'!H:H,"No EF",0)="","Factor error",_xlfn.XLOOKUP($H119,'Customized Fuel EF'!$B:$B,'Customized Fuel EF'!H:H,"No EF",0)),_xlfn.XLOOKUP($H119,'Customized Fuel EF'!$B:$B,'Customized Fuel EF'!$D:$D,"No EF",0))/1000,"Factor error") -> 0 | Q119: =IFERROR(SUMIFS(Q:Q,$D:$D,$D53,$I:$I,$H119)*IF($G119="Customized", IF(_xlfn.XLOOKUP($H119,'Customized Fuel LHV'!$B:$B,'Customized Fuel LHV'!I:I,"No LHV",0)="","Factor error",_xlfn.XLOOKUP($H119,'Customized Fuel LHV'!$B:$B,'Customized Fuel LHV'!I:I,"No LHV",0)),_xlfn.XLOOKUP($H119,'Customized Fuel LHV'!$B:$B,'Customized Fuel LHV'!$D:$D,"No LHV",0))*IF($F119="Customized", IF(_xlfn.XLOOKUP($H119,'Customized Fuel EF'!$B:$B,'Customized Fuel EF'!I:I,"No EF",0)="","Factor error",_xlfn.XLOOKUP($H119,'Customized Fuel EF'!$B:$B,'Customized Fuel EF'!I:I,"No EF",0)),_xlfn.XLOOKUP($H119,'Customized Fuel EF'!$B:$B,'Customized Fuel EF'!$D:$D,"No EF",0))/1000,"Factor error") -> 0 | R119: =IFERROR(SUMIFS(R:R,$D:$D,$D53,$I:$I,$H119)*IF($G119="Customized", IF(_xlfn.XLOOKUP($H119,'Customized Fuel LHV'!$B:$B,'Customized Fuel LHV'!J:J,"No LHV",0)="","Factor error",_xlfn.XLOOKUP($H119,'Customized Fuel LHV'!$B:$B,'Customized Fuel LHV'!J:J,"No LHV",0)),_xlfn.XLOOKUP($H119,'Customized Fuel LHV'!$B:$B,'Customized Fuel LHV'!$D:$D,"No LHV",0))*IF($F119="Customized", IF(_xlfn.XLOOKUP($H119,'Customized Fuel EF'!$B:$B,'Customized Fuel EF'!J:J,"No EF",0)="","Factor error",_xlfn.XLOOKUP($H119,'Customized Fuel EF'!$B:$B,'Customized Fuel EF'!J:J,"No EF",0)),_xlfn.XLOOKUP($H119,'Customized Fuel EF'!$B:$B,'Customized Fuel EF'!$D:$D,"No EF",0))/1000,"Factor error") -> 0
D120: =D119 -> A3.1.2 | E120: .2 | J120: [t CO2e/reporting period] | K120: =SUM(M120:R120) -> 0 | M120: =IFERROR(SUMIFS(M:M,$D:$D,$D54,$I:$I,$H120)*IF($G120="Customized", IF(_xlfn.XLOOKUP($H120,'Customized Fuel LHV'!$B:$B,'Customized Fuel LHV'!E:E,"No LHV",0)="","Factor error",_xlfn.XLOOKUP($H120,'Customized Fuel LHV'!$B:$B,'Customized Fuel LHV'!E:E,"No LHV",0)),_xlfn.XLOOKUP($H120,'Customized Fuel LHV'!$B:$B,'Customized Fuel LHV'!$D:$D,"No LHV",0))*IF($F120="Customized", IF(_xlfn.XLOOKUP($H120,'Customized Fuel EF'!$B:$B,'Customized Fuel EF'!E:E,"No EF",0)="","Factor error",_xlfn.XLOOKUP($H120,'Customized Fuel EF'!$B:$B,'Customized Fuel EF'!E:E,"No EF",0)),_xlfn.XLOOKUP($H120,'Customized Fuel EF'!$B:$B,'Customized Fuel EF'!$D:$D,"No EF",0))/1000,"Factor error") -> 0 | N120: =IFERROR(SUMIFS(N:N,$D:$D,$D54,$I:$I,$H120)*IF($G120="Customized", IF(_xlfn.XLOOKUP($H120,'Customized Fuel LHV'!$B:$B,'Customized Fuel LHV'!F:F,"No LHV",0)="","Factor error",_xlfn.XLOOKUP($H120,'Customized Fuel LHV'!$B:$B,'Customized Fuel LHV'!F:F,"No LHV",0)),_xlfn.XLOOKUP($H120,'Customized Fuel LHV'!$B:$B,'Customized Fuel LHV'!$D:$D,"No LHV",0))*IF($F120="Customized", IF(_xlfn.XLOOKUP($H120,'Customized Fuel EF'!$B:$B,'Customized Fuel EF'!F:F,"No EF",0)="","Factor error",_xlfn.XLOOKUP($H120,'Customized Fuel EF'!$B:$B,'Customized Fuel EF'!F:F,"No EF",0)),_xlfn.XLOOKUP($H120,'Customized Fuel EF'!$B:$B,'Customized Fuel EF'!$D:$D,"No EF",0))/1000,"Factor error") -> 0 | O120: =IFERROR(SUMIFS(O:O,$D:$D,$D54,$I:$I,$H120)*IF($G120="Customized", IF(_xlfn.XLOOKUP($H120,'Customized Fuel LHV'!$B:$B,'Customized Fuel LHV'!G:G,"No LHV",0)="","Factor error",_xlfn.XLOOKUP($H120,'Customized Fuel LHV'!$B:$B,'Customized Fuel LHV'!G:G,"No LHV",0)),_xlfn.XLOOKUP($H120,'Customized Fuel LHV'!$B:$B,'Customized Fuel LHV'!$D:$D,"No LHV",0))*IF($F120="Customized", IF(_xlfn.XLOOKUP($H120,'Customized Fuel EF'!$B:$B,'Customized Fuel EF'!G:G,"No EF",0)="","Factor error",_xlfn.XLOOKUP($H120,'Customized Fuel EF'!$B:$B,'Customized Fuel EF'!G:G,"No EF",0)),_xlfn.XLOOKUP($H120,'Customized Fuel EF'!$B:$B,'Customized Fuel EF'!$D:$D,"No EF",0))/1000,"Factor error") -> 0 | P120: =IFERROR(SUMIFS(P:P,$D:$D,$D54,$I:$I,$H120)*IF($G120="Customized", IF(_xlfn.XLOOKUP($H120,'Customized Fuel LHV'!$B:$B,'Customized Fuel LHV'!H:H,"No LHV",0)="","Factor error",_xlfn.XLOOKUP($H120,'Customized Fuel LHV'!$B:$B,'Customized Fuel LHV'!H:H,"No LHV",0)),_xlfn.XLOOKUP($H120,'Customized Fuel LHV'!$B:$B,'Customized Fuel LHV'!$D:$D,"No LHV",0))*IF($F120="Customized", IF(_xlfn.XLOOKUP($H120,'Customized Fuel EF'!$B:$B,'Customized Fuel EF'!H:H,"No EF",0)="","Factor error",_xlfn.XLOOKUP($H120,'Customized Fuel EF'!$B:$B,'Customized Fuel EF'!H:H,"No EF",0)),_xlfn.XLOOKUP($H120,'Customized Fuel EF'!$B:$B,'Customized Fuel EF'!$D:$D,"No EF",0))/1000,"Factor error") -> 0 | Q120: =IFERROR(SUMIFS(Q:Q,$D:$D,$D54,$I:$I,$H120)*IF($G120="Customized", IF(_xlfn.XLOOKUP($H120,'Customized Fuel LHV'!$B:$B,'Customized Fuel LHV'!I:I,"No LHV",0)="","Factor error",_xlfn.XLOOKUP($H120,'Customized Fuel LHV'!$B:$B,'Customized Fuel LHV'!I:I,"No LHV",0)),_xlfn.XLOOKUP($H120,'Customized Fuel LHV'!$B:$B,'Customized Fuel LHV'!$D:$D,"No LHV",0))*IF($F120="Customized", IF(_xlfn.XLOOKUP($H120,'Customized Fuel EF'!$B:$B,'Customized Fuel EF'!I:I,"No EF",0)="","Factor error",_xlfn.XLOOKUP($H120,'Customized Fuel EF'!$B:$B,'Customized Fuel EF'!I:I,"No EF",0)),_xlfn.XLOOKUP($H120,'Customized Fuel EF'!$B:$B,'Customized Fuel EF'!$D:$D,"No EF",0))/1000,"Factor error") -> 0 | R120: =IFERROR(SUMIFS(R:R,$D:$D,$D54,$I:$I,$H120)*IF($G120="Customized", IF(_xlfn.XLOOKUP($H120,'Customized Fuel LHV'!$B:$B,'Customized Fuel LHV'!J:J,"No LHV",0)="","Factor error",_xlfn.XLOOKUP($H120,'Customized Fuel LHV'!$B:$B,'Customized Fuel LHV'!J:J,"No LHV",0)),_xlfn.XLOOKUP($H120,'Customized Fuel LHV'!$B:$B,'Customized Fuel LHV'!$D:$D,"No LHV",0))*IF($F120="Customized", IF(_xlfn.XLOOKUP($H120,'Customized Fuel EF'!$B:$B,'Customized Fuel EF'!J:J,"No EF",0)="","Factor error",_xlfn.XLOOKUP($H120,'Customized Fuel EF'!$B:$B,'Customized Fuel EF'!J:J,"No EF",0)),_xlfn.XLOOKUP($H120,'Customized Fuel EF'!$B:$B,'Customized Fuel EF'!$D:$D,"No EF",0))/1000,"Factor error") -> 0
D121: =D120 -> A3.1.2 | E121: .3 | J121: [t CO2e/reporting period] | K121: 0 | M121: =IFERROR(SUMIFS(M:M,$D:$D,$D55,$I:$I,$H121)*IF($G121="Customized", IF(_xlfn.XLOOKUP($H121,'Customized Fuel LHV'!$B:$B,'Customized Fuel LHV'!E:E,"No LHV",0)="","Factor error",_xlfn.XLOOKUP($H121,'Customized Fuel LHV'!$B:$B,'Customized Fuel LHV'!E:E,"No LHV",0)),_xlfn.XLOOKUP($H121,'Customized Fuel LHV'!$B:$B,'Customized Fuel LHV'!$D:$D,"No LHV",0))*IF($F121="Customized", IF(_xlfn.XLOOKUP($H121,'Customized Fuel EF'!$B:$B,'Customized Fuel EF'!E:E,"No EF",0)="","Factor error",_xlfn.XLOOKUP($H121,'Customized Fuel EF'!$B:$B,'Customized Fuel EF'!E:E,"No EF",0)),_xlfn.XLOOKUP($H121,'Customized Fuel EF'!$B:$B,'Customized Fuel EF'!$D:$D,"No EF",0))/1000,"Factor error") -> 0 | N121: =IFERROR(SUMIFS(N:N,$D:$D,$D55,$I:$I,$H121)*IF($G121="Customized", IF(_xlfn.XLOOKUP($H121,'Customized Fuel LHV'!$B:$B,'Customized Fuel LHV'!F:F,"No LHV",0)="","Factor error",_xlfn.XLOOKUP($H121,'Customized Fuel LHV'!$B:$B,'Customized Fuel LHV'!F:F,"No LHV",0)),_xlfn.XLOOKUP($H121,'Customized Fuel LHV'!$B:$B,'Customized Fuel LHV'!$D:$D,"No LHV",0))*IF($F121="Customized", IF(_xlfn.XLOOKUP($H121,'Customized Fuel EF'!$B:$B,'Customized Fuel EF'!F:F,"No EF",0)="","Factor error",_xlfn.XLOOKUP($H121,'Customized Fuel EF'!$B:$B,'Customized Fuel EF'!F:F,"No EF",0)),_xlfn.XLOOKUP($H121,'Customized Fuel EF'!$B:$B,'Customized Fuel EF'!$D:$D,"No EF",0))/1000,"Factor error") -> 0 | O121: =IFERROR(SUMIFS(O:O,$D:$D,$D55,$I:$I,$H121)*IF($G121="Customized", IF(_xlfn.XLOOKUP($H121,'Customized Fuel LHV'!$B:$B,'Customized Fuel LHV'!G:G,"No LHV",0)="","Factor error",_xlfn.XLOOKUP($H121,'Customized Fuel LHV'!$B:$B,'Customized Fuel LHV'!G:G,"No LHV",0)),_xlfn.XLOOKUP($H121,'Customized Fuel LHV'!$B:$B,'Customized Fuel LHV'!$D:$D,"No LHV",0))*IF($F121="Customized", IF(_xlfn.XLOOKUP($H121,'Customized Fuel EF'!$B:$B,'Customized Fuel EF'!G:G,"No EF",0)="","Factor error",_xlfn.XLOOKUP($H121,'Customized Fuel EF'!$B:$B,'Customized Fuel EF'!G:G,"No EF",0)),_xlfn.XLOOKUP($H121,'Customized Fuel EF'!$B:$B,'Customized Fuel EF'!$D:$D,"No EF",0))/1000,"Factor error") -> 0 | P121: =IFERROR(SUMIFS(P:P,$D:$D,$D55,$I:$I,$H121)*IF($G121="Customized", IF(_xlfn.XLOOKUP($H121,'Customized Fuel LHV'!$B:$B,'Customized Fuel LHV'!H:H,"No LHV",0)="","Factor error",_xlfn.XLOOKUP($H121,'Customized Fuel LHV'!$B:$B,'Customized Fuel LHV'!H:H,"No LHV",0)),_xlfn.XLOOKUP($H121,'Customized Fuel LHV'!$B:$B,'Customized Fuel LHV'!$D:$D,"No LHV",0))*IF($F121="Customized", IF(_xlfn.XLOOKUP($H121,'Customized Fuel EF'!$B:$B,'Customized Fuel EF'!H:H,"No EF",0)="","Factor error",_xlfn.XLOOKUP($H121,'Customized Fuel EF'!$B:$B,'Customized Fuel EF'!H:H,"No EF",0)),_xlfn.XLOOKUP($H121,'Customized Fuel EF'!$B:$B,'Customized Fuel EF'!$D:$D,"No EF",0))/1000,"Factor error") -> 0 | Q121: =IFERROR(SUMIFS(Q:Q,$D:$D,$D55,$I:$I,$H121)*IF($G121="Customized", IF(_xlfn.XLOOKUP($H121,'Customized Fuel LHV'!$B:$B,'Customized Fuel LHV'!I:I,"No LHV",0)="","Factor error",_xlfn.XLOOKUP($H121,'Customized Fuel LHV'!$B:$B,'Customized Fuel LHV'!I:I,"No LHV",0)),_xlfn.XLOOKUP($H121,'Customized Fuel LHV'!$B:$B,'Customized Fuel LHV'!$D:$D,"No LHV",0))*IF($F121="Customized", IF(_xlfn.XLOOKUP($H121,'Customized Fuel EF'!$B:$B,'Customized Fuel EF'!I:I,"No EF",0)="","Factor error",_xlfn.XLOOKUP($H121,'Customized Fuel EF'!$B:$B,'Customized Fuel EF'!I:I,"No EF",0)),_xlfn.XLOOKUP($H121,'Customized Fuel EF'!$B:$B,'Customized Fuel EF'!$D:$D,"No EF",0))/1000,"Factor error") -> 0 | R121: =IFERROR(SUMIFS(R:R,$D:$D,$D55,$I:$I,$H121)*IF($G121="Customized", IF(_xlfn.XLOOKUP($H121,'Customized Fuel LHV'!$B:$B,'Customized Fuel LHV'!J:J,"No LHV",0)="","Factor error",_xlfn.XLOOKUP($H121,'Customized Fuel LHV'!$B:$B,'Customized Fuel LHV'!J:J,"No LHV",0)),_xlfn.XLOOKUP($H121,'Customized Fuel LHV'!$B:$B,'Customized Fuel LHV'!$D:$D,"No LHV",0))*IF($F121="Customized", IF(_xlfn.XLOOKUP($H121,'Customized Fuel EF'!$B:$B,'Customized Fuel EF'!J:J,"No EF",0)="","Factor error",_xlfn.XLOOKUP($H121,'Customized Fuel EF'!$B:$B,'Customized Fuel EF'!J:J,"No EF",0)),_xlfn.XLOOKUP($H121,'Customized Fuel EF'!$B:$B,'Customized Fuel EF'!$D:$D,"No EF",0))/1000,"Factor error") -> 0
D122: =C117 -> A3.1.2 | E122: .4 | J122: [t CO2e/reporting period] | K122: =SUM(M122:R122) -> 0 | M122: =IFERROR(SUMIFS(M:M,$D:$D,$D56,$I:$I,$H122)*IF($G122="Customized", IF(_xlfn.XLOOKUP($H122,'Customized Fuel LHV'!$B:$B,'Customized Fuel LHV'!E:E,"No LHV",0)="","Factor error",_xlfn.XLOOKUP($H122,'Customized Fuel LHV'!$B:$B,'Customized Fuel LHV'!E:E,"No LHV",0)),_xlfn.XLOOKUP($H122,'Customized Fuel LHV'!$B:$B,'Customized Fuel LHV'!$D:$D,"No LHV",0))*IF($F122="Customized", IF(_xlfn.XLOOKUP($H122,'Customized Fuel EF'!$B:$B,'Customized Fuel EF'!E:E,"No EF",0)="","Factor error",_xlfn.XLOOKUP($H122,'Customized Fuel EF'!$B:$B,'Customized Fuel EF'!E:E,"No EF",0)),_xlfn.XLOOKUP($H122,'Customized Fuel EF'!$B:$B,'Customized Fuel EF'!$D:$D,"No EF",0))/1000,"Factor error") -> 0 | N122: =IFERROR(SUMIFS(N:N,$D:$D,$D56,$I:$I,$H122)*IF($G122="Customized", IF(_xlfn.XLOOKUP($H122,'Customized Fuel LHV'!$B:$B,'Customized Fuel LHV'!F:F,"No LHV",0)="","Factor error",_xlfn.XLOOKUP($H122,'Customized Fuel LHV'!$B:$B,'Customized Fuel LHV'!F:F,"No LHV",0)),_xlfn.XLOOKUP($H122,'Customized Fuel LHV'!$B:$B,'Customized Fuel LHV'!$D:$D,"No LHV",0))*IF($F122="Customized", IF(_xlfn.XLOOKUP($H122,'Customized Fuel EF'!$B:$B,'Customized Fuel EF'!F:F,"No EF",0)="","Factor error",_xlfn.XLOOKUP($H122,'Customized Fuel EF'!$B:$B,'Customized Fuel EF'!F:F,"No EF",0)),_xlfn.XLOOKUP($H122,'Customized Fuel EF'!$B:$B,'Customized Fuel EF'!$D:$D,"No EF",0))/1000,"Factor error") -> 0 | O122: =IFERROR(SUMIFS(O:O,$D:$D,$D56,$I:$I,$H122)*IF($G122="Customized", IF(_xlfn.XLOOKUP($H122,'Customized Fuel LHV'!$B:$B,'Customized Fuel LHV'!G:G,"No LHV",0)="","Factor error",_xlfn.XLOOKUP($H122,'Customized Fuel LHV'!$B:$B,'Customized Fuel LHV'!G:G,"No LHV",0)),_xlfn.XLOOKUP($H122,'Customized Fuel LHV'!$B:$B,'Customized Fuel LHV'!$D:$D,"No LHV",0))*IF($F122="Customized", IF(_xlfn.XLOOKUP($H122,'Customized Fuel EF'!$B:$B,'Customized Fuel EF'!G:G,"No EF",0)="","Factor error",_xlfn.XLOOKUP($H122,'Customized Fuel EF'!$B:$B,'Customized Fuel EF'!G:G,"No EF",0)),_xlfn.XLOOKUP($H122,'Customized Fuel EF'!$B:$B,'Customized Fuel EF'!$D:$D,"No EF",0))/1000,"Factor error") -> 0 | P122: =IFERROR(SUMIFS(P:P,$D:$D,$D56,$I:$I,$H122)*IF($G122="Customized", IF(_xlfn.XLOOKUP($H122,'Customized Fuel LHV'!$B:$B,'Customized Fuel LHV'!H:H,"No LHV",0)="","Factor error",_xlfn.XLOOKUP($H122,'Customized Fuel LHV'!$B:$B,'Customized Fuel LHV'!H:H,"No LHV",0)),_xlfn.XLOOKUP($H122,'Customized Fuel LHV'!$B:$B,'Customized Fuel LHV'!$D:$D,"No LHV",0))*IF($F122="Customized", IF(_xlfn.XLOOKUP($H122,'Customized Fuel EF'!$B:$B,'Customized Fuel EF'!H:H,"No EF",0)="","Factor error",_xlfn.XLOOKUP($H122,'Customized Fuel EF'!$B:$B,'Customized Fuel EF'!H:H,"No EF",0)),_xlfn.XLOOKUP($H122,'Customized Fuel EF'!$B:$B,'Customized Fuel EF'!$D:$D,"No EF",0))/1000,"Factor error") -> 0 | Q122: =IFERROR(SUMIFS(Q:Q,$D:$D,$D56,$I:$I,$H122)*IF($G122="Customized", IF(_xlfn.XLOOKUP($H122,'Customized Fuel LHV'!$B:$B,'Customized Fuel LHV'!I:I,"No LHV",0)="","Factor error",_xlfn.XLOOKUP($H122,'Customized Fuel LHV'!$B:$B,'Customized Fuel LHV'!I:I,"No LHV",0)),_xlfn.XLOOKUP($H122,'Customized Fuel LHV'!$B:$B,'Customized Fuel LHV'!$D:$D,"No LHV",0))*IF($F122="Customized", IF(_xlfn.XLOOKUP($H122,'Customized Fuel EF'!$B:$B,'Customized Fuel EF'!I:I,"No EF",0)="","Factor error",_xlfn.XLOOKUP($H122,'Customized Fuel EF'!$B:$B,'Customized Fuel EF'!I:I,"No EF",0)),_xlfn.XLOOKUP($H122,'Customized Fuel EF'!$B:$B,'Customized Fuel EF'!$D:$D,"No EF",0))/1000,"Factor error") -> 0 | R122: =IFERROR(SUMIFS(R:R,$D:$D,$D56,$I:$I,$H122)*IF($G122="Customized", IF(_xlfn.XLOOKUP($H122,'Customized Fuel LHV'!$B:$B,'Customized Fuel LHV'!J:J,"No LHV",0)="","Factor error",_xlfn.XLOOKUP($H122,'Customized Fuel LHV'!$B:$B,'Customized Fuel LHV'!J:J,"No LHV",0)),_xlfn.XLOOKUP($H122,'Customized Fuel LHV'!$B:$B,'Customized Fuel LHV'!$D:$D,"No LHV",0))*IF($F122="Customized", IF(_xlfn.XLOOKUP($H122,'Customized Fuel EF'!$B:$B,'Customized Fuel EF'!J:J,"No EF",0)="","Factor error",_xlfn.XLOOKUP($H122,'Customized Fuel EF'!$B:$B,'Customized Fuel EF'!J:J,"No EF",0)),_xlfn.XLOOKUP($H122,'Customized Fuel EF'!$B:$B,'Customized Fuel EF'!$D:$D,"No EF",0))/1000,"Factor error") -> 0
C123: A3.1.3 | F123: CO2e from on-site transportation (mobile combustion sources) | H123: CO2e from on-site power generation | I123: CO2e from on-site power generation | J123: [t CO2e/reporting period] | K123: =SUM(M123:R123) -> 0 | M123: =SUMIF($D:$D,$C123,M:M) -> 0 | N123: 0 | O123: 0 | P123: 0 | Q123: 0 | R123: 0
F124: Adopting CO2e Factors | G124: Adopting LHV Factors | H124: [Please insert additional rows if more energy commodities are included]
D125: =C123 -> A3.1.3 | E125: .1 | J125: [t CO2e/reporting period] | K125: =SUM(M125:R125) -> 0 | M125: =IFERROR(SUMIFS(M:M,$D:$D,$D58,$I:$I,$H125)*IF($G125="Customized", IF(_xlfn.XLOOKUP($H125,'Customized Fuel LHV'!$B:$B,'Customized Fuel LHV'!E:E,"No LHV",0)="","Factor error",_xlfn.XLOOKUP($H125,'Customized Fuel LHV'!$B:$B,'Customized Fuel LHV'!E:E,"No LHV",0)),_xlfn.XLOOKUP($H125,'Customized Fuel LHV'!$B:$B,'Customized Fuel LHV'!$D:$D,"No LHV",0))*IF($F125="Customized", IF(_xlfn.XLOOKUP($H125,'Customized Fuel EF'!$B:$B,'Customized Fuel EF'!E:E,"No EF",0)="","Factor error",_xlfn.XLOOKUP($H125,'Customized Fuel EF'!$B:$B,'Customized Fuel EF'!E:E,"No EF",0)),_xlfn.XLOOKUP($H125,'Customized Fuel EF'!$B:$B,'Customized Fuel EF'!$D:$D,"No EF",0))/1000,"Factor error") -> 0 | N125: =IFERROR(SUMIFS(N:N,$D:$D,$D58,$I:$I,$H125)*IF($G125="Customized", IF(_xlfn.XLOOKUP($H125,'Customized Fuel LHV'!$B:$B,'Customized Fuel LHV'!F:F,"No LHV",0)="","Factor error",_xlfn.XLOOKUP($H125,'Customized Fuel LHV'!$B:$B,'Customized Fuel LHV'!F:F,"No LHV",0)),_xlfn.XLOOKUP($H125,'Customized Fuel LHV'!$B:$B,'Customized Fuel LHV'!$D:$D,"No LHV",0))*IF($F125="Customized", IF(_xlfn.XLOOKUP($H125,'Customized Fuel EF'!$B:$B,'Customized Fuel EF'!F:F,"No EF",0)="","Factor error",_xlfn.XLOOKUP($H125,'Customized Fuel EF'!$B:$B,'Customized Fuel EF'!F:F,"No EF",0)),_xlfn.XLOOKUP($H125,'Customized Fuel EF'!$B:$B,'Customized Fuel EF'!$D:$D,"No EF",0))/1000,"Factor error") -> 0 | O125: =IFERROR(SUMIFS(O:O,$D:$D,$D58,$I:$I,$H125)*IF($G125="Customized", IF(_xlfn.XLOOKUP($H125,'Customized Fuel LHV'!$B:$B,'Customized Fuel LHV'!G:G,"No LHV",0)="","Factor error",_xlfn.XLOOKUP($H125,'Customized Fuel LHV'!$B:$B,'Customized Fuel LHV'!G:G,"No LHV",0)),_xlfn.XLOOKUP($H125,'Customized Fuel LHV'!$B:$B,'Customized Fuel LHV'!$D:$D,"No LHV",0))*IF($F125="Customized", IF(_xlfn.XLOOKUP($H125,'Customized Fuel EF'!$B:$B,'Customized Fuel EF'!G:G,"No EF",0)="","Factor error",_xlfn.XLOOKUP($H125,'Customized Fuel EF'!$B:$B,'Customized Fuel EF'!G:G,"No EF",0)),_xlfn.XLOOKUP($H125,'Customized Fuel EF'!$B:$B,'Customized Fuel EF'!$D:$D,"No EF",0))/1000,"Factor error") -> 0 | P125: =IFERROR(SUMIFS(P:P,$D:$D,$D58,$I:$I,$H125)*IF($G125="Customized", IF(_xlfn.XLOOKUP($H125,'Customized Fuel LHV'!$B:$B,'Customized Fuel LHV'!H:H,"No LHV",0)="","Factor error",_xlfn.XLOOKUP($H125,'Customized Fuel LHV'!$B:$B,'Customized Fuel LHV'!H:H,"No LHV",0)),_xlfn.XLOOKUP($H125,'Customized Fuel LHV'!$B:$B,'Customized Fuel LHV'!$D:$D,"No LHV",0))*IF($F125="Customized", IF(_xlfn.XLOOKUP($H125,'Customized Fuel EF'!$B:$B,'Customized Fuel EF'!H:H,"No EF",0)="","Factor error",_xlfn.XLOOKUP($H125,'Customized Fuel EF'!$B:$B,'Customized Fuel EF'!H:H,"No EF",0)),_xlfn.XLOOKUP($H125,'Customized Fuel EF'!$B:$B,'Customized Fuel EF'!$D:$D,"No EF",0))/1000,"Factor error") -> 0 | Q125: =IFERROR(SUMIFS(Q:Q,$D:$D,$D58,$I:$I,$H125)*IF($G125="Customized", IF(_xlfn.XLOOKUP($H125,'Customized Fuel LHV'!$B:$B,'Customized Fuel LHV'!I:I,"No LHV",0)="","Factor error",_xlfn.XLOOKUP($H125,'Customized Fuel LHV'!$B:$B,'Customized Fuel LHV'!I:I,"No LHV",0)),_xlfn.XLOOKUP($H125,'Customized Fuel LHV'!$B:$B,'Customized Fuel LHV'!$D:$D,"No LHV",0))*IF($F125="Customized", IF(_xlfn.XLOOKUP($H125,'Customized Fuel EF'!$B:$B,'Customized Fuel EF'!I:I,"No EF",0)="","Factor error",_xlfn.XLOOKUP($H125,'Customized Fuel EF'!$B:$B,'Customized Fuel EF'!I:I,"No EF",0)),_xlfn.XLOOKUP($H125,'Customized Fuel EF'!$B:$B,'Customized Fuel EF'!$D:$D,"No EF",0))/1000,"Factor error") -> 0 | R125: =IFERROR(SUMIFS(R:R,$D:$D,$D58,$I:$I,$H125)*IF($G125="Customized", IF(_xlfn.XLOOKUP($H125,'Customized Fuel LHV'!$B:$B,'Customized Fuel LHV'!J:J,"No LHV",0)="","Factor error",_xlfn.XLOOKUP($H125,'Customized Fuel LHV'!$B:$B,'Customized Fuel LHV'!J:J,"No LHV",0)),_xlfn.XLOOKUP($H125,'Customized Fuel LHV'!$B:$B,'Customized Fuel LHV'!$D:$D,"No LHV",0))*IF($F125="Customized", IF(_xlfn.XLOOKUP($H125,'Customized Fuel EF'!$B:$B,'Customized Fuel EF'!J:J,"No EF",0)="","Factor error",_xlfn.XLOOKUP($H125,'Customized Fuel EF'!$B:$B,'Customized Fuel EF'!J:J,"No EF",0)),_xlfn.XLOOKUP($H125,'Customized Fuel EF'!$B:$B,'Customized Fuel EF'!$D:$D,"No EF",0))/1000,"Factor error") -> 0
D126: =C123 -> A3.1.3 | E126: .2 | J126: [t CO2e/reporting period] | K126: =SUM(M126:R126) -> 0 | M126: =IFERROR(SUMIFS(M:M,$D:$D,$D59,$I:$I,$H126)*IF($G126="Customized", IF(_xlfn.XLOOKUP($H126,'Customized Fuel LHV'!$B:$B,'Customized Fuel LHV'!E:E,"No LHV",0)="","Factor error",_xlfn.XLOOKUP($H126,'Customized Fuel LHV'!$B:$B,'Customized Fuel LHV'!E:E,"No LHV",0)),_xlfn.XLOOKUP($H126,'Customized Fuel LHV'!$B:$B,'Customized Fuel LHV'!$D:$D,"No LHV",0))*IF($F126="Customized", IF(_xlfn.XLOOKUP($H126,'Customized Fuel EF'!$B:$B,'Customized Fuel EF'!E:E,"No EF",0)="","Factor error",_xlfn.XLOOKUP($H126,'Customized Fuel EF'!$B:$B,'Customized Fuel EF'!E:E,"No EF",0)),_xlfn.XLOOKUP($H126,'Customized Fuel EF'!$B:$B,'Customized Fuel EF'!$D:$D,"No EF",0))/1000,"Factor error") -> 0 | N126: =IFERROR(SUMIFS(N:N,$D:$D,$D59,$I:$I,$H126)*IF($G126="Customized", IF(_xlfn.XLOOKUP($H126,'Customized Fuel LHV'!$B:$B,'Customized Fuel LHV'!F:F,"No LHV",0)="","Factor error",_xlfn.XLOOKUP($H126,'Customized Fuel LHV'!$B:$B,'Customized Fuel LHV'!F:F,"No LHV",0)),_xlfn.XLOOKUP($H126,'Customized Fuel LHV'!$B:$B,'Customized Fuel LHV'!$D:$D,"No LHV",0))*IF($F126="Customized", IF(_xlfn.XLOOKUP($H126,'Customized Fuel EF'!$B:$B,'Customized Fuel EF'!F:F,"No EF",0)="","Factor error",_xlfn.XLOOKUP($H126,'Customized Fuel EF'!$B:$B,'Customized Fuel EF'!F:F,"No EF",0)),_xlfn.XLOOKUP($H126,'Customized Fuel EF'!$B:$B,'Customized Fuel EF'!$D:$D,"No EF",0))/1000,"Factor error") -> 0 | O126: =IFERROR(SUMIFS(O:O,$D:$D,$D59,$I:$I,$H126)*IF($G126="Customized", IF(_xlfn.XLOOKUP($H126,'Customized Fuel LHV'!$B:$B,'Customized Fuel LHV'!G:G,"No LHV",0)="","Factor error",_xlfn.XLOOKUP($H126,'Customized Fuel LHV'!$B:$B,'Customized Fuel LHV'!G:G,"No LHV",0)),_xlfn.XLOOKUP($H126,'Customized Fuel LHV'!$B:$B,'Customized Fuel LHV'!$D:$D,"No LHV",0))*IF($F126="Customized", IF(_xlfn.XLOOKUP($H126,'Customized Fuel EF'!$B:$B,'Customized Fuel EF'!G:G,"No EF",0)="","Factor error",_xlfn.XLOOKUP($H126,'Customized Fuel EF'!$B:$B,'Customized Fuel EF'!G:G,"No EF",0)),_xlfn.XLOOKUP($H126,'Customized Fuel EF'!$B:$B,'Customized Fuel EF'!$D:$D,"No EF",0))/1000,"Factor error") -> 0 | P126: =IFERROR(SUMIFS(P:P,$D:$D,$D59,$I:$I,$H126)*IF($G126="Customized", IF(_xlfn.XLOOKUP($H126,'Customized Fuel LHV'!$B:$B,'Customized Fuel LHV'!H:H,"No LHV",0)="","Factor error",_xlfn.XLOOKUP($H126,'Customized Fuel LHV'!$B:$B,'Customized Fuel LHV'!H:H,"No LHV",0)),_xlfn.XLOOKUP($H126,'Customized Fuel LHV'!$B:$B,'Customized Fuel LHV'!$D:$D,"No LHV",0))*IF($F126="Customized", IF(_xlfn.XLOOKUP($H126,'Customized Fuel EF'!$B:$B,'Customized Fuel EF'!H:H,"No EF",0)="","Factor error",_xlfn.XLOOKUP($H126,'Customized Fuel EF'!$B:$B,'Customized Fuel EF'!H:H,"No EF",0)),_xlfn.XLOOKUP($H126,'Customized Fuel EF'!$B:$B,'Customized Fuel EF'!$D:$D,"No EF",0))/1000,"Factor error") -> 0 | Q126: =IFERROR(SUMIFS(Q:Q,$D:$D,$D59,$I:$I,$H126)*IF($G126="Customized", IF(_xlfn.XLOOKUP($H126,'Customized Fuel LHV'!$B:$B,'Customized Fuel LHV'!I:I,"No LHV",0)="","Factor error",_xlfn.XLOOKUP($H126,'Customized Fuel LHV'!$B:$B,'Customized Fuel LHV'!I:I,"No LHV",0)),_xlfn.XLOOKUP($H126,'Customized Fuel LHV'!$B:$B,'Customized Fuel LHV'!$D:$D,"No LHV",0))*IF($F126="Customized", IF(_xlfn.XLOOKUP($H126,'Customized Fuel EF'!$B:$B,'Customized Fuel EF'!I:I,"No EF",0)="","Factor error",_xlfn.XLOOKUP($H126,'Customized Fuel EF'!$B:$B,'Customized Fuel EF'!I:I,"No EF",0)),_xlfn.XLOOKUP($H126,'Customized Fuel EF'!$B:$B,'Customized Fuel EF'!$D:$D,"No EF",0))/1000,"Factor error") -> 0 | R126: =IFERROR(SUMIFS(R:R,$D:$D,$D59,$I:$I,$H126)*IF($G126="Customized", IF(_xlfn.XLOOKUP($H126,'Customized Fuel LHV'!$B:$B,'Customized Fuel LHV'!J:J,"No LHV",0)="","Factor error",_xlfn.XLOOKUP($H126,'Customized Fuel LHV'!$B:$B,'Customized Fuel LHV'!J:J,"No LHV",0)),_xlfn.XLOOKUP($H126,'Customized Fuel LHV'!$B:$B,'Customized Fuel LHV'!$D:$D,"No LHV",0))*IF($F126="Customized", IF(_xlfn.XLOOKUP($H126,'Customized Fuel EF'!$B:$B,'Customized Fuel EF'!J:J,"No EF",0)="","Factor error",_xlfn.XLOOKUP($H126,'Customized Fuel EF'!$B:$B,'Customized Fuel EF'!J:J,"No EF",0)),_xlfn.XLOOKUP($H126,'Customized Fuel EF'!$B:$B,'Customized Fuel EF'!$D:$D,"No EF",0))/1000,"Factor error") -> 0
C127: A3.1.4 | F127: Total CO2e from fuels combustion | J127: [t CO2e/reporting period] | K127: =SUM(M127:R127) -> 0 | M127: =IF(AND(M117="",M123=""),"",M117+M123+M106) -> 0 | N127: =IF(AND(N117="",N123=""),"",N117+N123+N106) -> 0 | O127: 0 | P127: 0 | Q127: 0 | R127: 0
C128: A3.1.5 | F128: CO2e from external electricity production | J128: [t CO2e/reporting period] | K128: =SUM(M128:R128) -> 0 | M128: =IFERROR(M61*$K$62/1000,"") -> 
C129: A3.1.6 | I129: Total CO2e in Stage A3 | J129: [t CO2e/reporting period] | K129: =SUM(M129:R129) -> 0 | M129: =IFERROR(IF(M127="","",M127)+IF(M128="","",M128),"") ->  | N129: =IFERROR(IF(N127="","",N127)+IF(N128="","",N128),"") -> 
B130: A4 | C130: PROJECT LIFE CYCLE STAGE: A4 OFF-SITE TRANSPORTATION OF product to border of HK
C131: A4.1 CO2e EMISSIONS | J131: unit | K131: Total | M131: Product 1 | N131: Product 2 | O131: Product 3 | P131: Product 4 | Q131: Product 5 | R131: Product 6
C132: A4.1.1 | F132: CO2e from off-site transportation of product to border of HK (excluded from assessment boundary)
D133: =C132 -> A4.1.1 | E133: .1 | F133: CO2e calculated using either 1) WRI & WBCSD's protocol OR 2) EPD & EMSD's carbon audit tool) | J133: [t CO2e/reporting period] | K133: =SUM(M133:R133) -> 0
C134: A4.1.2 | I134: Total CO2e in Stage A4 | J134: [t CO2e/reporting period] | K134: =SUM(M134:R134) -> 0 | M134: =IFERROR(IF(M133="","",M133),"") -> 
B136: P | C136: PERFORMANCE INDICATORS | J136: unit | K136: Total | M136: Product 1 | N136: Product 2 | O136: Product 3 | P136: Product 4 | Q136: Product 5 | R136: Product 6
B137: P | C137: =LEFT($B$136,2) -> P | D137: 1 | F137: Gross CO2e (A1-A3) | J137: [t CO2e/reporting period] | K137: =IF(AND(M137:R137=""),"",SUM(M137:R137)) -> 0 | M137: =SUM(M138:M140) -> 0 | N137: =SUM(N138:N140) -> 0 | O137: 0 | P137: 0 | Q137: 0 | R137: 0
C138: P | D138: =D137 -> 1 | E138: .1 | F138: A1 Raw material extraction and upstream production | J138: [t CO2e/reporting period] | K138: =IF(AND(M138:R138=""),"",SUM(M138:R138)) -> 0 | M138: =SUMIF($I:$I,"Total CO2e in Stage A1",M:M) -> 0 | N138: 0 | O138: 0 | P138: 0 | Q138: 0 | R138: 0
C139: P | D139: =D138 -> 1 | E139: .2 | F139: A2 Off-site transportation of raw materials to manufacturing plant | J139: [t CO2e/reporting period] | K139: =IF(AND(M139:R139=""),"",SUM(M139:R139)) -> 0 | M139: =SUMIF($I:$I,"Total CO2e in Stage A2",M:M) -> 0 | N139: 0 | O139: 0 | P139: 0 | Q139: 0 | R139: 0
C140: P | D140: =D139 -> 1 | E140: .3 | F140: A3 Product manufacturing and fabrication (without wastage) | J140: [t CO2e/reporting period] | K140: =IF(AND(M140:R140=""),"",SUM(M140:R140)) -> 0 | M140: =SUMIF($I:$I,"Total CO2e in Stage A3",M:M) -> 0 | N140: 0 | O140: 0 | P140: 0 | Q140: 0 | R140: 0
C141: P | D141: =D140 -> 1 | E141: .4 | F141: A4 Off-site transportation of product to border of HK (for reference only, excluded from assessment boundary) | J141: [t CO2e/reporting period] | K141: =IF(AND(M141:R141=""),"",SUM(M141:R141)) -> 0 | M141: =SUMIF($I:$I,"Total CO2e in Stage A4",M:M) -> 0 | N141: 0 | O141: 0 | P141: 0 | Q141: 0 | R141: 0
C142: P | D142: 2 | F142: Specific gross CO2e per t of semi-fabricated aluminium product produced (A1-A3) | J142: [t CO2e/t Al prod] | K142: =IF(K137="","",(K137/$K$28)) ->  | M142: =IF(M$28=0,"n.a.",IF(M137="","",(M137/M$28))) -> n.a. | N142: =IF(N$28=0,"n.a.",IF(N137="","",(N137/N$28))) -> n.a. | O142: n.a. | P142: n.a. | Q142: n.a. | R142: =IF(R$28=0,"n.a.",IF(R137="","",(R137/R$28))) -> n.a.
C143: P | D143: =D142 -> 2 | E143: .1 | F143: A1 Raw material extraction and upstream production | J143: [t CO2e/t Al prod] | K143: =IF(K138="","",(K138/$K$28)) ->  | M143: =IF(M$28=0,"n.a.",IF(M138="","",(M138/M$28))) -> n.a. | N143: =IF(N$28=0,"n.a.",IF(N138="","",(N138/N$28))) -> n.a. | O143: n.a. | P143: n.a. | Q143: n.a. | R143: n.a.
C144: P | D144: =D143 -> 2 | E144: .2 | F144: A2 Off-site transportation of raw materials to manufacturing plant | J144: [t CO2e/t Al prod] | M144: =IF(M$28=0,"n.a.",IF(M139="","",(M139/M$28))) -> n.a. | N144: =IF(N$28=0,"n.a.",IF(N139="","",(N139/N$28))) -> n.a. | O144: n.a. | P144: n.a. | Q144: n.a. | R144: =IF(R$28=0,"n.a.",IF(R139="","",(R139/R$28))) -> n.a.
C145: P | D145: =D143 -> 2 | E145: .3 | F145: A3 Product manufacturing and fabrication (without wastage) | J145: [t CO2e/t Al prod] | M145: =IF(M$28=0,"n.a.",IF(M140="","",(M140/M$28))) -> n.a. | N145: =IF(N$28=0,"n.a.",IF(N140="","",(N140/N$28))) -> n.a. | O145: n.a. | P145: n.a. | Q145: n.a. | R145: =IF(R$28=0,"n.a.",IF(R140="","",(R140/R$28))) -> n.a.
C146: P | D146: =D144 -> 2 | E146: .4 | F146: A4 Off-site transportation of product to border of HK (for reference only, excluded from assessment boundary) | J146: [t CO2e/t Al prod] | K146: =IF(K141="","",(K141/$K$28)) ->  | M146: =IF(M$28=0,"n.a.",IF(M141="","",(M141/M$28))) -> n.a. | N146: =IF(N$28=0,"n.a.",IF(N141="","",(N141/N$28))) -> n.a. | O146: n.a. | P146: n.a. | Q146: n.a. | R146: =IF(R$28=0,"n.a.",IF(R141="","",(R141/R$28))) -> n.a.

Sheet 3.1.1 Lime Production
A1: CFP Quantification - Aluminium - Industrial Processes Emissions
B3: Date of latest update | F3: 2025-03-24
B4: Reporting period | F4: =IF('CFP Quantification'!I4=0,"",'CFP Quantification'!I4) -> 
B6: ='CFP Quantification'!D116&'CFP Quantification'!E116 -> A3.1.1.4 | C6: CO2e from lime production
B7: Item no. | E7: Facility | F7: Lime Properties | J7: Correction for hydrated lime | O7: CO2e emissions (t CO2e)
F8: Lime type | G8: Amount produced (t /reporting period) | H8: Lime CO2 Factor | J8: Proportion of hydrated lime produced (fraction) | L8: Water content of hydrated lime (fraction) | N8: Correction for LKD
B9: Example | E9: Facility A | F9: High calcium lime | G9: 1200 | H9: Default | I9: =IF(H9="Customized",_xlfn.XLOOKUP($F9,$B:$B,$K:$K),_xlfn.XLOOKUP($F9,$B:$B,$J:$J)) -> 0.74575 | J9: 0.1 | L9: 0.28 | N9: 1.02 | O9: =G9*I9*(1-(J9*L9))*N9 -> 887.239656
C10: =B6 -> A3.1.1.4 | D10: .1 | I10: =IF(H10="Customized",_xlfn.XLOOKUP($F10,$B:$B,$K:$K),_xlfn.XLOOKUP($F10,$B:$B,$J:$J)) -> 0 | O10: =G10*I10*(1-(J10*L10))*N10 -> 0
C11: =C10 -> A3.1.1.4 | D11: .2 | I11: =IF(H11="Customized",_xlfn.XLOOKUP($F11,$B:$B,$K:$K),_xlfn.XLOOKUP($F11,$B:$B,$J:$J)) -> 0 | O11: 0
C12: =C11 -> A3.1.1.4 | D12: .3 | I12: =IF(H12="Customized",_xlfn.XLOOKUP($F12,$B:$B,$K:$K),_xlfn.XLOOKUP($F12,$B:$B,$J:$J)) -> 0 | O12: =G12*I12*(1-(J12*L12))*N12 -> 0
B13: =C12 -> A3.1.1.4 | D13: Total | O13: =SUMIF($C:$C,C10,$O:$O) -> 0
B16: Table 1 : Lime specific emission factors used in lime production
B18: Lime type | F18: Stoichiometric ratio (fraction) | G18: Range of CaO content (%) | H18: Range of MgO content (%) | I18: Default Value for CaO / Cao·MgO content (fraction) | J18: Default Lime Emission factor (t CO2/ t lime) | K18: Customized Lime Emission factor (t CO2/ t lime) | L18: Supporting document | N18: Explanation
B19: High calcium lime | F19: 0.785 | G19: 93-98 | H19: 0.3-2.5 | I19: 0.95 | J19: =F19*I19 -> 0.74575 | L19: Default value is used
B20: Dolomitic lime | D20: (developed countries) | F20: 0.913 | G20: 55-57 | H20: 38-41 | I20: 0.95 | J20: =F20*I20 -> 0.86735 | L20: Default value is used
B21: Dolomitic lime | D21: (developing countries) | F21: 0.913 | G21: 55-57 | H21: 38-41 | I21: 0.85 | J21: =F21*I21 -> 0.77605 | L21: Default value is used
B22: Hydraulic lime | F22: 0.785 | G22: 65-92 | H22: NA | I22: 0.75 | J22: =F22*I22 -> 0.58875 | L22: Default value is used

Sheet Customized Embodied EF
E2: Customized CO2e Emission Factors for Raw Materials
D3: Default EF | E3: Product 1 | F3: Product 2 | G3: Product 3 | H3: Product 4 | I3: Product 5 | J3: Product 6 | K3: Supporting document | L3: Explanation
A4: Raw material | B4: Bauxite | C4: [t CO2e/ t ] | D4: 0.008449 | K4: Default value is used
B5: Caustic soda / Sodium hydroxide | C5: [t CO2e/ t ] | D5: 1.12 | K5: Default value is used
B6: Calcined lime | C6: [t CO2e/ t ] | D6: 0.79 | K6: Default value is used
B7: Calcined petroleum coke | C7: [t CO2e/ t ] | D7: 1.88 | K7: Default value is used
B8: Coal tar pitch | C8: [t CO2e/ t ] | D8: 2.62 | K8: Default value is used
B9: Alumina | C9: [t CO2e/ t ] | D9: 1.2648 | K9: Default value is used
B10: Anode | C10: [t CO2e/ t ] | D10: 1.7499 | K10: Default value is used
B11: Steel (cathode) | C11: [t CO2e/ t ] | D11: 1.89 | K11: Default value is used
B12: Aluminium fluoride | C12: [t CO2e/ t ] | D12: 1.02 | K12: Default value is used
B13: Soda ash / Sodium carbonate | C13: [t CO2e/ t ] | D13: 0.41492 | K13: Default value is used
B14: Liquid aluminium | C14: [t CO2e/ t ] | D14: 13.0056 | K14: Default value is used
B15: Magnesium | C15: [t CO2e/ t ] | D15: 21.8 | K15: Default value is used
B16: Silicone | C16: [t CO2e/ t ] | D16: 11.2 | K16: Default value is used
B17: Manganese | C17: [t CO2e/ t ] | D17: 13.9 | K17: Default value is used
B18: Copper | C18: [t CO2e/ t ] | D18: 4.1 | K18: Default value is used
B19: Aluminium ingot | C19: [t CO2e/ t ] | D19: 16.4777 | K19: Default value is used
B20: Recycled aluminium | C20: [t CO2e/ t ] | D20: N/A
B21: Anodising material | C21: [t CO2e/ t ] | D21: N/A
B22: Coating material | C22: [t CO2e/ t ] | D22: N/A
B23: Thermal break - Polyamide | C23: [t CO2e/ t ] | D23: N/A
C24: [t CO2e/ t ] | D24: N/A
A25: Energy Commodity | B25: Diesel oil | C25: [t CO2e/ t ] | D25: 0.7520276 | K25: Default value is used
B26: Gasoline | C26: [t CO2e/ t ] | D26: 0.81593523 | K26: Default value is used
B27: Petrol coke | C27: [t CO2e/ t ] | D27: 0.40262468 | K27: Default value is used
B28: Natural gas | C28: [t CO2e/ t ] | D28: 0.42316368 | K28: Default value is used
B29: Waste oil | C29: [t CO2e/ t ] | D29: 1.11683712 | K29: Default value is used
C30: [t CO2e/ t ] | D30: N/A
C31: [t CO2e/ t ] | D31: N/A
A33: Factor sheet Guide : 1. Each material with a customized EF has its own specific EF type. Even if the applicant decides that certain products will adopt the default EF value for that material, the value must be copied and displayed in the matrix. 2. The material name must be consistent across all sheets to ensure the Excel file functions as intended. 3. The "Supporting Document" column must be completed by selecting either "Yes" or "No" if a customized factor is utilized. If the customized row is not applicable, the applicant should select "Default value is used". If there is no supporting document , applicant can select “No (Please explain)” and provide explanation for the missing supporting documents.

Sheet Customized Process Factors
A1: Table 2 : Customized Process CO2e Emission Factor
I3: Customized CO2e EF from Industrial Processes
A4: GHG emission sources | E4: Default CO2e EF | F4: Default CO2 EF | G4: Default CF4 EF | H4: Default C2F6 EF | I4: Product 1 | J4: Product 2 | K4: Product 3 | L4: Product 4 | M4: Product 5 | N4: Product 6 | O4: Supporting document | P4: Explanation
A5: Anode / Paste consumption | B5: Prebake process anode | C5: Centre Worked Prebake (CWPB) | D5: [t CO2e/ t Al produced] | E5: =F5+G5*$D$18+H5*$D$19 -> 5.048 | F5: 1.6 | G5: =0.4/1000 -> 0.0004 | H5: =0.04/1000 -> 4e-05 | O5: Default value is used
B6: Prebake process anode | C6: Side Worked Prebake (SWPB) | D6: [t CO2e/ t Al produced] | E6: =F6+G6*$D$18+H6*$D$19 -> 18.368 | F6: 1.6 | G6: =1.6/1000 -> 0.0016 | H6: =0.4/1000 -> 0.0004 | O6: Default value is used
B7: Soderberg process paste | C7: Vertical Stud Soderberg (VSS) | D7: [t CO2e/ t Al produced] | E7: 8.1 | F7: 1.7 | G7: =0.8/1000 -> 0.0008 | H7: =0.04/1000 -> 4e-05 | O7: Default value is used
B8: Soderberg process paste | C8: Horizontal Stud Soderberg (HSS) | D8: [t CO2e/ t Al produced] | E8: 5.024 | F8: 1.7 | G8: =0.4/1000 -> 0.0004 | H8: =0.03/1000 -> 3e-05 | O8: Default value is used
A9: Soda ash consumption | B9: Soda ash / Sodium carbonate | D9: [t CO2e/ t material] | E9: =0.95*44/106 -> 0.3943396226 | O9: Default value is used
A10: Petrol coke calcination | B10: Calcined petroleum coke | D10: [t CO2e/ t material] | E10: =0.22/0.68 -> 0.3235294118 | O10: Default value is used
A12: Factor sheet Guide : 1. Each process with a customized factors has its own specific factor type. Even if the applicant decides that certain products will adopt the default value for that process materials, the value must be copied and displayed in the matrix. 2. The process material's name must be consistent across all sheets to ensure the Excel file functions as intended. 3. The "Supporting Document" column must be completed by selecting either "Yes" or "No" if a customized factor is utilized. If the customized row is not applicable, the applicant should select "Default value is used". If there is no supporting document , applicant can select “No (Please explain)” and provide explanation for the missing supporting documents.
A16: Table 3 : Global Warming Potential of Greenhouse Gases
A18: Global Warming Potential (100-year horizon), IPCC Sixth Assessment Report, 2021 (AR6) | C18: CF4 | D18: 7380
C19: C2F6 | D19: 12400

Sheet Customized Fuel EF
E2: Customized CO2e Direct Emission Factors for Fuel
D3: Default EF | E3: Product 1 | F3: Product 2 | G3: Product 3 | H3: Product 4 | I3: Product 5 | J3: Product 6 | K3: Supporting document | L3: Explanation
A4: Crude oil and derived substances | B4: Crude oil | C4: [kg CO2e/ GJ ] | D4: 73.3036 | K4: Default value is used
B5: Orimulsion | C5: [kg CO2e/ GJ ] | D5: 77.0036 | K5: Default value is used
B6: Natural gas liquids | C6: [kg CO2e/ GJ ] | D6: 64.2036 | K6: Default value is used
B7: Gasoline | C7: [kg CO2e/ GJ ] | D7: 69.3036 | K7: Default value is used
B8: Jet kerosene | C8: [kg CO2e/ GJ ] | D8: 71.5036 | K8: Default value is used
B9: Other kerosene | C9: [kg CO2e/ GJ ] | D9: 71.9036 | K9: Default value is used
B10: Shale oil | C10: [kg CO2e/ GJ ] | D10: 73.3036 | K10: Default value is used
B11: Diesel oil | C11: [kg CO2e/ GJ ] | D11: 74.1036 | K11: Default value is used
B12: Residual fuel oil | C12: [kg CO2e/ GJ ] | D12: 77.4036 | K12: Default value is used
B13: Liquified petroleum gases | C13: [kg CO2e/ GJ ] | D13: 63.1011 | K13: Default value is used
B14: Ethane | C14: [kg CO2e/ GJ ] | D14: 61.6011 | K14: Default value is used
B15: Naphtha | C15: [kg CO2e/ GJ ] | D15: 73.3036 | K15: Default value is used
B16: Bitumen | C16: [kg CO2e/ GJ ] | D16: 80.7036 | K16: Default value is used
B17: Lubricants | C17: [kg CO2e/ GJ ] | D17: 73.3036 | K17: Default value is used
B18: Petrol coke | C18: [kg CO2e/ GJ ] | D18: 97.5036 | K18: Default value is used
B19: Refinery feedstocks | C19: [kg CO2e/ GJ ] | D19: 73.3036 | K19: Default value is used
B20: Refinery gas | C20: [kg CO2e/ GJ ] | D20: 57.6011 | K20: Default value is used
B21: Paraffin waxes | C21: [kg CO2e/ GJ ] | D21: 73.3036 | K21: Default value is used
B22: White spirit & SBP | C22: [kg CO2e/ GJ ] | D22: 73.3036 | K22: Default value is used
B23: Other petroleum products | C23: [kg CO2e/ GJ ] | D23: 73.3036 | K23: Default value is used
C24: [kg CO2e/ GJ ] | D24: N/A
C25: [kg CO2e/ GJ ] | D25: N/A
A26: Coal and derived products | B26: Anthracite | C26: [kg CO2e/ GJ ] | D26: 98.3025 | K26: Default value is used
B27: Coking coal | C27: [kg CO2e/ GJ ] | D27: 94.6115 | K27: Default value is used
B28: Other bituminous coal | C28: [kg CO2e/ GJ ] | D28: 94.6115 | K28: Default value is used
B29: Sub-bituminous coal | C29: [kg CO2e/ GJ ] | D29: 96.1115 | K29: Default value is used
B30: Lignite | C30: [kg CO2e/ GJ ] | D30: 101.0115 | K30: Default value is used
B31: Oil shale and tar sands | C31: [kg CO2e/ GJ ] | D31: 107.0115 | K31: Default value is used
B32: Brown coal briquettes | C32: [kg CO2e/ GJ ] | D32: 97.5115 | K32: Default value is used
B33: Patent fuel | C33: [kg CO2e/ GJ ] | D33: 97.5115 | K33: Default value is used
B34: Coke oven coke / lignite coke / coke breeze | C34: [kg CO2e/ GJ ] | D34: 107.0115 | K34: Default value is used
B35: Gas coke | C35: [kg CO2e/ GJ ] | D35: 107.0011 | K35: Default value is used
B36: Coal tar | C36: [kg CO2e/ GJ ] | D36: 80.7115 | K36: Default value is used
B37: Gas works gas | C37: [kg CO2e/ GJ ] | D37: 44.4011 | K37: Default value is used
B38: Coke oven gas | C38: [kg CO2e/ GJ ] | D38: 44.4011 | K38: Default value is used
B39: Blast furnace gas | C39: [kg CO2e/ GJ ] | D39: 260.0011 | K39: Default value is used
B40: Oxygen steel furnace gas | C40: [kg CO2e/ GJ ] | D40: 182.0011 | K40: Default value is used
C41: [kg CO2e/ GJ ] | D41: N/A
C42: [kg CO2e/ GJ ] | D42: N/A
A43: Gas | B43: Natural gas | C43: [kg CO2e/ GJ ] | D43: 56.1011 | K43: Default value is used
C44: [kg CO2e/ GJ ] | D44: N/A
C45: [kg CO2e/ GJ ] | D45: N/A
A46: Non-biomass waste | B46: Municipal wastes (non-biomass fraction) | C46: [kg CO2e/ GJ ] | D46: 91.734 | K46: Default value is used
B47: Industrial wastes | C47: [kg CO2e/ GJ ] | D47: NA | K47: Default value is used
B48: Waste oil | C48: [kg CO2e/ GJ ] | D48: 73.334 | K48: Default value is used
C49: [kg CO2e/ GJ ] | D49: N/A
C50: [kg CO2e/ GJ ] | D50: N/A
A51: Peat | B51: Peat | C51: [kg CO2e/ GJ ] | D51: 106.0035 | K51: Default value is used
A52: Biomass waste | B52: Wood/Wood waste | C52: [kg CO2e/ GJ ] | D52: 112.034 | K52: Default value is used
B53: Sulphite lyes (Black liquor) | C53: [kg CO2e/ GJ ] | D53: 95.305 | K53: Default value is used
B54: Other primary solid biomass fuels | C54: [kg CO2e/ GJ ] | D54: 100.034 | K54: Default value is used
B55: Charcoal | C55: [kg CO2e/ GJ ] | D55: 112.204 | K55: Default value is used
B56: Biogasoline | C56: [kg CO2e/ GJ ] | D56: 70.8036 | K56: Default value is used
B57: Biodiesel | C57: [kg CO2e/ GJ ] | D57: 70.8036 | K57: Default value is used
B58: Other liquid biofuels | C58: [kg CO2e/ GJ ] | D58: 79.6036 | K58: Default value is used
B59: Landfill gas | C59: [kg CO2e/ GJ ] | D59: 54.6011 | K59: Default value is used
B60: Sludge gas | C60: [kg CO2e/ GJ ] | D60: 54.6011 | K60: Default value is used
B61: Other biogas | C61: [kg CO2e/ GJ ] | D61: 54.6011 | K61: Default value is used
B62: Municipal wastes (biomass fraction) | C62: [kg CO2e/ GJ ] | D62: 100.034 | K62: Default value is used
C63: [kg CO2e/ GJ ] | D63: N/A
C64: [kg CO2e/ GJ ] | D64: N/A
A66: Factor sheet Guide : 1. Each energy commodity with a customized EF has its own specific EF type. Even if the applicant decides that certain products will adopt the default EF value for that energy commodity, the value must be copied and displayed in the matrix. 2. The energy commodity name must be consistent across all sheets to ensure the Excel file functions as intended. 3. The "Supporting Document" column must be completed by selecting either "Yes" or "No" if a customized factor is utilized. If the customized row is not applicable, the applicant should select "Default value is used". If there is no supporting document , applicant can select “No (Please explain)” and provide explanation for the missing supporting documents.

Sheet Customized Fuel LHV
E2: Customized LHVs for Fuel
D3: Default LHV | E3: Product 1 | F3: Product 2 | G3: Product 3 | H3: Product 4 | I3: Product 5 | J3: Product 6 | K3: Supporting document | L3: Explanation
A4: Crude oil and derived substances | B4: Crude oil | C4: MJ/kg | D4: 42.3 | K4: Default value is used
B5: Orimulsion | C5: MJ/kg | D5: 27.5 | K5: Default value is used
B6: Natural gas liquids | C6: MJ/kg | D6: 44.2 | K6: Default value is used
B7: Gasoline | C7: MJ/kg | D7: 44.3 | K7: Default value is used
B8: Jet kerosene | C8: MJ/kg | D8: 44.1 | K8: Default value is used
B9: Other kerosene | C9: MJ/kg | D9: 43.8 | K9: Default value is used
B10: Shale oil | C10: MJ/kg | D10: 38.1 | K10: Default value is used
B11: Diesel oil | C11: MJ/kg | D11: 43 | K11: Default value is used
B12: Residual fuel oil | C12: MJ/kg | D12: 40.4 | K12: Default value is used
B13: Liquified petroleum gases | C13: MJ/kg | D13: 47.3 | K13: Default value is used
B14: Ethane | C14: MJ/kg | D14: 46.4 | K14: Default value is used
B15: Naphtha | C15: MJ/kg | D15: 44.5 | K15: Default value is used
B16: Bitumen | C16: MJ/kg | D16: 40.2 | K16: Default value is used
B17: Lubricants | C17: MJ/kg | D17: 40.2 | K17: Default value is used
B18: Petrol coke | C18: MJ/kg | D18: 32.5 | K18: Default value is used
B19: Refinery feedstocks | C19: MJ/kg | D19: 43 | K19: Default value is used
B20: Refinery gas | C20: MJ/kg | D20: 49.5 | K20: Default value is used
B21: Paraffin waxes | C21: MJ/kg | D21: 40.2 | K21: Default value is used
B22: White spirit & SBP | C22: MJ/kg | D22: 40.2 | K22: Default value is used
B23: Other petroleum products | C23: MJ/kg | D23: 40.2 | K23: Default value is used
B24: ='Customized Fuel EF'!B24 -> 0 | C24: MJ/kg | D24: N/A
B25: ='Customized Fuel EF'!B25 -> 0 | C25: MJ/kg | D25: N/A
A26: Coal and derived products | B26: Anthracite | C26: MJ/kg | D26: 26.7 | K26: Default value is used
B27: Coking coal | C27: MJ/kg | D27: 28.2 | K27: Default value is used
B28: Other bituminous coal | C28: MJ/kg | D28: 25.8 | K28: Default value is used
B29: Sub-bituminous coal | C29: MJ/kg | D29: 18.9 | K29: Default value is used
B30: Lignite | C30: MJ/kg | D30: 11.9 | K30: Default value is used
B31: Oil shale and tar sands | C31: MJ/kg | D31: 8.9 | K31: Default value is used
B32: Brown coal briquettes | C32: MJ/kg | D32: 20.7 | K32: Default value is used
B33: Patent fuel | C33: MJ/kg | D33: 20.7 | K33: Default value is used
B34: Coke oven coke / lignite coke / coke breeze | C34: MJ/kg | D34: 28.2 | K34: Default value is used
B35: Gas coke | C35: MJ/kg | D35: 28.2 | K35: Default value is used
B36: Coal tar | C36: MJ/kg | D36: 28 | K36: Default value is used
B37: Gas works gas | C37: MJ/kg | D37: 38.7 | K37: Default value is used
B38: Coke oven gas | C38: MJ/kg | D38: 38.7 | K38: Default value is used
B39: Blast furnace gas | C39: MJ/kg | D39: 2.47 | K39: Default value is used
B40: Oxygen steel furnace gas | C40: MJ/kg | D40: 7.06 | K40: Default value is used
B41: ='Customized Fuel EF'!B41 ->  | C41: MJ/kg | D41: N/A
B42: ='Customized Fuel EF'!B42 ->  | C42: MJ/kg | D42: N/A
A43: Gas | B43: Natural gas | C43: MJ/kg | D43: 48 | K43: Default value is used
B44: ='Customized Fuel EF'!B44 ->  | C44: MJ/kg | D44: N/A
B45: ='Customized Fuel EF'!B45 ->  | C45: MJ/kg | D45: N/A
A46: Non-biomass waste | B46: Municipal wastes (non-biomass fraction) | C46: MJ/kg | D46: 10 | K46: Default value is used
B47: Industrial wastes | C47: MJ/kg | D47: NA | K47: Default value is used
B48: Waste oil | C48: MJ/kg | D48: 40.2 | K48: Default value is used
B49: ='Customized Fuel EF'!B49 -> 0 | C49: MJ/kg | D49: N/A
B50: ='Customized Fuel EF'!B50 -> 0 | C50: MJ/kg | D50: N/A
A51: Peat | B51: Peat | C51: MJ/kg | D51: 9.76 | K51: Default value is used
A52: Biomass waste | B52: Wood/Wood waste | C52: MJ/kg | D52: 15.6 | K52: Default value is used
B53: Sulphite lyes (Black liquor) | C53: MJ/kg | D53: 11.8 | K53: Default value is used
B54: Other primary solid biomass fuels | C54: MJ/kg | D54: 11.6 | K54: Default value is used
B55: Charcoal | C55: MJ/kg | D55: 29.5 | K55: Default value is used
B56: Biogasoline | C56: MJ/kg | D56: 27 | K56: Default value is used
B57: Biodiesel | C57: MJ/kg | D57: 27 | K57: Default value is used
B58: Other liquid biofuels | C58: MJ/kg | D58: 27.4 | K58: Default value is used
B59: Landfill gas | C59: MJ/kg | D59: 50.4 | K59: Default value is used
B60: Sludge gas | C60: MJ/kg | D60: 50.4 | K60: Default value is used
B61: Other biogas | C61: MJ/kg | D61: 50.4 | K61: Default value is used
B62: Municipal wastes (biomass fraction) | C62: MJ/kg | D62: 11.6 | K62: Default value is used
B63: ='Customized Fuel EF'!B63 ->  | C63: MJ/kg | D63: N/A
B64: ='Customized Fuel EF'!B64 -> 0 | C64: MJ/kg | D64: N/A
A66: Factor sheet Guide : 1. Each energy commodity with a customized LHV has its own specific LHV type. Even if the applicant decides that certain products will adopt the default LHV value for that energy commodity, the value must be copied and displayed in the matrix. 2. The energy commodity name must be consistent across all sheets to ensure the Excel file functions as intended. 3. The "Supporting Document" column must be completed by selecting either "Yes" or "No" if a customized factor is utilized. If the customized row is not applicable, the applicant should select "Default value is used". If there is no supporting document , applicant can select “No (Please explain)” and provide explanation for the missing supporting documents.

Sheet Default EF&LHV References
A1: Date of latest update | C1: 2025-03-24
A2: Default CO2e Emission Factors for Raw Materials
A3: Item | B3: Category | C3: References
A4: / | B4: Raw materials | C4: various
A5: 1 | B5: Bauxite | C5: International Aluminium Institute (IAI) (2022). IAI Scope 3 Calculation Tool Guidance. Available from: https://international-aluminium.org/wp-content/uploads/2022/11/IAI-Scope-3-Calculation-Guidance-Document.pdf
A6: 2 | B6: Caustic soda / Sodium hydroxide | C6: International Aluminium Institute (IAI) (2022). IAI Scope 3 Calculation Tool Guidance. Available from: https://international-aluminium.org/wp-content/uploads/2022/11/IAI-Scope-3-Calculation-Guidance-Document.pdf
A7: 3 | B7: Calcined lime | C7: International Aluminium Institute (IAI) (2022). IAI Scope 3 Calculation Tool Guidance. Available from: https://international-aluminium.org/wp-content/uploads/2022/11/IAI-Scope-3-Calculation-Guidance-Document.pdf
A8: 4 | B8: Calcined petroleum coke | C8: International Aluminium Institute (IAI) (2022). IAI Scope 3 Calculation Tool Guidance. Available from: https://international-aluminium.org/wp-content/uploads/2022/11/IAI-Scope-3-Calculation-Guidance-Document.pdf
A9: 5 | B9: Coal tar pitch | C9: International Aluminium Institute (IAI) (2022). IAI Scope 3 Calculation Tool Guidance. Available from: https://international-aluminium.org/wp-content/uploads/2022/11/IAI-Scope-3-Calculation-Guidance-Document.pdf
A10: 6 | B10: Alumina | C10: International Aluminium Institute (IAI) (2022). IAI Scope 3 Calculation Tool Guidance. Available from: https://international-aluminium.org/wp-content/uploads/2022/11/IAI-Scope-3-Calculation-Guidance-Document.pdf
A11: 7 | B11: Anode | C11: International Aluminium Institute (IAI) (2022). IAI Scope 3 Calculation Tool Guidance. Available from: https://international-aluminium.org/wp-content/uploads/2022/11/IAI-Scope-3-Calculation-Guidance-Document.pdf
A12: 8 | B12: Steel (cathode) | C12: International Aluminium Institute (IAI) (2022). IAI Scope 3 Calculation Tool Guidance. Available from: https://international-aluminium.org/wp-content/uploads/2022/11/IAI-Scope-3-Calculation-Guidance-Document.pdf
A13: 9 | B13: Aluminium fluoride | C13: Rocky Mountain Institute (RMI) (2023). Aluminum GHG Emissions Reporting Guidance. Available from: https://rmi.org/wp-content/uploads/2023/11/aluminum_guidance.pdf
A14: 10 | B14: Soda ash / Sodium carbonate | C14: International Aluminium Institute (IAI) (2022). IAI Scope 3 Calculation Tool Guidance. Available from: https://international-aluminium.org/wp-content/uploads/2022/11/IAI-Scope-3-Calculation-Guidance-Document.pdf
A15: 11 | B15: Liquid aluminium | C15: International Aluminium Institute (IAI) (2022). IAI Scope 3 Calculation Tool Guidance. Available from: https://international-aluminium.org/wp-content/uploads/2022/11/IAI-Scope-3-Calculation-Guidance-Document.pdf
A16: 12 | B16: Magnesium | C16: International Aluminium Institute (IAI) (2022). IAI Scope 3 Calculation Tool Guidance. Available from: https://international-aluminium.org/wp-content/uploads/2022/11/IAI-Scope-3-Calculation-Guidance-Document.pdf
A17: 13 | B17: Silicone | C17: International Aluminium Institute (IAI) (2022). IAI Scope 3 Calculation Tool Guidance. Available from: https://international-aluminium.org/wp-content/uploads/2022/11/IAI-Scope-3-Calculation-Guidance-Document.pdf
A18: 14 | B18: Manganese | C18: International Aluminium Institute (IAI) (2022). IAI Scope 3 Calculation Tool Guidance. Available from: https://international-aluminium.org/wp-content/uploads/2022/11/IAI-Scope-3-Calculation-Guidance-Document.pdf
A19: 15 | B19: Copper | C19: International Aluminium Institute (IAI) (2022). IAI Scope 3 Calculation Tool Guidance. Available from: https://international-aluminium.org/wp-content/uploads/2022/11/IAI-Scope-3-Calculation-Guidance-Document.pdf
A20: 16 | B20: Aluminium ingot | C20: International Aluminium Institute (IAI) (2022). IAI Scope 3 Calculation Tool Guidance. Available from: https://international-aluminium.org/wp-content/uploads/2022/11/IAI-Scope-3-Calculation-Guidance-Document.pdf
A21: 17 | B21: Recycled aluminium | C21: N/A
A22: / | B22: Energy commodity | C22: UK Department for Energy Security and Net Zero (2024). Greenhouse gas reporting: conversion factors 2024.
A24: (Table 1) Lime specific emission factors used in lime production
A25: Item | B25: Category | C25: References
A26: / | B26: Lime | C26: Volume 3 Chapter 2, Table 2.4 of IPCC 2006 Guideline for National Greenhous Gas Inventories.
A28: (Table 2) Default Process CO2e Emission Factor
A29: Item | B29: Category | C29: References
A30: / | B30: Anode / Paste consumption | C30: International Aluminium Institute (IAI) (2006). The aluminium sector greenhouse gas protocol. Available from: https://ghgprotocol.org/sites/default/files/2023-03/aluminium_1.pdf
A31: / | B31: Soda ash consumption | C31: Rocky Mountain Institute (RMI) (2023). Aluminum GHG Emissions Reporting Guidance. Available from: https://rmi.org/wp-content/uploads/2023/11/aluminum_guidance.pdf
A32: / | B32: Petrol coke calcination | C32: Rocky Mountain Institute (RMI) (2023) & IAI-GHG Protocol Al sector tool (2015). Available from: https://rmi.org/wp-content/uploads/2023/11/aluminum_guidance.pdf; https://ghgprotocol.org/sites/default/files/2023-03/Aluminium%20Sector%20GHG%20Workbook%20-%20version%202_1_0.xls
A34: (Table 3) Global Warming Potential of Greenhouse Gases
A35: Item | B35: Category | C35: References
A36: / | B36: Greenhouse gases | C36: Global Warming Potential (100-year horizon), IPCC Sixth Assessment Report, 2021 (AR6). Available from: https://ghgprotocol.org/sites/default/files/2024-08/Global-Warming-Potential-Values%20%28August%202024%29.pdf
A38: Default CO2e Emission Factors for Fuel
A39: Item | B39: Category | C39: References
A40: / | B40: Common Process Materials | C40: Volume 2 Chapter 2, Table 2.3 of IPCC 2006 Guideline for National Greenhous Gas Inventories.
A41: / | B41: Coke-oven byproducts transferred offsite | C41: Volume 2 Chapter 2, Table 2.3 of IPCC 2006 Guideline for National Greenhous Gas Inventories.
A42: / | B42: Crude oil and derived substances | C42: Volume 2 Chapter 2, Table 2.3 of IPCC 2006 Guideline for National Greenhous Gas Inventories.
A43: / | B43: Coal and derived products | C43: Volume 2 Chapter 2, Table 2.3 of IPCC 2006 Guideline for National Greenhous Gas Inventories.
A44: / | B44: Gas | C44: Volume 2 Chapter 2, Table 2.3 of IPCC 2006 Guideline for National Greenhous Gas Inventories.
A45: / | B45: Non-biomass waste | C45: Volume 2 Chapter 2, Table 2.3 of IPCC 2006 Guideline for National Greenhous Gas Inventories.
A46: / | B46: Peat | C46: Volume 2 Chapter 2, Table 2.3 of IPCC 2006 Guideline for National Greenhous Gas Inventories.
A47: / | B47: Biomass waste | C47: Volume 2 Chapter 2, Table 2.3 of IPCC 2006 Guideline for National Greenhous Gas Inventories.
A49: Default LHVs for Fuel
A50: Item | B50: Category | C50: References
A51: / | B51: Common Process Materials | C51: Volume 2 Chapter 1, Tables 1.2 of IPCC 2006 Guideline for National Greenhous Gas Inventories.
A52: / | B52: Coke-oven byproducts transferred offsite | C52: Volume 2 Chapter 1, Tables 1.2 of IPCC 2006 Guideline for National Greenhous Gas Inventories.
A53: / | B53: Crude oil and derived substances | C53: Volume 2 Chapter 1, Tables 1.2 of IPCC 2006 Guideline for National Greenhous Gas Inventories.
A54: / | B54: Coal and derived products | C54: Volume 2 Chapter 1, Tables 1.2 of IPCC 2006 Guideline for National Greenhous Gas Inventories.
A55: / | B55: Gas | C55: Volume 2 Chapter 1, Tables 1.2 of IPCC 2006 Guideline for National Greenhous Gas Inventories.
A56: / | B56: Non-biomass waste | C56: Volume 2 Chapter 1, Tables 1.2 of IPCC 2006 Guideline for National Greenhous Gas Inventories.
A57: / | B57: Peat | C57: Volume 2 Chapter 1, Tables 1.2 of IPCC 2006 Guideline for National Greenhous Gas Inventories.
A58: / | B58: Biomass waste | C58: Volume 2 Chapter 1, Tables 1.2 of IPCC 2006 Guideline for National Greenhous Gas Inventories.
